Workbook

Sheet Instructions
B2: EPA Energy Use Assessment Tool Version 2.0 for Excel 2010
B3: Note: You may need to decrease your computer’s security level to allow the macros within this spreadsheet to function properly. Consult the Macro Instructions for Microsoft Excel 2007 and 2010 that are posted on EPA’s Determining Energy Usage website or email EnergyUseTool@epa.gov if you are experiencing macro related problems.
B4: PURPOSE: This spreadsheet-based energy use assessment tool has been designed to allow small and medium sized water and wastewater utilities to self-assess their baseline energy consumption and costs and to identify areas for improved energy efficiency and operational savings. While the tool is not equivalent to a full-scale, comprehensive energy audit, it provides the first step in establishing a baseline of energy consumption and use by collecting energy utility data and conducting a utility bill analysis. The tool includes five (5) elements to take you through the steps to create this baseline: Instructions, General Information, Building Data, Drinking Water (Water Treatment Plant - WTP) / Wastewater (WastewaterTreatment Plant - WWTP) Energy Usage Data, and the Summary Report.
B6: USE: The energy use assessment tool contains several separate worksheets that take you through the process to establish your energy baseline. These worksheets can be accessed using the different colored tabs located at the bottom of the screen. Descriptions of each tab are provided within the worksheet.
B9: THE FOLLOWING KEY APPLIES THROUGHOUT: | H9: Yellow boxes indicate that data can be entered by the user.
H11: Light blue boxes indicate that values are calculated using the input data. (They are read only.)
G13: Text in Blue | H13: Blue text consists of instructions for that section of the tool.
H15: White boxes with an arrow are dropdown lists. Click the arrow and select an option from the pre-populated list.
B17: REQUIRED INFORMATION: We recommend that you compile the following required information before using the energy use assessment tool. This will allow you to use the tool with ease and to its full capability.
B19: • All Plant Utility Data (use and cost information) by month (minimum of 12 months) for up to 5 years of analysis, including all Electric, Natural Gas, Fuel Oil No. 2, Water, and/or Other Utilities
B20: • List of Lighting Fixtures (by type and size) and HVAC equipment nameplate data (horsepower, efficiency rating, full load amp rating) and average motor operating amperage (for each building and room)
B21: • Drinking Water Treatment Plant Information, including monthly treatment/discharge volumes, pump and motor nameplate data (horsepower, efficiency rating, full load amp rating) and average motor operating amperage
B22: • Wastewater Treatment Plant Information, including monthly treatment/discharge volumes, pump and motor nameplate data (horsepower, efficiency rating, full load amp rating) and average motor operating amperage
B24: USER INSTRUCTIONS:
B25: 1. Save a new workbook under a different name. (In the Menu, click "File", then select "Save As"). If you experience difficulties opening the Excel libraries or any other macro related issues, consult the Macro Instructions for Microsoft Excel 2007 and 2010 that are posted on EPA’s Determining Energy Use website or email EnergyUseTool@epa.gov. You can save this file at any time, and then later resume editing or changing the entered data.
B27: 2. To get started, click the "Begin Assessment" button above or click the "General Information" tab below. Begin by entering data in the "General Information" tab, including the background data and utility data (information from electric and gas bills). For information on how to enter data, see the Key above.
B28: 3. To switch between data entry for Drinking Water Systems or Wastewater Systems, use the "Select/Switch Template" button at the top of the General Information tab. You can use the tool to enter data for either Drinking Water Systems or Wastewater Systems, but not both at the same time. However, if the data entered on the General Information tab are applicable to both plants, you can switch in-between templates to enter data and view the report for the selected system type. If the facility information is different, you will need to save a separate copy of the tool for each type.
B30: 4. To continue, click the "Building Data" button at the top of the General Information tab. To allow entry for up to ten buildings, specify the number of buildings on-site and click the "Set # of Buildings" button. Note that the number of buildings that you select generates additional building tabs (the tabs in red) at the bottom of the tool. For information on how to enter data, see the Key above.
B31: 5. Enter known data for all buildings on-site that need to be analyzed. When you are finished with the data entry on the first building tab, click the "Save and Continue" button. That takes you either back to the General Information tab or to the next building tab (if you have more than one) to enter additional building data. To reset all the data for a specific tab, click on the "Reset Data" button.
B33: 6. To enter plant energy data, click the "Plant Energy Usage" button at the top of the General Information tab. When you are finished, click the "Save and Continue" button to view the summary report. To return to the General Information tab, click the "Return to General Info" button at the top of the WTP or WWTP Energy Usage tab.
B34: 7. You can enter non-process energy information in the Equipment Electrical Energy Inventory table on the WTP or WWTP Energy Usage tab. A summary of the HVAC and lighting information input in the building data tabs is displayed at the top of the WTP and WWTP Energy Usage tabs. For those values to be included in the total energy use and to be displayed in the pie charts and summary report, you must enter the values into the Equipment Electrical Energy Inventory table with System Type as “Non Process HVAC” and the Equipment Type as “Other kW Load.”
B35: 8. When you have entered and saved all the data, you can view your energy performance report by clicking the Summary Report tab. To print the report, click the Print Summary Report button at the top.

Sheet Linked Cells (hidden) (hidden)
A1: Abbreviation | C1: Number of Buildings | D1: Transfer | E1: Rooms and Wells | G1: Years | I1: Hrs/Day | J1: days/wk | L1: Bldg Age
A2: AL | C2: 1 | D2: 0 | E2: 1 | G2: Choose Cost Year | I2: 1 | J2: 1 | L2: 1
A3: AK | C3: 2 | D3: 1 | E3: 2 | G3: 2005 | I3: 2 | J3: 2 | L3: 2
A4: AZ | D4: 2 | E4: 3 | G4: 2006 | I4: 3 | J4: 3 | L4: 3
A5: AR | D5: 3 | E5: 4 | G5: 2007 | I5: 4 | J5: 4 | L5: 4
A6: CA | D6: 4 | G6: 2008 | I6: 5 | J6: 5 | L6: 5
A7: CO | D7: 5 | G7: 2009 | I7: 6 | J7: 6 | L7: 6
A8: CT | D8: 6 | G8: 2010 | I8: 7 | J8: 7 | L8: 7
A9: DE | D9: 7 | G9: 2011 | I9: 8 | L9: 8
A10: FL | C10: Treatment Vol Units | D10: 8 | G10: 2012 | I10: 9 | L10: 9
A11: GA | C11: TGAL | D11: 9 | G11: 2013 | I11: 10 | L11: 10
A12: HI | C12: MGAL | D12: 10 | G12: 2014 | I12: 11 | L12: 11
A13: ID | G13: 2015 | I13: 12 | L13: 12
A14: IL | G14: 2016 | I14: 13 | L14: 13
A15: IN | G15: 2017 | I15: 14 | L15: 14
A16: IA | G16: 2018 | I16: 15 | L16: 15
A17: KS | G17: 2019 | I17: 16 | L17: 16
A18: KY | G18: 2020 | I18: 17 | L18: 17
A19: LA | G19: 2021 | I19: 18 | L19: 18
A20: ME | G20: 2022 | I20: 19 | L20: 19
A21: MD | G21: 2023 | I21: 20 | L21: 20
A22: MA | G22: 2024 | I22: 21 | L22: 21
A23: MI | G23: 2025 | I23: 22 | L23: 22
A24: MN | G24: 2026 | I24: 23 | L24: 23
A25: MS | G25: 2027 | I25: 24 | L25: 24
A26: MO | G26: 2028 | L26: 25
A27: MT | G27: 2029 | L27: 26 | V27: new rooms
A28: NE | G28: 2030 | I28: Bldg1Hrs | J28: 24 | L28: 27 | V28: 1
A29: NV | I29: Bldg1Days | J29: 7 | L29: 28 | V29: 2
A30: NH | I30: Bldg2Hrs | J30: 1 | L30: 29 | V30: 3
A31: NJ | I31: Bldg2Days | J31: 1 | L31: 30 | V31: 4
A32: NM | I32: Bldg3Hrs | L32: 31 | V32: 5
A33: NY | I33: Bldg3Days | L33: 32 | V33: 6
A34: NC | C34: Number of Units | D34: Flocculators | I34: Bldg4Hrs | L34: 33 | V34: 7
A35: ND | C35: 1 | D35: 1 | I35: Bldg4Days | L35: 34 | V35: 8
A36: OH | C36: 2 | D36: 2 | I36: Bldg5Hrs | L36: 35 | V36: 9
A37: OK | C37: 3 | D37: 3 | I37: Bldg5Days | L37: 36 | V37: 10
A38: OR | C38: 4 | D38: 4 | I38: Bldg6Hrs | L38: 37
A39: PA | C39: 5 | D39: 5 | I39: Bldg6Days | L39: 38
A40: RI | C40: 6 | D40: 6 | I40: Bldg7Hrs | L40: 39
A41: SC | C41: 7 | I41: Bldg7Days | L41: 40
A42: SD | C42: 8 | I42: Bldg8Hrs | L42: 41
A43: TN | C43: 9 | I43: Bldg8Days | L43: 42
A44: TX | C44: 10 | I44: Bldg9Hrs | L44: 43
A45: UT | C45: 11 | I45: Bldg9Days | L45: 44 | N45: Waste Water Systems Type | Q45: Waste Water System Dropdown List | R45: Equipment Type | T45: Waste Water Equipment Type | V45: Drinking Water Systems Type | Y45: Drinking Water Equipment Type | AA45: Drinking Water Systems Type | AB45: Equipment Type | AD45: HVAC Equipment
A46: VT | C46: 12 | I46: Bldg10Hrs | L46: 45 | N46: Select System Type | Q46: Influent Pumping | R46: Pump | T46: Select Equipment Type | V46: Select System Type | Y46: Select Equipment Type | AA46: Low Service Pumping | AB46: Pump | AD46: Select Equipment
A47: VA | C47: 13 | I47: Bldg10Days | L47: 46 | N47: Aerobic Digestion | Q47: Headworks | R47: Drive | T47: Blower | V47: Chemical Mix and Feed | Y47: Blower | AB47: Pump | AD47: Blower
A48: WA | C48: 14 | L48: 47 | N48: Anaerobic Digestion | R48: Drive | T48: Compressor | V48: City Water Pumping | Y48: Compressor | AA48: Preliminary Treatment | AB48: Drive | AD48: Compressor
A49: WV | C49: 15 | L49: 48 | N49: Chemical Mixing | R49: Blower | T49: Drive | V49: Clarification | Y49: Drive | AB49: Pump | AD49: Drive
A50: WI | C50: 16 | L50: 49 | N50: Chlorine Disinfection | R50: Grinder | T50: Dryer | V50: Compressed Air | Y50: Dryer | AB50: Mixer | AD50: Fan
A51: WY | C51: 17 | L51: 50 | N51: City Water Pumping | Q51: Primary Treatment | R51: Fan | T51: Fan | V51: Decarbonation | Y51: Fan | AB51: Pump
C52: 18 | L52: 51 | N52: Compressed Air | R52: Fan | T52: Grinder | V52: Disinfection | Y52: Mixer | AA52: Flocculation / Sedimentation | AB52: Drive
C53: 19 | L53: 52 | N53: Dissolved Air Flotation | R53: Drive | T53: Mixer | V53: Distribution Pumping | Y53: Other kW Load | AB53: Pump
C54: 20 | L54: 53 | N54: Effluent Pumping/Storage | R54: Drive | T54: Other kW Load | V54: Filtration | Y54: Ozonator | AB54: Pump
L55: 54 | N55: Filtration | R55: Pump | T55: Pump | V55: Flocculation / Sedimentation | Y55: Pump | AA55: Clarification | AB55: Drive
A56: OLD | D56: NEW | L56: 55 | N56: Final Clarification | R56: Blower | V56: Internal Plant Pumping | Y56: UV | AB56: Drive
A57: Light Fixture | B57: Total | D57: Select Light Fixture | E57: Total | L57: 56 | N57: Fixed Film Treatment | Q57: Fixed Film Treatment | R57: Fan | V57: Lighting | AB57: Drive
A58: Corelight T5 retrofit | B58: 56 | D58: One F40T12 4' 40W Fluorescent Lamp, Electronic Ballast | E58: 41 | L58: 57 | N58: Flow Equalization Basin | R58: Pump | V58: Low Service Pumping | AB58: Pump
A59: LED can/surface housing | B59: 12 | D59: One F40T12 4' 40W Fluorescent Lamp, Magnetic Ballast | E59: 51 | L59: 58 | N59: Headworks | R59: Drive | V59: Non Process HVAC | AA59: Recarbonation | AB59: Pump
A60: LED Incandescent can retrofit | B60: 12 | D60: Two F40T12 4' 40W Fluorescent Lamps, Electronic Ballast | E60: 75 | L60: 59 | N60: Influent Pumping | Q60: Secondary Treatment | R60: Blower | V60: Odor/Taste | AA60: Internal Plant Pumping | AB60: Pump
A61: 2x4 Accord T5 fixture surface mtd | B61: 56 | D61: Two F40T12 4' 40W Fluorescent Lamps, Magnetic Ballast | E61: 88 | L61: 60 | N61: Internal Plant Pumping | R61: Pump | V61: Other Non Process Load | AA61: Decarbonation | AB61: Fan
A62: 4' Strip (2) F32 Lamps | B62: 64 | D62: Three F40T12 4' 40W Fluorescent Lamps, Electronic Ballast | E62: 110 | L62: 61 | N62: Lighting | R62: Pump | V62: Other | AB62: Pump
A63: 4' Surface Wrap (2) F32 Lamps | B63: 64 | D63: Three F40T12 4' 40W Fluorescent Lamps, Magnetic Ballast | E63: 135 | L63: 62 | N63: Non Process HVAC | R63: Pump | V63: Preliminary Treatment | AA63: Filtration | AB63: Blower
A64: 4' Surface Wrap (4) F32 Lamps | B64: 128 | D64: Four F40T12 4' 40W Fluorescent Lamps, Electronic Ballast | E64: 134 | L64: 63 | N64: Odor Control | Q64: Dissolved Air Flotation | R64: Compressor | V64: Recarbonation | AB64: Pump
A65: 2x4 Acrylic Troffer (2) F32 Lamps | B65: 62 | D65: Four F40T12 4' 40W Fluorescent Lamps, Magnetic Ballast | E65: 175 | L65: 64 | N65: Other | R65: Pump | V65: Sludge Handling | AB65: Pump
A66: 2x4 Acrylic Troffer (3) F32 Lamps | B66: 96 | D66: One F48T12 HO 4' 60W Fluorescent Lamp, ES Magnetic Ballast | E66: 82 | L66: 65 | N66: Primary Treatment | Q66: Flow Equalization Basin | R66: Pump | AB66: Fan
A67: 2x4 Acrylic Troffer (4) F32 Lamps | B67: 128 | D67: Two F48T12 HO 4' 60W Fluorescent Lamps, Electronic Ballast | E67: 125 | L67: 66 | N67: Secondary Treatment | Q67: Filtration | R67: Pump | AB67: Compressor
A68: 2x4 Parabolic Troffer (2) F32 Lamps | B68: 64 | D68: Two F48T12 HO 4' 60W Fluorescent Lamps, ES Magnetic Ballast | E68: 142 | L68: 67 | N68: Sludge Handling | R68: Blower | AB68: Pump
A69: 2x4 Parabolic Troffer (3) F32 Lamps | B69: 96 | D69: Three F48T12 HO 4' 60W Fluorescent Lamps, ES Magnetic Ballast | E69: 204 | L69: 68 | N69: Solids Contact | Q69: Final Clarification | R69: Drive | AA69: Sludge Handling | AB69: Pump
A70: 2x4 Parabolic Troffer (4) F32 Lamps | B70: 128 | D70: Four F48T12 HO 4' 60W Fluorescent Lamps, ES Magnetic Ballast | E70: 263 | L70: 69 | N70: Ultraviolet Disinfection | Q70: Solids Contact | R70: Pump | AB70: Drive
A71: FBAY (4)T8 LAMP | B71: 154 | D71: Two F48T12 HO 4' 60W Fluorescent Lamps, ES Magnetic Ballast | E71: 142 | L71: 70 | Q71: Chlorine Disinfection | R71: Pump | AB71: Drive
A72: FBAY (6)T8 LAMP | B72: 230 | D72: One F96T12 8' 60W ES Slim Fluorescent Lamp, Electronic Ballast | E72: 69 | L72: 71 | Q72: Ultraviolet Disinfection | R72: Other kW Load | AB72: Pump
A73: FBAY (8)T8 LAMP | B73: 307 | D73: One F96T12 8' 60W ES Slim Fluorescent Lamp, ES Magnetic Ballast | E73: 77 | L73: 72 | Q73: Internal Plant Pumping | R73: Pump | AA73: Disinfection | AB73: Pump
A74: FBAY (4)T5 LAMP | B74: 216 | D74: Two F96T12 8' 60W ES Slim Fluorescent Lamps, Electronic Ballast | E74: 109 | L74: 73 | R74: Pump | AB74: Ozonator
A75: FBAY (6) T5 LAMP | B75: 324 | D75: Two F96T12 8' 60W ES Slim Fluorescent Lamps, ES Magnetic Ballast | E75: 115 | L75: 74 | R75: Pump | AB75: UV
A76: FBAY (4)T8 LAMP | B76: 154 | D76: One F96T12 8' 75W Slim Fluorescent Lamp, Electronic Ballast | E76: 84 | L76: 75 | Q76: Effluent Pumping/Storage | R76: Pump | AA76: Odor/Taste | AB76: Fan
A77: FBAY (6)T8 LAMP | B77: 230 | D77: One F96T12 8' 75W Slim Fluorescent Lamp, ES Magnetic Ballast | E77: 95 | L77: 76 | R77: Mixer | AB77: Pump
A78: FBAY (8)T8 LAMP | B78: 307 | D78: Two F96T12 8' 75W Slim Fluorescent Lamps, Electronic Ballast | E78: 134 | L78: 77 | Q78: Aerobic Digestion | R78: Blower | AA78: Distribution | AB78: Pump
A79: FBAY (4)T5 LAMP | B79: 216 | D79: Two F96T12 8' 75W Slim Fluorescent Lamps, ES Magnetic Ballast | E79: 142 | L79: 78 | Q79: Anaerobic Digestion | R79: Pump | AA79: Compressed Air | AB79: Compressor
A80: FBAY (6) T5 LAMP | B80: 324 | D80: One F96T12 HO 8' 95W ES Fluorescent Lamp, ES Magnetic Ballast | E80: 111 | L80: 79 | R80: Pump | AB80: Dryer
A81: LED | B81: 6 | D81: Two F96T12 HO 8' 95W ES Fluorescent Lamps, Electronic Ballast | E81: 170 | L81: 80 | R81: Pump | AA81: City Water Pumping | AB81: Pump
A82: 4' Strip (1) F40 T12 Lamps | B82: 44 | D82: Two F96T12 HO 8' 95W ES Fluorescent Lamps, ES Magnetic Ballast | E82: 209 | L82: 81 | R82: Pump | AA82: Chemical Mix and Feed | AB82: Drive
A83: 4' Strip (2) F40 T12 Lamps | B83: 88 | D83: One F96T12 HO 8' 110W Fluorescent Lamp, Electronic Ballast | E83: 119 | L83: 82 | R83: Drive | AB83: Pump
A84: 8' Strip (2) F60SS T12 Lamps | B84: 132 | D84: One F96T12 HO 8' 110W Fluorescent Lamp, ES Magnetic Ballast | E84: 133 | L84: 83 | Q84: Sludge Handling | R84: Drive | AA84: Lighting | AB84: Other kW Load
A85: 8' Strip (2) F110HO T12 Lamps | B85: 242 | D85: Two F96T12 HO 8' 110W Fluorescent Lamps, Electronic Ballast | E85: 208 | L85: 84 | R85: Drive | AB85: Other kW Load
A86: 4' Surface Wrap (2) F40 T12 Lamps | B86: 88 | D86: Two F96T12 HO 8' 110W Fluorescent Lamps, ES Magnetic Ballast | E86: 246 | L86: 85 | R86: Pump | AA86: Non Process HVAC | AB86: Fan
A87: 4' Surface Wrap (4) F40 T12 Lamps | B87: 154 | D87: One F28T8 4' 28W Fluorescent Lamp, Electronic Ballast | E87: 25 | L87: 86 | R87: Pump | AB87: Fan
A88: 2x4 Acrylic Troffer (2) F40 T12 Lamps | B88: 88 | D88: Two F28T8 4' 28W Fluorescent Lamps, Electronic Ballast | E88: 49 | L88: 87 | Q88: Odor Control | R88: Fan | AB88: Compressor
A89: 2x4 Acrylic Troffer (3) F40 T12 Lamps | B89: 132 | D89: Three F28T8 4' 28W Fluorescent Lamps, Electronic Ballast | E89: 72 | L89: 88 | R89: Pump | AB89: Fan
A90: 2x4 Acrylic Troffer (4) F40 T12 Lamps | B90: 154 | D90: Four F28T8 4' 28W Fluorescent Lamps, Electronic Ballast | E90: 98 | L90: 89 | Q90: Compressed Air | R90: Compressor | AA90: Other Non Process Load | AB90: Other kW Load
A91: 2x4 Parabolic Troffer (2) F40 T12 Lamps | B91: 88 | D91: One F32T8 4' 32W Fluorescent Lamp, Electronic Ballast | E91: 33 | L91: 90 | R91: Dryer | AA91: Other:__________________ | AB91: Other kW Load
A92: 2x4 Parabolic Troffer (3) F40 T12 Lamps | B92: 132 | D92: Two F32T8 4' 32W Fluorescent Lamps, Electronic Ballast | E92: 62 | L92: 91 | Q92: City Water Pumping | R92: Pump
A93: 2x4 Parabolic Troffer (4) F40 T12 Lamps | B93: 154 | D93: Three F32T8 4' 32W Fluorescent Lamps, Electronic Ballast | E93: 86 | L93: 92 | Q93: Chemical Mixing | R93: Drive
A94: Keyless Lamp holder | B94: 200 | D94: Four F32T8 4' 32W Fluorescent Lamps, Electronic Ballast | E94: 107 | L94: 93 | Q94: Lighting | R94: Other kW Load
A95: High Bay (1) Metal Halide 400 Lamp | B95: 450 | D95: Six F32T8 4' 32W Fluorescent Lamps, Electronic Ballast | E95: 172 | L95: 94 | R95: Other kW Load
A96: High Bay (1) Metal Halide 1000 Lamp | B96: 1100 | D96: Eight F32T8 4' 32W Fluorescent Lamps, Electronic Ballast | E96: 214 | L96: 95 | Q96: Non Process HVAC | R96: Fan
A97: Surface incandescent 100W | B97: 100 | D97: One F96T8 8' 59W Fluorescent Lamp, Electronic Ballast | E97: 75 | L97: 96 | R97: Fan
A98: Surface incandescent 150W | B98: 150 | D98: Two F96T8 8' 59W Fluorescent Lamps, Electronic Ballast | E98: 124 | L98: 97 | R98: Compressor
A99: Surface incandescent 200W | B99: 200 | D99: One F96T8 HO 8' 86W Fluorescent Lamp, Electronic Ballast | E99: 88 | L99: 98 | R99: Fan
A100: 24" WALL BRACKET (3) 100W A19 | B100: 300 | D100: Two F96T8 HO 8' 86W Fluorescent Lamps, Electronic Ballast | E100: 150 | L100: 99 | R100: Other kW Load
A101: 36" WALL BRACKET (4) 100W A19 | B101: 400 | D101: One F28T5 4' 28W Fluorescent Lamp, Electronic Ballast | E101: 32 | L101: 100 | Q101: Other:__________________ | R101: Other kW Load
A102: 48" WALL BRACKET (6) 100W A19 | B102: 600 | D102: Two F28T5 4' 28W Fluorescent Lamps, Electronic Ballast | E102: 64 | L102: 101
D103: One F54T5 HO 4' 54W Fluorescent Lamp, Electronic Ballast | E103: 63 | L103: 102
D104: Two F54T5 HO 4' 54W Fluorescent Lamps, Electronic Ballast | E104: 120 | L104: 103
D105: Four F54T5 HO 4' 54W Fluorescent Lamps, Electronic Ballast | E105: 236 | L105: 104
D106: One 50W Mercury Vapor Lamp, Magnetic Ballast | E106: 75 | L106: 105
D107: One 75W Mercury Vapor Lamp, Magnetic Ballast | E107: 95 | L107: 106
D108: One 175W Mercury Vapor Lamp, Magnetic Ballast | E108: 205 | L108: 107
D109: One 250W Mercury Vapor Lamp, Magnetic Ballast | E109: 285 | L109: 108
D110: One 400W Mercury Vapor Lamp, Magnetic Ballast | E110: 454 | L110: 109
D111: One 1,000W Mercury Vapor Lamp, Magnetic Ballast | E111: 1075 | L111: 110
D112: One 35W High Pressure Sodium Lamp, Magnetic Ballast | E112: 45 | L112: 111
D113: One 50W High Pressure Sodium Lamp, Magnetic Ballast | E113: 64 | L113: 112
D114: One 100W High Pressure Sodium Lamp, Magnetic Ballast | E114: 130 | L114: 113
D115: One 150W High Pressure Sodium Lamp, Magnetic Ballast | E115: 188 | L115: 114
D116: One 250W High Pressure Sodium Lamp, Magnetic Ballast | E116: 295 | L116: 115
D117: One 400W High Pressure Sodium Lamp, Magnetic Ballast | E117: 465 | L117: 116
D118: One 1,000W High Pressure Sodium Lamp, Magnetic Ballast | E118: 1100 | L118: 117
D119: One 50W Metal Halide Lamp, Electronic Ballast | E119: 56 | L119: 118
D120: One 50W Metal Halide Lamp, Magnetic Ballast | E120: 64 | L120: 119
D121: One 100W Metal Halide Lamp, Electronic Ballast | E121: 110 | L121: 120
D122: One 100W Metal Halide Lamp, Magnetic Ballast | E122: 130 | L122: 121
D123: One 150W Metal Halide Lamp, Magnetic Ballast | E123: 185 | L123: 122
D124: One 175W Metal Halide Lamp, Electronic Ballast | E124: 190 | L124: 123
D125: One 175W Metal Halide Lamp, Magnetic Ballast | E125: 210 | L125: 124
D126: One 250W Metal Halide Lamp, Magnetic Ballast | E126: 295 | L126: 125
D127: One 400W Metal Halide Lamp, Electronic Ballast | E127: 460 | L127: 126
D128: One 400W Metal Halide Lamp, Magnetic Ballast | E128: 460 | L128: 127
D129: One 1,000W Metal Halide Lamp, Electronic Ballast | E129: 1035 | L129: 128
D130: One 1,000W Metal Halide Lamp, Magnetic Ballast | E130: 1080 | L130: 129
D131: One 50W Pulse Start Metal Halide Lamp, ES Magnetic Ballast | E131: 60 | L131: 130
D132: One 100W Pulse Start Metal Halide Lamp, ES Magnetic Ballast | E132: 118 | L132: 131
D133: One 150W Pulse Start Metal Halide Lamp, ES Magnetic Ballast | E133: 170 | L133: 132
D134: One 175W Pulse Start Metal Halide Lamp, ES Magnetic Ballast | E134: 189 | L134: 133
D135: One 250W Pulse Start Metal Halide Lamp, ES Magnetic Ballast | E135: 275 | L135: 134
D136: One 400W Pulse Start Metal Halide Lamp, Electronic Ballast | E136: 415 | L136: 135
D137: One 400W Pulse Start Metal Halide Lamp, ES Magnetic Ballast | E137: 435 | L137: 136
D138: One 1,000W Pulse Start Metal Halide Lamp, Electronic Ballast | E138: 1035 | L138: 137
D139: One 1,000W Pulse Start Metal Halide Lamp, Magnetic Ballast | E139: 1080 | L139: 138
D140: Exit Sign with LED Lamps | E140: 5 | L140: 139
D141: Exit Sign with two 9W Compact Flourescent Lamps (CFLs) | E141: 21 | L141: 140
D142: Exit Sign with two 20W Incandescent Lamps | E142: 40 | L142: 141
L143: 142
F144: <-reserved | L144: 143
F145: <-reserved | L145: 144
F146: <-reserved | L146: 145
F147: <-reserved | L147: 146
F148: <-reserved | L148: 147
F149: <-reserved | L149: 148
F150: <-reserved | L150: 149
L151: 150
L152: 151
L153: 152
L154: 153
L155: 154
L156: 155
L157: 156
L158: 157
L159: 158
L160: 159
L161: 160
L162: 161
L163: 162
L164: 163
L165: 164
L166: 165
L167: 166
L168: 167
L169: 168
L170: 169
L171: 170
L172: 171
L173: 172
L174: 173
L175: 174
L176: 175
L177: 176
L178: 177
L179: 178
L180: 179
L181: 180
L182: 181
L183: 182
L184: 183
L185: 184
L186: 185
L187: 186
L188: 187
L189: 188
L190: 189
L191: 190
L192: 191
L193: 192
L194: 193
L195: 194
L196: 195
L197: 196
L198: 197
L199: 198
L200: 199
... 2 more rows

Sheet General Information
A1: =" EPA Energy Use Assessment Tool for "& workbookType -> EPA Energy Use Assessment Tool for Drinking Water Systems | J1: Drinking Water Systems
A2: General Information
A4: To switch between data entry for Drinking Water Systems or Wastewater Systems, click the "Select/Switch Template" button above. You can use the tool to enter data for either Drinking Water Systems or Wastewater Systems but not both at the same time. However, if the data entered on the General Information tab is applicable to both plants, you can switch between templates to enter data and view the report for the selected system type. If the facility information is different, you will need to save a separate copy of the tool for each type. To analyze costs associated with your facility building(s), click the "Building Data" button above or the "Building Data" tab below. To analyze total plant energy costs, click the "Plant Energy Usage" button above or the "WTP or WWTP Energy Usage" tab below. Enter the following general information about the plant.
A6: BACKGROUND INFORMATION
A8: Project | B8: Example Water and Wastewater Treatment Plants | G8: Project Reference | I8: P123
A10: Facility Name | B10: Sample Water and Wastewater Treatment Plants
A12: Site Address | B12: 123 Ross Road | G12: Treatment Operation | I12: 8500 | J12: Hrs/Yr
B14: Fairfax
A16: State | B16: VA
A18: ZIP | B18: 22030 | G18: Date of Assessment | I18: 2011-07-12
A20: Plant Contact | B20: John Smith | G20: Assessment Performed by | I20: Jen Denwood
A22: Contact Telephone | B22: 762-882-8811 | G22: Assessor Phone | I22: 481-553-2217
A24: Contact Email | B24: john.smith@gmail.com | G24: Assessor Email | I24: jden@gmail.com
A27: UTILITY BILL INFORMATION
A29: Enter the plant's monthly utility use and cost information in the cells below. This information is provided in the utility bills, use the total bill amount including any surcharges or fees. If the meter readings do not start and end on the first and last day of the month respectively, that is okay. If possible, enter the data consistently. The annual information is the most important. If the site has multiple accounts for the same utility (such as two electric accounts), enter the combined values for each month’s use and costs. Enter the most recent year's monthly data first, followed by the next most recent year's monthly data. You can enter up to 5 years worth of data. The spreadsheet calculates the site's total utility cost per treatment volumes, electrical energy use and average utility rate per individual utility. Graphs of the information are generated and shown on the "Summary Report" tab. The Estimated Annual Electric Energy Use and Cost are calculated for the latest 12 months of data entered. (For example, if data for January to July of 2010 were the latest entered, the totals would be taken from August 2009 to July 2010)
F32: ="Total Utility Cost Per "&IF($D$49="Tgal","Thousand","Million") &" Gallons Treated ($/"&$D$49&")" -> Total Utility Cost Per Million Gallons Treated ($/MGAL) | G32: =A57 -> 2011 | H32: =IF(N71=0,"",N70/N71) -> 464.440718
F33: ="Total Utility Cost Per "&IF($D$49="Tgal","Thousand","Million") &" Gallons Treated ($/"&$D$49&")" -> Total Utility Cost Per Million Gallons Treated ($/MGAL) | G33: =A79 -> 2010 | H33: =IF(N93=0,"",N92/N93) -> 407.6652571
F34: ="Total Utility Cost Per "&IF($D$49="Tgal","Thousand","Million") &" Gallons Treated ($/"&$D$49&")" -> Total Utility Cost Per Million Gallons Treated ($/MGAL) | G34: =A103 -> 2009 | H34: =IF(N117=0,"",N116/N117) -> 331.1291251
F35: ="Total Utility Cost Per "&IF($D$49="Tgal","Thousand","Million") &" Gallons Treated ($/"&$D$49&")" -> Total Utility Cost Per Million Gallons Treated ($/MGAL) | G35: =A125 -> 2008 | H35: =IF(N139=0,"",N138/N139) -> 279.3915885
F36: ="Total Utility Cost Per "&IF($D$49="Tgal","Thousand","Million") &" Gallons Treated ($/"&$D$49&")" -> Total Utility Cost Per Million Gallons Treated ($/MGAL) | G36: =A147 -> 2007 | H36: =IF(N161=0,"",N160/N161) -> 239.1104727
F38: ="Electrical Energy Utilization (kWh/"&$D$49&")" -> Electrical Energy Utilization (kWh/MGAL) | G38: =A57 -> 2011 | H38: =IF(N71=0,"",N59/N71) -> 1747.737385
F39: ="Electrical Energy Utilization (kWh/"&$D$49&")" -> Electrical Energy Utilization (kWh/MGAL) | G39: =A79 -> 2010 | H39: =IF(N93=0,"",N81/N93) -> 1687.25155
F40: ="Electrical Energy Utilization (kWh/"&$D$49&")" -> Electrical Energy Utilization (kWh/MGAL) | G40: =A103 -> 2009 | H40: =IF(N117=0,"",N105/N117) -> 1588.914168
F41: ="Electrical Energy Utilization (kWh/"&$D$49&")" -> Electrical Energy Utilization (kWh/MGAL) | G41: =A125 -> 2008 | H41: =IF(N139=0,"",N127/N139) -> 1487.681767
F42: ="Electrical Energy Utilization (kWh/"&$D$49&")" -> Electrical Energy Utilization (kWh/MGAL) | G42: =A147 -> 2007 | H42: =IF(N161=0,"",N149/N161) -> 1506.899357
B44: Estimated Annual Electrical Energy Use (kWh) | H44: =totEnergy -> 2248000
B45: Estimated Annual Electrical Energy Cost ($) | H45: =totElectricCost -> 227497.48
B46: Average Electrical Energy Rate ($/kWh) | H46: =IF($H$44=0,0,IF($H$45=0,0,$H$45/$H$44)) -> 0.1011999466
A49: Specify Units for Treatment Volume | D49: MGAL
A50: Specify Units for Alternative Energy Consumption | D50: CCF
A51: Specify Other Utility Type (if any) | D51: Propane
A52: Specify Units for Other Energy Consumption (if any) | D52: GAL
A54: =A57 -> 2011
A55: Electric ($/kWh) | B55: =IF(N59=0,"",N58/N59) -> 0.1017981815 | D55: Natural Gas ($/CCF) | E55: =IF(N61=0,"",N60/N61) -> 1.150354638 | G55: No 2 Fuel Oil ($/CCF) | H55: =IF(N63=0,"",N62/N63) -> 1.06182145 | J55: Water/Sewer ($/GAL) | K55: =IF(N65=0,"",N64/N65) -> 0.005572282731 | M55: ="Alt. Energy: ($/" & $D$50&")" -> Alt. Energy: ($/CCF) | N55: =IF(N67=0,"",N66/N67) -> 0.004168438238 | P55: ="Other Utility: " & $D$51 & " ($/" & $D$52&")" -> Other Utility: Propane ($/GAL) | Q55: =IF(N69=0,"",N68/N69) -> 0.0011
A57: 2011 | B57: January | C57: February | D57: March | E57: April | F57: May | G57: June | H57: July | I57: August | J57: September | K57: October | L57: November | M57: December | N57: TOTAL (Yr) | O57: Average | P57: % of Costs
A58: ="Electricity Cost ($) "&A57 -> Electricity Cost ($) 2011 | B58: 18184.32 | C58: 19492.46 | D58: 19247.76 | E58: 19704.16 | F58: 20930.4 | G58: 19997.44 | N58: =SUM(B58:M58) -> 117556.54 | O58: =IF(SUM(B58:M58)=0,"",AVERAGE(B58:M58)) -> 19592.75667 | P58: =IF(N$70=0,"",N58/N$70) -> 0.3830768507
A59: =" Consumption (kWh) "& A57 -> Consumption (kWh) 2011 | B59: 196800 | C59: 189800 | D59: 187600 | E59: 192800 | F59: 204000 | G59: 183800 | N59: 1154800 | O59: 192466.6667
A60: ="Natural Gas Cost ($) "&A57 -> Natural Gas Cost ($) 2011 | B60: 6146.54 | C60: 5556.68 | D60: 5015.3 | E60: 3292.82 | F60: 1525.44 | G60: 1428.9 | N60: 22965.68 | O60: 3827.613333 | P60: =IF(N$70=0,"",N60/N$70) -> 0.07483735374
A61: =" Consumption (CCF) "&A57 -> Consumption (CCF) 2011 | B61: 5276 | C61: 4782 | D61: 4331 | E61: 2914 | F61: 1362 | G61: 1299 | N61: 19964 | O61: 3327.333333
A62: ="No 2 Fuel Oil Cost ($) "&A57 -> No 2 Fuel Oil Cost ($) 2011 | B62: 16231.03 | C62: 11166.71 | D62: 8587.05 | E62: 5077.59 | F62: 534.92 | G62: 43.09 | N62: 41640.39 | O62: 6940.065 | P62: =IF(N$70=0,"",N62/N$70) -> 0.1356918931
A63: =" Consumption (CCF) "&A57 -> Consumption (CCF) 2011 | B63: 14260 | C63: 10279 | D63: 8478 | E63: 5237 | F63: 562 | G63: 400 | N63: 39216 | O63: 6536
A64: ="Water & Sewer Cost ($) "&A57 -> Water & Sewer Cost ($) 2011 | B64: 12320.06 | C64: 12320.06 | D64: 11741.82 | E64: 11741.82 | F64: 11741.82 | G64: 16794.47 | N64: 76660.05 | O64: 12776.675 | P64: =IF(N$70=0,"",N64/N$70) -> 0.2498090751
A65: =" Consumption (GAL) "&A57 -> Consumption (GAL) 2011 | B65: 2210986 | C65: 2210986 | D65: 2107257 | E65: 2107257 | F65: 2107257 | G65: 3013644 | N65: 13757387 | O65: 2292897.833
A66: ="Alternative Energy Cost ($) "&A57 -> Alternative Energy Cost ($) 2011 | B66: 1914.9 | C66: 2035.8 | D66: 2571.4 | E66: 2394.6 | F66: 2012.4 | G66: 25071.2 | N66: =SUM(B66:M66) -> 36000.3 | O66: =IF(SUM(B66:M66)=0,"",AVERAGE(B66:M66)) -> 6000.05 | P66: =IF(N$70=0,"",N66/N$70) -> 0.1173127548
A67: =" Consumption (" &$D$50 &") "&A57 -> Consumption (CCF) 2011 | B67: 1473000 | C67: 1566000 | D67: 1978000 | E67: 1842000 | F67: 1548000 | G67: 229400 | N67: =SUM(B67:M67) -> 8636400 | O67: =IF(SUM(B67:M67)=0,"",AVERAGE(B67:M67)) -> 1439400
A68: ="Other - "&$D$51&" Cost ($) "&A57 -> Other - Propane Cost ($) 2011 | B68: 1070.3 | C68: 1535.6 | D68: 2324.3 | E68: 3180.1 | F68: 2017.4 | G68: 1923.9 | N68: 12051.6 | O68: 2008.6 | P68: =IF(N$70=0,"",N68/N$70) -> 0.0392720726
A69: =" Consumption (" &$D$52&") "&A57 -> Consumption (GAL) 2011 | B69: 973000 | C69: 1396000 | D69: 2113000 | E69: 2891000 | F69: 1834000 | G69: 1749000 | N69: 10956000 | O69: 1826000
A70: ="Total Utility Cost "&A57 -> Total Utility Cost 2011 | B70: =SUM(B58,B60,B62,B64,B66,B68) -> 55867.15 | C70: =SUM(C58,C60,C62,C64,C66,C68) -> 52107.31 | D70: =SUM(D58,D60,D62,D64,D66,D68) -> 49487.63 | E70: =SUM(E58,E60,E62,E64,E66,E68) -> 45391.09 | F70: 38762.38 | G70: =SUM(G58,G60,G62,G64,G66,G68) -> 65259 | H70: 0 | I70: 0 | J70: 0 | K70: 0 | L70: 0 | M70: 0 | N70: 306874.56 | O70: 25572.88 | P70: =SUM(P58,P60,P62,P64,P66,P68) -> 1
A71: ="Treatment Volume (" &$D$49&") "&A57 -> Treatment Volume (MGAL) 2011 | B71: 112.24 | C71: 107.5 | D71: 116.7 | E71: 118.4 | F71: 111.2 | G71: 94.7 | N71: 660.74 | O71: 110.1233333
A72: ="Utility Cost/Treatment Volume ($/"&$D$49&") "&A57 -> Utility Cost/Treatment Volume ($/MGAL) 2011 | B72: =IF(B71=0,"",B70/B71) -> 497.7472381 | C72: =IF(C71=0,"",C70/C71) -> 484.7191628 | D72: =IF(D71=0,"",D70/D71) -> 424.0585261 | E72: =IF(E71=0,"",E70/E71) -> 383.3706926 | F72: 348.582554 | G72: =IF(G71=0,"",G70/G71) -> 689.1129884 | H72: =IF(H71=0,"",H70/H71) ->  | N72: 2827.591162 | O72: =IF(SUM(B72:M72)=0,"",AVERAGE(B72:M72)) -> 471.2651936
A73: ="Electric Utilization (kWh/"&$D$49&") "&A57 -> Electric Utilization (kWh/MGAL) 2011 | B73: =IF(B71=0,"",B59/B71) -> 1753.385602 | C73: =IF(C71=0,"",C59/C71) -> 1765.581395 | D73: 1607.540703 | E73: 1628.378378 | F73: 1834.532374 | G73: 1940.865892 | N73: 10530.28435 | O73: 1755.047391
A76: =A79 -> 2010
A77: Electric ($/kWh) | B77: =IF(N81=0,"",N80/N81) -> 0.1020114602 | D77: Natural Gas ($/CCF) | E77: =IF(N83=0,"",N82/N83) -> 1.089406051 | G77: No 2 Fuel Oil ($/CCF) | H77: =IF(N85=0,"",N84/N85) -> 1.061025798 | J77: Water/Sewer ($/GAL) | K77: =IF(N87=0,"",N86/N87) -> 0.005550066378 | M77: ="Alt. Energy: ($/" & $D$50&")" -> Alt. Energy: ($/CCF) | N77: =IF(N89=0,"",N88/N89) -> 0.001130414478 | P77: ="Other Utility: " & $D$51 & " ($/" & $D$52&")" -> Other Utility: Propane ($/GAL) | Q77: =IF(N91=0,"",N90/N91) -> 0.001143817811
A79: 2010 | B79: January | C79: February | D79: March | E79: April | F79: May | G79: June | H79: July | I79: August | J79: September | K79: October | L79: November | M79: December | N79: TOTAL (Yr) | O79: Average | P79: % of Costs
A80: ="Electricity Cost ($) "&A79 -> Electricity Cost ($) 2010 | B80: 16711.68 | C80: 17684.94 | D80: 15451.56 | E80: 15268.68 | F80: 16374.96 | G80: 18996.48 | H80: 19939.92 | I80: 18041.58 | J80: 17689.84 | K80: 18057.6 | L80: 17876.28 | M80: 18335.72 | N80: =SUM(B80:M80) -> 210429.24 | O80: =IF(SUM(B80:M80)=0,"",AVERAGE(B80:M80)) -> 17535.77 | P80: =IF(N$92=0,"",N80/N$92) -> 0.4222066788
A81: =" Consumption (kWh) "& A79 -> Consumption (kWh) 2010 | B81: 163200 | C81: 172200 | D81: 150600 | E81: 149400 | F81: 159600 | G81: 174600 | H81: 182600 | I81: 177400 | J81: 173600 | K81: 182400 | L81: 186600 | M81: 190600 | N81: 2062800 | O81: 171900
A82: ="Natural Gas Cost ($) "&A79 -> Natural Gas Cost ($) 2010 | B82: 5571.01 | C82: 5059.7 | D82: 6072.54 | E82: 3619.31 | F82: 1307.83 | G82: 1207.72 | H82: 1188 | I82: 888.13 | J82: 1018.35 | K82: 1324.23 | L82: 2209.15 | M82: 6538.9 | N82: 36004.87 | O82: 3000.405833 | P82: =IF(N$92=0,"",N82/N$92) -> 0.07224041955
A83: =" Consumption (CCF) "&A79 -> Consumption (CCF) 2010 | B83: 4918 | C83: 4659 | D83: 5769 | E83: 3601 | F83: 1276 | G83: 1108 | H83: 1080 | I83: 875 | J83: 930 | K83: 1193 | L83: 1955 | M83: 5686 | N83: 33050 | O83: 2754.166667
A84: ="No 2 Fuel Oil Cost ($) "&A79 -> No 2 Fuel Oil Cost ($) 2010 | B84: 16231.03 | C84: 11166.71 | D84: 8587.05 | E84: 5077.59 | F84: 534.92 | G84: 43.09 | H84: 35.61 | I84: 55.64 | J84: 35.59 | K84: 2825.52 | L84: 4018.93 | M84: 5018.93 | N84: 53630.61 | O84: 4469.2175 | P84: =IF(N$92=0,"",N84/N$92) -> 0.1076048259
A85: =" Consumption (CCF) "&A79 -> Consumption (CCF) 2010 | B85: 14260 | C85: 10279 | D85: 8478 | E85: 5237 | F85: 562 | G85: 400 | H85: 30 | I85: 50 | J85: 30 | K85: 2630 | L85: 3795 | M85: 4795 | N85: 50546 | O85: 4212.166667
A86: ="Water & Sewer Cost ($) "&A79 -> Water & Sewer Cost ($) 2010 | B86: 11981.43 | C86: 11981.43 | D86: 11591.7 | E86: 11591.7 | F86: 11591.7 | G86: 14760.9 | H86: 14760.9 | I86: 14760.9 | J86: 12821.85 | K86: 12821.85 | L86: 12821.85 | M86: 12320.06 | N86: 153806.27 | O86: 12817.18917 | P86: =IF(N$92=0,"",N86/N$92) -> 0.3085979612
A87: =" Consumption (GAL) "&A79 -> Consumption (GAL) 2010 | B87: 2205501 | C87: 2205501 | D87: 2080327 | E87: 2080327 | F87: 2080327 | G87: 2648845 | H87: 2648845 | I87: 2648845 | J87: 2301002 | K87: 2301002 | L87: 2301002 | M87: 2210986 | N87: 27712510 | O87: 2309375.833
A88: ="Alternative Energy Cost ($) "&A79 -> Alternative Energy Cost ($) 2010 | B88: 1070.3 | C88: 1535.6 | D88: 2324.3 | E88: 3180.1 | F88: 2017.4 | G88: 1923.9 | H88: 1561.3 | I88: 1420.9 | J88: 1081.6 | K88: 3180.1 | L88: 2017.4 | M88: 1923.9 | N88: 23236.8 | O88: 1936.4 | P88: =IF(N$92=0,"",N88/N$92) -> 0.04662247582
A89: =" Consumption (" &$D$50 &") "&A79 -> Consumption (CCF) 2010 | B89: 973000 | C89: 1396000 | D89: 2113000 | E89: 2891000 | F89: 1834000 | G89: 1749000 | H89: 1201000 | I89: 1093000 | J89: 832000 | K89: 2891000 | L89: 1834000 | M89: 1749000 | N89: 20556000 | O89: 1713000
A90: ="Other - "&$D$51&" Cost ($) "&A79 -> Other - Propane Cost ($) 2010 | B90: 1070.3 | C90: 1535.6 | D90: 2324.3 | E90: 3180.1 | F90: 2017.4 | G90: 1923.9 | H90: 2017.4 | I90: 1923.9 | J90: 1561.3 | K90: 1420.9 | L90: 1081.6 | M90: 1238.9 | N90: 21295.6 | O90: 1774.633333 | P90: =IF(N$92=0,"",N90/N$92) -> 0.04272763875
A91: =" Consumption (" &$D$52&") "&A79 -> Consumption (GAL) 2010 | B91: 973000 | C91: 1396000 | D91: 2113000 | E91: 2891000 | F91: 1834000 | G91: 1749000 | H91: 1834000 | I91: 1749000 | J91: 1201000 | K91: 1093000 | L91: 832000 | M91: 953000 | N91: 18618000 | O91: 1551500
A92: ="Total Utility Cost "&A79 -> Total Utility Cost 2010 | B92: =SUM(B80,B82,B84,B86,B88,B90) -> 52635.75 | C92: =SUM(C80,C82,C84,C86,C88,C90) -> 48963.98 | D92: 46351.45 | E92: 41917.48 | F92: 33844.21 | G92: 38855.99 | H92: 39503.13 | I92: 37091.05 | J92: 34208.53 | K92: 39630.2 | L92: 40025.21 | M92: 45376.41 | N92: 498403.39 | O92: 41533.61583 | P92: =SUM(P80,P82,P84,P86,P88,P90) -> 1
A93: ="Treatment Volume (" &$D$49&") "&A79 -> Treatment Volume (MGAL) 2010 | B93: 80.29 | C93: 75.6 | D93: 131.44 | E93: 106.5 | F93: 159.65 | G93: 92.82 | H93: 90.54 | I93: 89.6 | J93: 91.63 | K93: 98.34 | L93: 99.75 | M93: 106.42 | N93: 1222.58 | O93: 101.8816667
A94: ="Utility Cost/Treatment Volume ($/"&$D$49&") "&A79 -> Utility Cost/Treatment Volume ($/MGAL) 2010 | B94: =IF(B93=0,"",B92/B93) -> 655.5704322 | C94: =IF(C93=0,"",C92/C93) -> 647.6716931 | D94: 352.6434114 | E94: 393.5913615 | F94: 211.9900407 | G94: 418.6165697 | H94: 436.3058317 | I94: 413.9626116 | J94: 373.333297 | K94: 402.9916616 | L94: 401.2552381 | M94: 426.3898703 | N94: 5134.322019 | O94: 427.8601682
A95: ="Electric Utilization (kWh/"&$D$49&") "&A79 -> Electric Utilization (kWh/MGAL) 2010 | B95: =IF(B93=0,"",B81/B93) -> 2032.63171 | C95: =IF(C93=0,"",C81/C93) -> 2277.777778 | D95: 1145.769933 | E95: 1402.816901 | F95: 999.6868149 | G95: 1881.060116 | H95: 2016.78816 | I95: 1979.910714 | J95: 1894.576012 | K95: 1854.789506 | L95: 1870.676692 | M95: 1791.016726 | N95: 21147.50106 | O95: 1762.291755
A100: =A103 -> 2009
A101: Electric ($/kWh) | B101: =IF(N105=0,"",N104/N105) -> 0.09269787566 | D101: Natural Gas ($/CCF) | E101: =IF(N107=0,"",N106/N107) -> 1.927135869 | G101: No 2 Fuel Oil ($/CCF) | H101: =IF(N109=0,"",N108/N109) ->  | J101: Water/Sewer ($/GAL) | K101: =IF(N111=0,"",N110/N111) -> 0.00514796422 | M101: ="Alt. Energy: ($/" & $D$50&")" -> Alt. Energy: ($/CCF) | N101: =IF(N113=0,"",N112/N113) ->  | P101: ="Other Utility: " & $D$51 & " ($/" & $D$52&")" -> Other Utility: Propane ($/GAL) | Q101: =IF(N115=0,"",N114/N115) -> 
A103: 2009 | B103: January | C103: February | D103: March | E103: April | F103: May | G103: June | H103: July | I103: August | J103: September | K103: October | L103: November | M103: December | N103: TOTAL (Yr) | O103: Average | P103: % of Costs
A104: ="Electricity Cost ($) "&A103 -> Electricity Cost ($) 2009 | B104: 14414.4 | C104: 14016.24 | D104: 14667.84 | E104: 15102.36 | F104: 14001.12 | G104: 15200.64 | H104: 16216.8 | I104: 15066.96 | J104: 15607.2 | K104: 14628.06 | L104: 14525.28 | M104: 14588.64 | N104: =SUM(B104:M104) -> 178035.54 | O104: =IF(SUM(B104:M104)=0,"",AVERAGE(B104:M104)) -> 14836.295 | P104: =IF(N$116=0,"",N104/N$116) -> 0.4448082538
A105: =" Consumption (kWh) "& A103 -> Consumption (kWh) 2009 | B105: 156000 | C105: 151200 | D105: 158400 | E105: 163800 | F105: 151200 | G105: 163800 | H105: 174000 | I105: 160800 | J105: 168000 | K105: 157800 | L105: 157200 | M105: 158400 | N105: 1920600 | O105: 160050
A106: ="Natural Gas Cost ($) "&A103 -> Natural Gas Cost ($) 2009 | B106: 10020.11 | C106: 8990.54 | D106: 6016.02 | E106: 39510.2 | F106: 1445.01 | G106: 1189.38 | H106: 1657.95 | I106: 1003.1 | J106: 1002.98 | K106: 1663.18 | L106: 2132.23 | M106: 4557.24 | N106: 79187.94 | O106: 6598.995 | P106: =IF(N$116=0,"",N106/N$116) -> 0.1978450444
A107: =" Consumption (CCF) "&A103 -> Consumption (CCF) 2009 | B107: 8686 | C107: 8262 | D107: 5938 | E107: 4074 | F107: 1528 | G107: 1258 | H107: 1644 | I107: 994 | J107: 993 | K107: 1546 | L107: 2011 | M107: 4157 | N107: 41091 | O107: 3424.25
A108: ="No 2 Fuel Oil Cost ($) "&A103 -> No 2 Fuel Oil Cost ($) 2009 | N108: 0 | P108: =IF(N$116=0,"",N108/N$116) -> 0
A109: =" Consumption (CCF) "&A103 -> Consumption (CCF) 2009 | N109: 0
A110: ="Water & Sewer Cost ($) "&A103 -> Water & Sewer Cost ($) 2009 | B110: 10858.82 | C110: 10858.82 | D110: 10307.09 | E110: 10307.09 | F110: 10307.09 | G110: 14063.62 | H110: 14063.62 | I110: 14063.62 | J110: 12072.55 | K110: 12072.55 | L110: 12072.55 | M110: 11981.43 | N110: 143028.85 | O110: 11919.07083 | P110: =IF(N$116=0,"",N110/N$116) -> 0.3573467018
A111: =" Consumption (GAL) "&A103 -> Consumption (GAL) 2009 | B111: 2292025 | C111: 2292025 | D111: 2163361 | E111: 2163361 | F111: 2163361 | G111: 2609198 | H111: 2609198 | I111: 2609198 | J111: 2225449 | K111: 2225449 | L111: 2225449 | M111: 2205501 | N111: 27783575 | O111: 2315297.917
A112: ="Alternative Energy Cost ($) "&A103 -> Alternative Energy Cost ($) 2009 | N112: 0 | P112: =IF(N$116=0,"",N112/N$116) -> 0
A113: =" Consumption (" &$D$50 &") "&A103 -> Consumption (CCF) 2009 | N113: 0
A114: ="Other - "&$D$51&" Cost ($) "&A103 -> Other - Propane Cost ($) 2009 | N114: 0 | P114: =IF(N$116=0,"",N114/N$116) -> 0
A115: =" Consumption (" &$D$52&") "&A103 -> Consumption (GAL) 2009 | N115: 0
A116: ="Total Utility Cost "&A103 -> Total Utility Cost 2009 | B116: =SUM(B104,B106,B108,B110,B112,B114) -> 35293.33 | C116: =SUM(C104,C106,C108,C110,C112,C114) -> 33865.6 | D116: 30990.95 | E116: 64919.65 | F116: 25753.22 | G116: 30453.64 | H116: 31938.37 | I116: 30133.68 | J116: 28682.73 | K116: 28363.79 | L116: 28730.06 | M116: 31127.31 | N116: 400252.33 | O116: 33354.36083 | P116: =SUM(P104,P106,P108,P110,P112,P114) -> 1
A117: ="Treatment Volume (" &$D$49&") "&A103 -> Treatment Volume (MGAL) 2009 | B117: 68.2 | C117: 92.12 | D117: 149.42 | E117: 160.5 | F117: 118.42 | G117: 98.4 | H117: 98.89 | I117: 106.02 | J117: 55.8 | K117: 93.31 | L117: 66.3 | M117: 101.37 | N117: 1208.75 | O117: 100.7291667
A118: ="Utility Cost/Treatment Volume ($/"&$D$49&") "&A103 -> Utility Cost/Treatment Volume ($/MGAL) 2009 | B118: =IF(B117=0,"",B116/B117) -> 517.4975073 | C118: =IF(C117=0,"",C116/C117) -> 367.6248372 | D118: 207.4083121 | E118: 404.4838006 | F118: 217.4735687 | G118: 309.4882114 | H118: 322.968652 | I118: 284.2263724 | J118: 514.0274194 | K118: 303.9737434 | L118: 433.3342383 | M118: 307.0662918 | N118: 4189.572955 | O118: 349.1310796
A119: ="Electric Utilization (kWh/"&$D$49&") "&A103 -> Electric Utilization (kWh/MGAL) 2009 | B119: =IF(B117=0,"",B105/B117) -> 2287.390029 | C119: =IF(C117=0,"",C105/C117) -> 1641.337386 | D119: 1060.09905 | E119: 1020.560748 | F119: 1276.811349 | G119: 1664.634146 | H119: 1759.530792 | I119: 1516.694963 | J119: 3010.752688 | K119: 1691.13707 | L119: 2371.040724 | M119: 1562.592483 | N119: 20862.58143 | O119: 1738.548452
A122: =A125 -> 2008
A123: Electric ($/kWh) | B123: =IF(N127=0,"",N126/N127) -> 0.0867027441 | D123: Natural Gas ($/CCF) | E123: =IF(N129=0,"",N128/N129) -> 1.204928306 | G123: No 2 Fuel Oil ($/CCF) | H123: =IF(N131=0,"",N130/N131) ->  | J123: Water/Sewer ($/GAL) | K123: =IF(N133=0,"",N132/N133) -> 0.004376863208 | M123: ="Alt. Energy: ($/" & $D$50&")" -> Alt. Energy: ($/CCF) | N123: =IF(N135=0,"",N134/N135) ->  | P123: ="Other Utility: " & $D$51 & " ($/" & $D$52&")" -> Other Utility: Propane ($/GAL) | Q123: =IF(N137=0,"",N136/N137) -> 
A125: 2008 | B125: January | C125: February | D125: March | E125: April | F125: May | G125: June | H125: July | I125: August | J125: September | K125: October | L125: November | M125: December | N125: TOTAL (Yr) | O125: Average | P125: % of Costs
A126: ="Electricity Cost ($) "&A125 -> Electricity Cost ($) 2008 | B126: 12112.8 | C126: 13546.26 | D126: 13777.68 | E126: 13365.72 | F126: 12092.64 | G126: 14438.88 | H126: 13808.16 | I126: 13644.96 | J126: 13840.14 | K126: 13540.8 | L126: 13990.8 | M126: 14877 | N126: =SUM(B126:M126) -> 163035.84 | O126: =IF(SUM(B126:M126)=0,"",AVERAGE(B126:M126)) -> 13586.32 | P126: =IF(N$138=0,"",N126/N$138) -> 0.4616677698
A127: =" Consumption (kWh) "& A125 -> Consumption (kWh) 2008 | B127: 147000 | C127: 163800 | D127: 166800 | E127: 162600 | F127: 146400 | G127: 162600 | H127: 154800 | I127: 148800 | J127: 150600 | K127: 148800 | L127: 157200 | M127: 171000 | N127: 1880400 | O127: 156700
A128: ="Natural Gas Cost ($) "&A125 -> Natural Gas Cost ($) 2008 | B128: 9387.02 | C128: 9435.17 | D128: 8385.05 | E128: 3180.12 | F128: 2393.45 | G128: 2209.78 | H128: 2361.52 | I128: 1831.41 | J128: 3186.77 | K128: 3198.96 | L128: 4058.7 | M128: 9111.1 | N128: 58739.05 | O128: 4894.920833 | P128: =IF(N$138=0,"",N128/N$138) -> 0.1663310731
A129: =" Consumption (CCF) "&A125 -> Consumption (CCF) 2008 | B129: 8380 | C129: 8423 | D129: 7485 | E129: 2494 | F129: 1876 | G129: 1565 | H129: 1584 | I129: 1230 | J129: 2143 | K129: 2190 | L129: 3505 | M129: 7874 | N129: 48749 | O129: 4062.416667
A130: ="No 2 Fuel Oil Cost ($) "&A125 -> No 2 Fuel Oil Cost ($) 2008 | N130: 0 | P130: =IF(N$138=0,"",N130/N$138) -> 0
A131: =" Consumption (CCF) "&A125 -> Consumption (CCF) 2008 | N131: 0
A132: ="Water & Sewer Cost ($) "&A125 -> Water & Sewer Cost ($) 2008 | B132: 8521.84 | C132: 8521.84 | D132: 9367.29 | E132: 9367.29 | F132: 9367.29 | G132: 13942.72 | H132: 13942.72 | I132: 13942.72 | J132: 11179.32 | K132: 11179.32 | L132: 11179.32 | M132: 10858.82 | N132: 131370.49 | O132: 10947.54083 | P132: =IF(N$138=0,"",N132/N$138) -> 0.3720011571
A133: =" Consumption (GAL) "&A125 -> Consumption (GAL) 2008 | B133: 2261355 | C133: 2261355 | D133: 2407973 | E133: 2407973 | F133: 2407973 | G133: 2963026 | H133: 2963026 | I133: 2963026 | J133: 2362342 | K133: 2362342 | L133: 2362342 | M133: 2292025 | N133: 30014758 | O133: 2501229.833
A134: ="Alternative Energy Cost ($) "&A125 -> Alternative Energy Cost ($) 2008 | N134: 0 | P134: =IF(N$138=0,"",N134/N$138) -> 0
A135: =" Consumption (" &$D$50 &") "&A125 -> Consumption (CCF) 2008 | N135: 0
A136: ="Other - "&$D$51&" Cost ($) "&A125 -> Other - Propane Cost ($) 2008 | N136: 0 | P136: =IF(N$138=0,"",N136/N$138) -> 0
A137: =" Consumption (" &$D$52&") "&A125 -> Consumption (GAL) 2008 | N137: 0
A138: ="Total Utility Cost "&A125 -> Total Utility Cost 2008 | B138: =SUM(B126,B128,B130,B132,B134,B136) -> 30021.66 | C138: =SUM(C126,C128,C130,C132,C134,C136) -> 31503.27 | D138: 31530.02 | E138: 25913.13 | F138: 23853.38 | G138: 30591.38 | H138: 30112.4 | I138: 29419.09 | J138: 28206.23 | K138: 27919.08 | L138: 29228.82 | M138: 34846.92 | N138: 353145.38 | O138: 29428.78167 | P138: =SUM(P126,P128,P130,P132,P134,P136) -> 1
A139: ="Treatment Volume (" &$D$49&") "&A125 -> Treatment Volume (MGAL) 2008 | B139: 114.39 | C139: 126.15 | D139: 175.77 | E139: 126.3 | F139: 97.96 | G139: 98.7 | H139: 94.86 | I139: 78.12 | J139: 93.3 | K139: 80.91 | L139: 77.7 | M139: 99.82 | N139: 1263.98 | O139: 105.3316667
A140: ="Utility Cost/Treatment Volume ($/"&$D$49&") "&A125 -> Utility Cost/Treatment Volume ($/MGAL) 2008 | B140: =IF(B139=0,"",B138/B139) -> 262.4500393 | C140: =IF(C139=0,"",C138/C139) -> 249.7286564 | D140: 179.3822609 | E140: 205.1712589 | F140: 243.501225 | G140: 309.9430598 | H140: 317.4404385 | I140: 376.5884537 | J140: 302.3175777 | K140: 345.0634038 | L140: 376.1752896 | M140: 349.0975756 | N140: 3516.859239 | O140: 293.0716033
A141: ="Electric Utilization (kWh/"&$D$49&") "&A125 -> Electric Utilization (kWh/MGAL) 2008 | B141: =IF(B139=0,"",B127/B139) -> 1285.077367 | C141: =IF(C139=0,"",C127/C139) -> 1298.454221 | D141: 948.9674006 | E141: 1287.410926 | F141: 1494.487546 | G141: 1647.416413 | H141: 1631.878558 | I141: 1904.761905 | J141: 1614.14791 | K141: 1839.08046 | L141: 2023.166023 | M141: 1713.08355 | N141: 18687.93228 | O141: 1557.32769
A144: =A147 -> 2007
A145: Electric ($/kWh) | B145: =IF(N149=0,"",N148/N149) -> 0.07658545455 | D145: Natural Gas ($/CCF) | E145: =IF(N151=0,"",N150/N151) -> 1.082638617 | G145: No 2 Fuel Oil ($/CCF) | H145: =IF(N153=0,"",N152/N153) ->  | J145: Water/Sewer ($/GAL) | K145: =IF(N155=0,"",N154/N155) -> 0.003403951656 | M145: ="Alt. Energy: ($/" & $D$50&")" -> Alt. Energy: ($/CCF) | N145: =IF(N157=0,"",N156/N157) ->  | P145: ="Other Utility: " & $D$51 & " ($/" & $D$52&")" -> Other Utility: Propane ($/GAL) | Q145: =IF(N159=0,"",N158/N159) -> 
A147: 2007 | B147: January | C147: February | D147: March | E147: April | F147: May | G147: June | H147: July | I147: August | J147: September | K147: October | L147: November | M147: December | N147: TOTAL (Yr) | O147: Average | P147: % of Costs
A148: ="Electricity Cost ($) "&A147 -> Electricity Cost ($) 2007 | B148: 10482.54 | C148: 11025 | D148: 11762.52 | E148: 10951.92 | F148: 10960.68 | G148: 11049.72 | H148: 11888.64 | I148: 10931.52 | J148: 12308.4 | K148: 12402.72 | L148: 12991.74 | M148: 12247.2 | N148: =SUM(B148:M148) -> 139002.6 | O148: =IF(SUM(B148:M148)=0,"",AVERAGE(B148:M148)) -> 11583.55 | P148: =IF(N$160=0,"",N148/N$160) -> 0.4826495925
A149: =" Consumption (kWh) "& A147 -> Consumption (kWh) 2007 | B149: 143400 | C149: 150000 | D149: 159600 | E149: 147600 | F149: 144600 | G149: 145200 | H149: 154800 | I149: 141600 | J149: 157800 | K149: 156600 | L149: 162600 | M149: 151200 | N149: 1815000 | O149: 151250
A150: ="Natural Gas Cost ($) "&A147 -> Natural Gas Cost ($) 2007 | B150: 9215.95 | C150: 8989.92 | D150: 6731.37 | E150: 2957.76 | F150: 1755.6 | G150: 1518.98 | H150: 1697.06 | I150: 1230.08 | J150: 1102.1 | K150: 2272.6 | L150: 4638.79 | M150: 7602.39 | N150: 49712.6 | O150: 4142.716667 | P150: =IF(N$160=0,"",N150/N$160) -> 0.1726137938
A151: =" Consumption (CCF) "&A147 -> Consumption (CCF) 2007 | B151: 8455 | C151: 8324 | D151: 6291 | E151: 2844 | F151: 1672 | G151: 1433 | H151: 1601 | I151: 1155 | J151: 1030 | K151: 2066 | L151: 4198 | M151: 6849 | N151: 45918 | O151: 3826.5
A152: ="No 2 Fuel Oil Cost ($) "&A147 -> No 2 Fuel Oil Cost ($) 2007 | N152: 0 | P152: =IF(N$160=0,"",N152/N$160) -> 0
A153: =" Consumption (CCF) "&A147 -> Consumption (CCF) 2007 | N153: 0
A154: ="Water & Sewer Cost ($) "&A147 -> Water & Sewer Cost ($) 2007 | B154: 6876.88 | C154: 6876.88 | D154: 7542.09 | E154: 7542.09 | F154: 7542.09 | G154: 10130.4 | H154: 10130.4 | I154: 10130.4 | J154: 7996.91 | K154: 7996.91 | L154: 7996.91 | M154: 8521.84 | N154: 99283.8 | O154: 8273.65 | P154: =IF(N$160=0,"",N154/N$160) -> 0.3447366137
A155: =" Consumption (GAL) "&A147 -> Consumption (GAL) 2007 | B155: 2351121 | C155: 2351121 | D155: 2559827 | E155: 2559827 | F155: 2559827 | G155: 2706445 | H155: 2706445 | I155: 2706445 | J155: 2134935 | K155: 2134935 | L155: 2134935 | M155: 2261355 | N155: 29167218 | O155: 2430601.5
A156: ="Alternative Energy Cost ($) "&A147 -> Alternative Energy Cost ($) 2007 | N156: 0 | P156: =IF(N$160=0,"",N156/N$160) -> 0
A157: =" Consumption (" &$D$50 &") "&A147 -> Consumption (CCF) 2007 | N157: 0
A158: ="Other - "&$D$51&" Cost ($) "&A147 -> Other - Propane Cost ($) 2007 | N158: 0 | P158: =IF(N$160=0,"",N158/N$160) -> 0
A159: =" Consumption (" &$D$52&") "&A147 -> Consumption (GAL) 2007 | N159: 0
A160: ="Total Utility Cost "&A147 -> Total Utility Cost 2007 | B160: =SUM(B148,B150,B152,B154,B156,B158) -> 26575.37 | C160: =SUM(C148,C150,C152,C154,C156,C158) -> 26891.8 | D160: 26035.98 | E160: 21451.77 | F160: 20258.37 | G160: 22699.1 | H160: 23716.1 | I160: 22292 | J160: 21407.41 | K160: 22672.23 | L160: 25627.44 | M160: 28371.43 | N160: 287999 | O160: 23999.91667 | P160: =SUM(P148,P150,P152,P154,P156,P158) -> 1
A161: ="Treatment Volume (" &$D$49&") "&A147 -> Treatment Volume (MGAL) 2007 | B161: 99.92 | C161: 101.98 | D161: 162.39 | E161: 138.63 | F161: 102.58 | G161: 96.44 | H161: 92.03 | I161: 74.89 | J161: 76.28 | K161: 84.52 | L161: 86.34 | M161: 88.46 | N161: 1204.46 | O161: 100.3716667
A162: ="Utility Cost/Treatment Volume ($/"&$D$49&") "&A147 -> Utility Cost/Treatment Volume ($/MGAL) 2007 | B162: =IF(B161=0,"",B160/B161) -> 265.9664732 | C162: =IF(C161=0,"",C160/C161) -> 263.6968033 | D162: 160.3299464 | E162: 154.7411816 | F162: 197.4884968 | G162: 235.3701783 | H162: 257.6996632 | I162: 297.6632394 | J162: 280.6425013 | K162: 268.2469238 | L162: 296.8200139 | M162: 320.7260909 | N162: 2999.391512 | O162: 249.9492927
A163: ="Electric Utilization (kWh/"&$D$49&") "&A147 -> Electric Utilization (kWh/MGAL) 2007 | B163: =IF(B161=0,"",B149/B161) -> 1435.148118 | C163: =IF(C161=0,"",C149/C161) -> 1470.876642 | D163: 982.8191391 | E163: 1064.704609 | F163: 1409.631507 | G163: 1505.599336 | H163: 1682.060198 | I163: 1890.773134 | J163: 2068.694284 | K163: 1852.815902 | L163: 1883.252259 | M163: 1709.247117 | N163: 18955.62225 | O163: 1579.635187
B205: Year | C205: Months | D205: Elec Consumption | E205: Monthly Elec Cost | F205: Monthly Gas Cost | G205: Monthly Water Treated | H205: Elec Rate | I205: Monthly Gas Use | J205: Monthly Fuel2 Use | K205: Monthly Fuel2 Cost | L205: Monthly Alternative Use | M205: Monthly Alt Cost | N205: Monthly Other Use | O205: Monthly Other Cost | P205: Monthly Water & Sewer Use | Q205: Monthly Water & Sewer Cost
B207: Sort consumption to take the most recent 12 months with values
B209: =$A$57 -> 2011 | C209: 12 | D209: =$M$59 -> 0 | E209: =$M$58 -> 0 | F209: =$M$60 -> 0 | G209: =$M$71 -> 0 | H209: =$B$55 -> 0.1017981815 | I209: =$M$61 -> 0 | J209: =$M$63 -> 0 | K209: =$M$62 -> 0 | L209: =$M$67 -> 0 | M209: =$M$66 -> 0 | N209: =$M$69 -> 0 | O209: =$M$68 -> 0 | P209: =$M$65 -> 0 | Q209: =$M$64 -> 0
B210: 2011 | C210: 11 | D210: =$L$59 -> 0 | E210: =$L$58 -> 0 | F210: =$L$60 -> 0 | G210: =$L$71 -> 0 | H210: 0.1017981815 | I210: =$L$61 -> 0 | J210: =$L$63 -> 0 | K210: =$L$62 -> 0 | L210: =$L$67 -> 0 | M210: =$L$66 -> 0 | N210: =$L$69 -> 0 | O210: =$L$68 -> 0 | P210: =$L$65 -> 0 | Q210: =$L$64 -> 0
B211: 2011 | C211: 10 | D211: =$K$59 -> 0 | E211: =$K$58 -> 0 | F211: =$K$60 -> 0 | G211: =$K$71 -> 0 | H211: 0.1017981815 | I211: =$K$61 -> 0 | J211: =$K$63 -> 0 | K211: =$K$62 -> 0 | L211: =$K$67 -> 0 | M211: =$K$66 -> 0 | N211: =$K$69 -> 0 | O211: =$K$68 -> 0 | P211: =$K$65 -> 0 | Q211: =$K$64 -> 0
B212: 2011 | C212: 9 | D212: =$J$59 -> 0 | E212: =$J$58 -> 0 | F212: =$J$60 -> 0 | G212: =$J$71 -> 0 | H212: 0.1017981815 | I212: =$J$61 -> 0 | J212: =$J$63 -> 0 | K212: =$J$62 -> 0 | L212: =$J$67 -> 0 | M212: =$J$66 -> 0 | N212: =$J$69 -> 0 | O212: =$J$68 -> 0 | P212: =$J$65 -> 0 | Q212: =$J$64 -> 0
B213: 2011 | C213: 8 | D213: =$I$59 -> 0 | E213: =$I$58 -> 0 | F213: =$I$60 -> 0 | G213: =$I$71 -> 0 | H213: 0.1017981815 | I213: =$I$61 -> 0 | J213: =$I$63 -> 0 | K213: =$I$62 -> 0 | L213: =$I$67 -> 0 | M213: =$I$66 -> 0 | N213: =$I$69 -> 0 | O213: =$I$68 -> 0 | P213: =$I$65 -> 0 | Q213: =$I$64 -> 0
B214: 2011 | C214: 7 | D214: =$H$59 -> 0 | E214: =$H$58 -> 0 | F214: =$H$60 -> 0 | G214: =$H$71 -> 0 | H214: 0.1017981815 | I214: =$H$61 -> 0 | J214: =$H$63 -> 0 | K214: =$H$62 -> 0 | L214: =$H$67 -> 0 | M214: =$H$66 -> 0 | N214: =$H$69 -> 0 | O214: =$H$68 -> 0 | P214: =$H$65 -> 0 | Q214: =$H$64 -> 0
B215: 2011 | C215: 6 | D215: =$G$59 -> 183800 | E215: =$G$58 -> 19997.44 | F215: =$G$60 -> 1428.9 | G215: =$G$71 -> 94.7 | H215: 0.1017981815 | I215: =$G$61 -> 1299 | J215: =$G$63 -> 400 | K215: =$G$62 -> 43.09 | L215: =$G$67 -> 229400 | M215: =$G$66 -> 25071.2 | N215: =$G$69 -> 1749000 | O215: =$G$68 -> 1923.9 | P215: =$G$65 -> 3013644 | Q215: =$G$64 -> 16794.47
B216: 2011 | C216: 5 | D216: =$F$59 -> 204000 | E216: =$F$58 -> 20930.4 | F216: =$F$60 -> 1525.44 | G216: =$F$71 -> 111.2 | H216: 0.1017981815 | I216: =$F$61 -> 1362 | J216: =$F$63 -> 562 | K216: =$F$62 -> 534.92 | L216: =$F$67 -> 1548000 | M216: =$F$66 -> 2012.4 | N216: =$F$69 -> 1834000 | O216: =$F$68 -> 2017.4 | P216: =$F$65 -> 2107257 | Q216: =$F$64 -> 11741.82
B217: 2011 | C217: 4 | D217: =$E$59 -> 192800 | E217: =$E$58 -> 19704.16 | F217: =$E$60 -> 3292.82 | G217: =$E$71 -> 118.4 | H217: 0.1017981815 | I217: =$E$61 -> 2914 | J217: =$E$63 -> 5237 | K217: =$E$62 -> 5077.59 | L217: =$E$67 -> 1842000 | M217: =$E$66 -> 2394.6 | N217: =$E$69 -> 2891000 | O217: =$E$68 -> 3180.1 | P217: =$E$65 -> 2107257 | Q217: =$E$64 -> 11741.82
B218: 2011 | C218: 3 | D218: =$D$59 -> 187600 | E218: =$D$58 -> 19247.76 | F218: =$D$60 -> 5015.3 | G218: =$D$71 -> 116.7 | H218: 0.1017981815 | I218: =$D$61 -> 4331 | J218: =$D$63 -> 8478 | K218: =$D$62 -> 8587.05 | L218: =$D$67 -> 1978000 | M218: =$D$66 -> 2571.4 | N218: =$D$69 -> 2113000 | O218: =$D$68 -> 2324.3 | P218: =$D$65 -> 2107257 | Q218: =$D$64 -> 11741.82
B219: 2011 | C219: 2 | D219: =$C$59 -> 189800 | E219: =$C$58 -> 19492.46 | F219: =$C$60 -> 5556.68 | G219: =$C$71 -> 107.5 | H219: 0.1017981815 | I219: =$C$61 -> 4782 | J219: =$C$63 -> 10279 | K219: =$C$62 -> 11166.71 | L219: =$C$67 -> 1566000 | M219: =$C$66 -> 2035.8 | N219: =$C$69 -> 1396000 | O219: =$C$68 -> 1535.6 | P219: =$C$65 -> 2210986 | Q219: =$C$64 -> 12320.06
B220: 2011 | C220: 1 | D220: =$B$59 -> 196800 | E220: =$B$58 -> 18184.32 | F220: =$B$60 -> 6146.54 | G220: =$B$71 -> 112.24 | H220: 0.1017981815 | I220: =$B$61 -> 5276 | J220: =$B$63 -> 14260 | K220: =$B$62 -> 16231.03 | L220: =$B$67 -> 1473000 | M220: =$B$66 -> 1914.9 | N220: =$B$69 -> 973000 | O220: =$B$68 -> 1070.3 | P220: =$B$65 -> 2210986 | Q220: =$B$64 -> 12320.06
B221: =$A$79 -> 2010 | C221: 12 | D221: =$M$81 -> 190600 | E221: =$M$80 -> 18335.72 | F221: =$M$82 -> 6538.9 | G221: =$M$93 -> 106.42 | H221: =B$77 -> 0.1020114602 | I221: =$M$83 -> 5686 | J221: =$M$85 -> 4795 | K221: =$M$84 -> 5018.93 | L221: =$M$89 -> 1749000 | M221: =$M$88 -> 1923.9 | N221: =$M$91 -> 953000 | O221: =$M$90 -> 1238.9 | P221: =$M$87 -> 2210986 | Q221: =$M$86 -> 12320.06
B222: 2010 | C222: 11 | D222: =$L$81 -> 186600 | E222: =$L$80 -> 17876.28 | F222: =$L$82 -> 2209.15 | G222: =$L$93 -> 99.75 | H222: 0.1020114602 | I222: =$L$83 -> 1955 | J222: =$L$85 -> 3795 | K222: =$L$84 -> 4018.93 | L222: =$L$89 -> 1834000 | M222: =$L$88 -> 2017.4 | N222: =$L$91 -> 832000 | O222: =$L$90 -> 1081.6 | P222: =$L$87 -> 2301002 | Q222: =$L$86 -> 12821.85
B223: 2010 | C223: 10 | D223: =$K$81 -> 182400 | E223: =$K$80 -> 18057.6 | F223: =$K$82 -> 1324.23 | G223: =$K$93 -> 98.34 | H223: 0.1020114602 | I223: =$K$83 -> 1193 | J223: =$K$85 -> 2630 | K223: =$K$84 -> 2825.52 | L223: =$K$89 -> 2891000 | M223: =$K$88 -> 3180.1 | N223: =$K$91 -> 1093000 | O223: =$K$90 -> 1420.9 | P223: =$K$87 -> 2301002 | Q223: =$K$86 -> 12821.85
B224: 2010 | C224: 9 | D224: =$J$81 -> 173600 | E224: =$J$80 -> 17689.84 | F224: =$J$82 -> 1018.35 | G224: =$J$93 -> 91.63 | H224: 0.1020114602 | I224: =$J$83 -> 930 | J224: =$J$85 -> 30 | K224: =$J$84 -> 35.59 | L224: =$J$89 -> 832000 | M224: =$J$88 -> 1081.6 | N224: =$J$91 -> 1201000 | O224: =$J$90 -> 1561.3 | P224: =$J$87 -> 2301002 | Q224: =$J$86 -> 12821.85
B225: 2010 | C225: 8 | D225: =$I$81 -> 177400 | E225: =$I$80 -> 18041.58 | F225: =$I$82 -> 888.13 | G225: =$I$93 -> 89.6 | H225: 0.1020114602 | I225: =$I$83 -> 875 | J225: =$I$85 -> 50 | K225: =$I$84 -> 55.64 | L225: =$I$89 -> 1093000 | M225: =$I$88 -> 1420.9 | N225: =$I$91 -> 1749000 | O225: =$I$90 -> 1923.9 | P225: =$I$87 -> 2648845 | Q225: =$I$86 -> 14760.9
B226: 2010 | C226: 7 | D226: =$H$81 -> 182600 | E226: =$H$80 -> 19939.92 | F226: =$H$82 -> 1188 | G226: =$H$93 -> 90.54 | H226: 0.1020114602 | I226: =$H$83 -> 1080 | J226: =$H$85 -> 30 | K226: =$H$84 -> 35.61 | L226: =$H$89 -> 1201000 | M226: =$H$88 -> 1561.3 | N226: =$H$91 -> 1834000 | O226: =$H$90 -> 2017.4 | P226: =$H$87 -> 2648845 | Q226: =$H$86 -> 14760.9
B227: 2010 | C227: 6 | D227: =$G$81 -> 174600 | E227: =$G$80 -> 18996.48 | F227: =$G$82 -> 1207.72 | G227: =$G$93 -> 92.82 | H227: 0.1020114602 | I227: =$G$83 -> 1108 | J227: =$G$85 -> 400 | K227: =$G$84 -> 43.09 | L227: =$G$89 -> 1749000 | M227: =$G$88 -> 1923.9 | N227: =$G$91 -> 1749000 | O227: =$G$90 -> 1923.9 | P227: =$G$87 -> 2648845 | Q227: =$G$86 -> 14760.9
B228: 2010 | C228: 5 | D228: =$F$81 -> 159600 | E228: =$F$80 -> 16374.96 | F228: =$F$82 -> 1307.83 | G228: =$F$93 -> 159.65 | H228: 0.1020114602 | I228: =$F$83 -> 1276 | J228: =$F$85 -> 562 | K228: =$F$84 -> 534.92 | L228: =$F$89 -> 1834000 | M228: =$F$88 -> 2017.4 | N228: =$F$91 -> 1834000 | O228: =$F$90 -> 2017.4 | P228: =$F$87 -> 2080327 | Q228: =$F$86 -> 11591.7
B229: 2010 | C229: 4 | D229: =$E$81 -> 149400 | E229: =$E$80 -> 15268.68 | F229: =$E$82 -> 3619.31 | G229: =$E$93 -> 106.5 | H229: 0.1020114602 | I229: =$E$83 -> 3601 | J229: =$E$85 -> 5237 | K229: =$E$84 -> 5077.59 | L229: =$E$89 -> 2891000 | M229: =$E$88 -> 3180.1 | N229: =$E$91 -> 2891000 | O229: =$E$90 -> 3180.1 | P229: =$E$87 -> 2080327 | Q229: =$E$86 -> 11591.7
B230: 2010 | C230: 3 | D230: =$D$81 -> 150600 | E230: =$D$80 -> 15451.56 | F230: =$D$82 -> 6072.54 | G230: =$D$93 -> 131.44 | H230: 0.1020114602 | I230: =$D$83 -> 5769 | J230: =$D$85 -> 8478 | K230: =$D$84 -> 8587.05 | L230: =$D$89 -> 2113000 | M230: =$D$88 -> 2324.3 | N230: =$D$91 -> 2113000 | O230: =$D$90 -> 2324.3 | P230: =$D$87 -> 2080327 | Q230: =$D$86 -> 11591.7
B231: 2010 | C231: 2 | D231: =$C$81 -> 172200 | E231: =$C$80 -> 17684.94 | F231: =$C$82 -> 5059.7 | G231: =$C$93 -> 75.6 | H231: 0.1020114602 | I231: =$C$83 -> 4659 | J231: =$C$85 -> 10279 | K231: =$C$84 -> 11166.71 | L231: =$C$89 -> 1396000 | M231: =$C$88 -> 1535.6 | N231: =$C$91 -> 1396000 | O231: =$C$90 -> 1535.6 | P231: =$C$87 -> 2205501 | Q231: =$C$86 -> 11981.43
B232: 2010 | C232: 1 | D232: =$B$81 -> 163200 | E232: =$B$80 -> 16711.68 | F232: =$B$82 -> 5571.01 | G232: =$B$93 -> 80.29 | H232: 0.1020114602 | I232: =$B$83 -> 4918 | J232: =$B$85 -> 14260 | K232: =$B$84 -> 16231.03 | L232: =$B$89 -> 973000 | M232: =$B$88 -> 1070.3 | N232: =$B$91 -> 973000 | O232: =$B$90 -> 1070.3 | P232: =$B$87 -> 2205501 | Q232: =$B$86 -> 11981.43
B233: =$A$103 -> 2009 | C233: 12 | D233: =$M$105 -> 158400 | E233: =$M$104 -> 14588.64 | F233: =$M$106 -> 4557.24 | G233: =$M$117 -> 101.37 | H233: =$B$101 -> 0.09269787566 | I233: =$M$107 -> 4157 | J233: =$M$109 -> 0 | K233: =$M$108 -> 0 | L233: =$M$113 -> 0 | M233: =$M$112 -> 0 | N233: =$M$115 -> 0 | O233: =$M$114 -> 0 | P233: =$M$111 -> 2205501 | Q233: =$M$110 -> 11981.43
B234: 2009 | C234: 11 | D234: =$L$105 -> 157200 | E234: =$L$104 -> 14525.28 | F234: =$L$106 -> 2132.23 | G234: =$L$117 -> 66.3 | H234: 0.09269787566 | I234: =$L$107 -> 2011 | J234: =$L$109 -> 0 | K234: =$L$108 -> 0 | L234: =$L$113 -> 0 | M234: =$L$112 -> 0 | N234: =$L$115 -> 0 | O234: =$L$114 -> 0 | P234: =$L$111 -> 2225449 | Q234: =$L$110 -> 12072.55
B235: 2009 | C235: 10 | D235: =$K$105 -> 157800 | E235: =$K$104 -> 14628.06 | F235: =$K$106 -> 1663.18 | G235: =$K$117 -> 93.31 | H235: 0.09269787566 | I235: =$K$107 -> 1546 | J235: =$K$109 -> 0 | K235: =$K$108 -> 0 | L235: =$K$113 -> 0 | M235: =$K$112 -> 0 | N235: =$K$115 -> 0 | O235: =$K$114 -> 0 | P235: =$K$111 -> 2225449 | Q235: =$K$110 -> 12072.55
B236: 2009 | C236: 9 | D236: =$J$105 -> 168000 | E236: =$J$104 -> 15607.2 | F236: =$J$106 -> 1002.98 | G236: =$J$117 -> 55.8 | H236: 0.09269787566 | I236: =$J$107 -> 993 | J236: =$J$109 -> 0 | K236: =$J$108 -> 0 | L236: =$J$113 -> 0 | M236: =$J$112 -> 0 | N236: =$J$115 -> 0 | O236: =$J$114 -> 0 | P236: =$J$111 -> 2225449 | Q236: =$J$110 -> 12072.55
B237: 2009 | C237: 8 | D237: =$I$105 -> 160800 | E237: =$I$104 -> 15066.96 | F237: =$I$106 -> 1003.1 | G237: =$I$117 -> 106.02 | H237: 0.09269787566 | I237: =$I$107 -> 994 | J237: =$I$109 -> 0 | K237: =$I$108 -> 0 | L237: =$I$113 -> 0 | M237: =$I$112 -> 0 | N237: =$I$115 -> 0 | O237: =$I$114 -> 0 | P237: =$I$111 -> 2609198 | Q237: =$I$110 -> 14063.62
B238: 2009 | C238: 7 | D238: =$H$105 -> 174000 | E238: =$H$104 -> 16216.8 | F238: =$H$106 -> 1657.95 | G238: =$H$117 -> 98.89 | H238: 0.09269787566 | I238: =$H$107 -> 1644 | J238: =$H$109 -> 0 | K238: =$H$108 -> 0 | L238: =$H$113 -> 0 | M238: =$H$112 -> 0 | N238: =$H$115 -> 0 | O238: =$H$114 -> 0 | P238: =$H$111 -> 2609198 | Q238: =$H$110 -> 14063.62
B239: 2009 | C239: 6 | D239: =$G$105 -> 163800 | E239: =$G$104 -> 15200.64 | F239: =$G$106 -> 1189.38 | G239: =$G$117 -> 98.4 | H239: 0.09269787566 | I239: =$G$107 -> 1258 | J239: =$G$109 -> 0 | K239: =$G$108 -> 0 | L239: =$G$113 -> 0 | M239: =$G$112 -> 0 | N239: =$G$115 -> 0 | O239: =$G$114 -> 0 | P239: =$G$111 -> 2609198 | Q239: =$G$110 -> 14063.62
B240: 2009 | C240: 5 | D240: =$F$105 -> 151200 | E240: =$F$104 -> 14001.12 | F240: =$F$106 -> 1445.01 | G240: =$F$117 -> 118.42 | H240: 0.09269787566 | I240: =$F$107 -> 1528 | J240: =$F$109 -> 0 | K240: =$F$108 -> 0 | L240: =$F$113 -> 0 | M240: =$F$112 -> 0 | N240: =$F$115 -> 0 | O240: =$F$114 -> 0 | P240: =$F$111 -> 2163361 | Q240: =$F$110 -> 10307.09
B241: 2009 | C241: 4 | D241: =$E$105 -> 163800 | E241: =$E$104 -> 15102.36 | F241: =$E$106 -> 39510.2 | G241: =$E$117 -> 160.5 | H241: 0.09269787566 | I241: =$E$107 -> 4074 | J241: =$E$109 -> 0 | K241: =$E$108 -> 0 | L241: =$E$113 -> 0 | M241: =$E$112 -> 0 | N241: =$E$115 -> 0 | O241: =$E$114 -> 0 | P241: =$E$111 -> 2163361 | Q241: =$E$110 -> 10307.09
B242: 2009 | C242: 3 | D242: =$D$105 -> 158400 | E242: =$D$104 -> 14667.84 | F242: =$D$106 -> 6016.02 | G242: =$D$117 -> 149.42 | H242: 0.09269787566 | I242: =$D$107 -> 5938 | J242: =$D$109 -> 0 | K242: =$D$108 -> 0 | L242: =$D$113 -> 0 | M242: =$D$112 -> 0 | N242: =$D$115 -> 0 | O242: =$D$114 -> 0 | P242: =$D$111 -> 2163361 | Q242: =$D$110 -> 10307.09
B243: 2009 | C243: 2 | D243: =$C$105 -> 151200 | E243: =$C$104 -> 14016.24 | F243: =$C$106 -> 8990.54 | G243: =$C$117 -> 92.12 | H243: 0.09269787566 | I243: =$C$107 -> 8262 | J243: =$C$109 -> 0 | K243: =$C$108 -> 0 | L243: =$C$113 -> 0 | M243: =$C$112 -> 0 | N243: =$C$115 -> 0 | O243: =$C$114 -> 0 | P243: =$C$111 -> 2292025 | Q243: =$C$110 -> 10858.82
B244: 2009 | C244: 1 | D244: =$B$105 -> 156000 | E244: =$B$104 -> 14414.4 | F244: =$B$106 -> 10020.11 | G244: =$B$117 -> 68.2 | H244: 0.09269787566 | I244: =$B$107 -> 8686 | J244: =$B$109 -> 0 | K244: =$B$108 -> 0 | L244: =$B$113 -> 0 | M244: =$B$112 -> 0 | N244: =$B$115 -> 0 | O244: =$B$114 -> 0 | P244: =$B$111 -> 2292025 | Q244: =$B$110 -> 10858.82
B245: =$A$125 -> 2008 | C245: 12 | D245: =$M$127 -> 171000 | E245: =$M$126 -> 14877 | F245: =$M$128 -> 9111.1 | G245: =$M$139 -> 99.82 | H245: =B$123 -> 0.0867027441 | I245: =$M$129 -> 7874 | J245: =$M$131 -> 0 | K245: =$M$130 -> 0 | L245: =$M$135 -> 0 | M245: =$M$134 -> 0 | N245: =$M$137 -> 0 | O245: =$M$136 -> 0 | P245: =$M$133 -> 2292025 | Q245: =$M$132 -> 10858.82
B246: 2008 | C246: 11 | D246: =$L$127 -> 157200 | E246: =$L$126 -> 13990.8 | F246: =$L$128 -> 4058.7 | G246: =$L$139 -> 77.7 | H246: 0.0867027441 | I246: =$L$129 -> 3505 | J246: =$L$131 -> 0 | K246: =$L$130 -> 0 | L246: =$L$135 -> 0 | M246: =$L$134 -> 0 | N246: =$L$137 -> 0 | O246: =$L$136 -> 0 | P246: =$L$133 -> 2362342 | Q246: =$L$132 -> 11179.32
B247: 2008 | C247: 10 | D247: =$K$127 -> 148800 | E247: =$K$126 -> 13540.8 | F247: =$K$128 -> 3198.96 | G247: =$K$139 -> 80.91 | H247: 0.0867027441 | I247: =$K$129 -> 2190 | J247: =$K$131 -> 0 | K247: =$K$130 -> 0 | L247: =$K$135 -> 0 | M247: =$K$134 -> 0 | N247: =$K$137 -> 0 | O247: =$K$136 -> 0 | P247: =$K$133 -> 2362342 | Q247: =$K$132 -> 11179.32
B248: 2008 | C248: 9 | D248: =$J$127 -> 150600 | E248: =$J$126 -> 13840.14 | F248: =$J$128 -> 3186.77 | G248: =$J$139 -> 93.3 | H248: 0.0867027441 | I248: =$J$129 -> 2143 | J248: =$J$131 -> 0 | K248: =$J$130 -> 0 | L248: =$J$135 -> 0 | M248: =$J$134 -> 0 | N248: =$J$137 -> 0 | O248: =$J$136 -> 0 | P248: =$J$133 -> 2362342 | Q248: =$J$132 -> 11179.32
B249: 2008 | C249: 8 | D249: =$I$127 -> 148800 | E249: =$I$126 -> 13644.96 | F249: =$I$128 -> 1831.41 | G249: =$I$139 -> 78.12 | H249: 0.0867027441 | I249: =$I$129 -> 1230 | J249: =$I$131 -> 0 | K249: =$I$130 -> 0 | L249: =$I$135 -> 0 | M249: =$I$134 -> 0 | N249: =$I$137 -> 0 | O249: =$I$136 -> 0 | P249: =$I$133 -> 2963026 | Q249: =$I$132 -> 13942.72
B250: 2008 | C250: 7 | D250: =$H$127 -> 154800 | E250: =$H$126 -> 13808.16 | F250: =$H$128 -> 2361.52 | G250: =$H$139 -> 94.86 | H250: 0.0867027441 | I250: =$H$129 -> 1584 | J250: =$H$131 -> 0 | K250: =$H$130 -> 0 | L250: =$H$135 -> 0 | M250: =$H$134 -> 0 | N250: =$H$137 -> 0 | O250: =$H$136 -> 0 | P250: =$H$133 -> 2963026 | Q250: =$H$132 -> 13942.72
B251: 2008 | C251: 6 | D251: =$G$127 -> 162600 | E251: =$G$126 -> 14438.88 | F251: =$G$128 -> 2209.78 | G251: =$G$139 -> 98.7 | H251: 0.0867027441 | I251: =$G$129 -> 1565 | J251: =$G$131 -> 0 | K251: =$G$130 -> 0 | L251: =$G$135 -> 0 | M251: =$G$134 -> 0 | N251: =$G$137 -> 0 | O251: =$G$136 -> 0 | P251: =$G$133 -> 2963026 | Q251: =$G$132 -> 13942.72
B252: 2008 | C252: 5 | D252: =$F$127 -> 146400 | E252: =$F$126 -> 12092.64 | F252: =$F$128 -> 2393.45 | G252: =$F$139 -> 97.96 | H252: 0.0867027441 | I252: =$F$129 -> 1876 | J252: =$F$131 -> 0 | K252: =$F$130 -> 0 | L252: =$F$135 -> 0 | M252: =$F$134 -> 0 | N252: =$F$137 -> 0 | O252: =$F$136 -> 0 | P252: =$F$133 -> 2407973 | Q252: =$F$132 -> 9367.29
B253: 2008 | C253: 4 | D253: =$E$127 -> 162600 | E253: =$E$126 -> 13365.72 | F253: =$E$128 -> 3180.12 | G253: =$E$139 -> 126.3 | H253: 0.0867027441 | I253: =$E$129 -> 2494 | J253: =$E$131 -> 0 | K253: =$E$130 -> 0 | L253: =$E$135 -> 0 | M253: =$E$134 -> 0 | N253: =$E$137 -> 0 | O253: =$E$136 -> 0 | P253: =$E$133 -> 2407973 | Q253: =$E$132 -> 9367.29
B254: 2008 | C254: 3 | D254: =$D$127 -> 166800 | E254: =$D$126 -> 13777.68 | F254: =$D$128 -> 8385.05 | G254: =$D$139 -> 175.77 | H254: 0.0867027441 | I254: =$D$129 -> 7485 | J254: =$D$131 -> 0 | K254: =$D$130 -> 0 | L254: =$D$135 -> 0 | M254: =$D$134 -> 0 | N254: =$D$137 -> 0 | O254: =$D$136 -> 0 | P254: =$D$133 -> 2407973 | Q254: =$D$132 -> 9367.29
B255: 2008 | C255: 2 | D255: =$C$127 -> 163800 | E255: =$C$126 -> 13546.26 | F255: =$C$128 -> 9435.17 | G255: =$C$139 -> 126.15 | H255: 0.0867027441 | I255: =$C$129 -> 8423 | J255: =$C$131 -> 0 | K255: =$C$130 -> 0 | L255: =$C$135 -> 0 | M255: =$C$134 -> 0 | N255: =$C$137 -> 0 | O255: =$C$136 -> 0 | P255: =$C$133 -> 2261355 | Q255: =$C$132 -> 8521.84
B256: 2008 | C256: 1 | D256: =$B$127 -> 147000 | E256: =$B$126 -> 12112.8 | F256: =$B$128 -> 9387.02 | G256: =$B$139 -> 114.39 | H256: 0.0867027441 | I256: =$B$129 -> 8380 | J256: =$B$131 -> 0 | K256: =$B$130 -> 0 | L256: =$B$135 -> 0 | M256: =$B$134 -> 0 | N256: =$B$137 -> 0 | O256: =$B$136 -> 0 | P256: =$B$133 -> 2261355 | Q256: =$B$132 -> 8521.84
B257: =$A$147 -> 2007 | C257: 12 | D257: =$M$149 -> 151200 | E257: =$M$148 -> 12247.2 | F257: =$M$150 -> 7602.39 | G257: =$M$161 -> 88.46 | H257: =$B$145 -> 0.07658545455 | I257: =$M$151 -> 6849 | J257: =$M$153 -> 0 | K257: =$M$152 -> 0 | L257: =$M$157 -> 0 | M257: =$M$156 -> 0 | N257: =$M$159 -> 0 | O257: =$M$158 -> 0 | P257: =$M$155 -> 2261355 | Q257: =$M$154 -> 8521.84
B258: 2007 | C258: 11 | D258: =$L$149 -> 162600 | E258: =$L$148 -> 12991.74 | F258: =$L$150 -> 4638.79 | G258: =$L$161 -> 86.34 | H258: 0.07658545455 | I258: =$L$151 -> 4198 | J258: =$L$153 -> 0 | K258: =$L$152 -> 0 | L258: =$L$157 -> 0 | M258: =$L$156 -> 0 | N258: =$L$159 -> 0 | O258: =$L$158 -> 0 | P258: =$L$155 -> 2134935 | Q258: =$L$154 -> 7996.91
B259: 2007 | C259: 10 | D259: =$K$149 -> 156600 | E259: =$K$148 -> 12402.72 | F259: =$K$150 -> 2272.6 | G259: =$K$161 -> 84.52 | H259: 0.07658545455 | I259: =$K$151 -> 2066 | J259: =$K$153 -> 0 | K259: =$K$152 -> 0 | L259: =$K$157 -> 0 | M259: =$K$156 -> 0 | N259: =$K$159 -> 0 | O259: =$K$158 -> 0 | P259: =$K$155 -> 2134935 | Q259: =$K$154 -> 7996.91
B260: 2007 | C260: 9 | D260: =$J$149 -> 157800 | E260: =$J$148 -> 12308.4 | F260: =$J$150 -> 1102.1 | G260: =$J$161 -> 76.28 | H260: 0.07658545455 | I260: =$J$151 -> 1030 | J260: =$J$153 -> 0 | K260: =$J$152 -> 0 | L260: =$J$157 -> 0 | M260: =$J$156 -> 0 | N260: =$J$159 -> 0 | O260: =$J$158 -> 0 | P260: =$J$155 -> 2134935 | Q260: =$J$154 -> 7996.91
B261: 2007 | C261: 8 | D261: =$I$149 -> 141600 | E261: =$I$148 -> 10931.52 | F261: =$I$150 -> 1230.08 | G261: =$I$161 -> 74.89 | H261: 0.07658545455 | I261: =$I$151 -> 1155 | J261: =$I$153 -> 0 | K261: =$I$152 -> 0 | L261: =$I$157 -> 0 | M261: =$I$156 -> 0 | N261: =$I$159 -> 0 | O261: =$I$158 -> 0 | P261: =$I$155 -> 2706445 | Q261: =$I$154 -> 10130.4
B262: 2007 | C262: 7 | D262: =$H$149 -> 154800 | E262: =$H$148 -> 11888.64 | F262: =$H$150 -> 1697.06 | G262: =$H$161 -> 92.03 | H262: 0.07658545455 | I262: =$H$151 -> 1601 | J262: =$H$153 -> 0 | K262: =$H$152 -> 0 | L262: =$H$157 -> 0 | M262: =$H$156 -> 0 | N262: =$H$159 -> 0 | O262: =$H$158 -> 0 | P262: =$H$155 -> 2706445 | Q262: =$H$154 -> 10130.4
B263: 2007 | C263: 6 | D263: =$G$149 -> 145200 | E263: =$G$148 -> 11049.72 | F263: =$G$150 -> 1518.98 | G263: =$G$161 -> 96.44 | H263: 0.07658545455 | I263: =$G$151 -> 1433 | J263: =$G$153 -> 0 | K263: =$G$152 -> 0 | L263: =$G$157 -> 0 | M263: =$G$156 -> 0 | N263: =$G$159 -> 0 | O263: =$G$158 -> 0 | P263: =$G$155 -> 2706445 | Q263: =$G$154 -> 10130.4
B264: 2007 | C264: 5 | D264: =$F$149 -> 144600 | E264: =$F$148 -> 10960.68 | F264: =$F$150 -> 1755.6 | G264: =$F$161 -> 102.58 | H264: 0.07658545455 | I264: =$F$151 -> 1672 | J264: =$F$153 -> 0 | K264: =$F$152 -> 0 | L264: =$F$157 -> 0 | M264: =$F$156 -> 0 | N264: =$F$159 -> 0 | O264: =$F$158 -> 0 | P264: =$F$155 -> 2559827 | Q264: =$F$154 -> 7542.09
B265: 2007 | C265: 4 | D265: =$E$149 -> 147600 | E265: =$E$148 -> 10951.92 | F265: =$E$150 -> 2957.76 | G265: =$E$161 -> 138.63 | H265: 0.07658545455 | I265: =$E$151 -> 2844 | J265: =$E$153 -> 0 | K265: =$E$152 -> 0 | L265: =$E$157 -> 0 | M265: =$E$156 -> 0 | N265: =$E$159 -> 0 | O265: =$E$158 -> 0 | P265: =$E$155 -> 2559827 | Q265: =$E$154 -> 7542.09
B266: 2007 | C266: 3 | D266: =$D$149 -> 159600 | E266: =$D$148 -> 11762.52 | F266: =$D$150 -> 6731.37 | G266: =$D$161 -> 162.39 | H266: 0.07658545455 | I266: =$D$151 -> 6291 | J266: =$D$153 -> 0 | K266: =$D$152 -> 0 | L266: =$D$157 -> 0 | M266: =$D$156 -> 0 | N266: =$D$159 -> 0 | O266: =$D$158 -> 0 | P266: =$D$155 -> 2559827 | Q266: =$D$154 -> 7542.09
B267: 2007 | C267: 2 | D267: =$C$149 -> 150000 | E267: =$C$148 -> 11025 | F267: =$C$150 -> 8989.92 | G267: =$C$161 -> 101.98 | H267: 0.07658545455 | I267: =$C$151 -> 8324 | J267: =$C$153 -> 0 | K267: =$C$152 -> 0 | L267: =$C$157 -> 0 | M267: =$C$156 -> 0 | N267: =$C$159 -> 0 | O267: =$C$158 -> 0 | P267: =$C$155 -> 2351121 | Q267: =$C$154 -> 6876.88
B268: 2007 | C268: 1 | D268: =$B$149 -> 143400 | E268: =$B$148 -> 10482.54 | F268: =$B$150 -> 9215.95 | G268: =$B$161 -> 99.92 | H268: 0.07658545455 | I268: =$B$151 -> 8455 | J268: =$B$153 -> 0 | K268: =$B$152 -> 0 | L268: =$B$157 -> 0 | M268: =$B$156 -> 0 | N268: =$B$159 -> 0 | O268: =$B$158 -> 0 | P268: =$B$155 -> 2351121 | Q268: =$B$154 -> 6876.88
A274: Most recent 12 months for graphs:
B276: Year | C276: Month | D276: Month/Year | E276: Electric Use | F276: Natural Gas Cost | G276: Water Treated | H276: Electric Cost | I276: Electric Energy Utilization | J276: Gas Use | K276: Electric Rate | L276: Monthly Fuel2 Use | M276: Monthly Fuel2 Cost | N276: Monthly Alternative Use | O276: Monthly Alt Cost | P276: Monthly Other Use | Q276: Monthly Other Cost | R276: Monthly Water & Sewer Use | S276: Monthly Water & Sewer Cost
B278: 2010 | C278: 7 | D278: =C278&"/"&B278 -> 7/2010 | E278: 182600 | F278: 1188 | G278: 90.54 | H278: 19939.92 | I278: =IF(G278=0,"",E278/G278) -> 2016.78816 | J278: 1080 | K278: =IF(E278=0,0,H278/E278) -> 0.1092 | L278: 30 | M278: 35.61 | N278: 1201000 | O278: 1561.3 | P278: 1834000 | Q278: 2017.4 | R278: 2648845 | S278: 14760.9
B279: 2010 | C279: 8 | D279: =C279&"/"&B279 -> 8/2010 | E279: 177400 | F279: 888.13 | G279: 89.6 | H279: 18041.58 | I279: =IF(G279=0,"",E279/G279) -> 1979.910714 | J279: 875 | K279: =IF(E279=0,0,H279/E279) -> 0.1017 | L279: 50 | M279: 55.64 | N279: 1093000 | O279: 1420.9 | P279: 1749000 | Q279: 1923.9 | R279: 2648845 | S279: 14760.9
B280: 2010 | C280: 9 | D280: 9/2010 | E280: 173600 | F280: 1018.35 | G280: 91.63 | H280: 17689.84 | I280: =IF(G280=0,"",E280/G280) -> 1894.576012 | J280: 930 | K280: =IF(E280=0,0,H280/E280) -> 0.1019 | L280: 30 | M280: 35.59 | N280: 832000 | O280: 1081.6 | P280: 1201000 | Q280: 1561.3 | R280: 2301002 | S280: 12821.85
B281: 2010 | C281: 10 | D281: 10/2010 | E281: 182400 | F281: 1324.23 | G281: 98.34 | H281: 18057.6 | I281: 1854.789506 | J281: 1193 | K281: 0.099 | L281: 2630 | M281: 2825.52 | N281: 2891000 | O281: 3180.1 | P281: 1093000 | Q281: 1420.9 | R281: 2301002 | S281: 12821.85
B282: 2010 | C282: 11 | D282: 11/2010 | E282: 186600 | F282: 2209.15 | G282: 99.75 | H282: 17876.28 | I282: 1870.676692 | J282: 1955 | K282: 0.0958 | L282: 3795 | M282: 4018.93 | N282: 1834000 | O282: 2017.4 | P282: 832000 | Q282: 1081.6 | R282: 2301002 | S282: 12821.85
B283: 2010 | C283: 12 | D283: 12/2010 | E283: 190600 | F283: 6538.9 | G283: 106.42 | H283: 18335.72 | I283: 1791.016726 | J283: 5686 | K283: 0.0962 | L283: 4795 | M283: 5018.93 | N283: 1749000 | O283: 1923.9 | P283: 953000 | Q283: 1238.9 | R283: 2210986 | S283: 12320.06
B284: 2011 | C284: 1 | D284: 1/2011 | E284: 196800 | F284: 6146.54 | G284: 112.24 | H284: 18184.32 | I284: 1753.385602 | J284: 5276 | K284: 0.0924 | L284: 14260 | M284: 16231.03 | N284: 1473000 | O284: 1914.9 | P284: 973000 | Q284: 1070.3 | R284: 2210986 | S284: 12320.06
B285: 2011 | C285: 2 | D285: 2/2011 | E285: 189800 | F285: 5556.68 | G285: 107.5 | H285: 19492.46 | I285: 1765.581395 | J285: 4782 | K285: 0.1027 | L285: 10279 | M285: 11166.71 | N285: 1566000 | O285: 2035.8 | P285: 1396000 | Q285: 1535.6 | R285: 2210986 | S285: 12320.06
B286: 2011 | C286: 3 | D286: 3/2011 | E286: 187600 | F286: 5015.3 | G286: 116.7 | H286: 19247.76 | I286: 1607.540703 | J286: 4331 | K286: 0.1026 | L286: 8478 | M286: 8587.05 | N286: 1978000 | O286: 2571.4 | P286: 2113000 | Q286: 2324.3 | R286: 2107257 | S286: 11741.82
... 19 more rows

Sheet Building 1 Data
A1: ="EPA Energy Use Assessment Tool for " & workbookType -> EPA Energy Use Assessment Tool for Drinking Water Systems
A2: Site Structural Buildings - Major Non-Process Energy Users
B4: In the Building Data tabs, the tool totals each building’s Lighting and HVAC information. You should use the totals for entry on the WTP or WWTP Energy Use tabs. For instructions on how to enter that information, see the WTP or WWTP Energy Usage tabs. If you have already identified the site's Lighting and HVAC loads or would just like to estimate them without detailing this information here, proceed to the WTP or WWTP Energy Usage tab. If you skip this tab, you can come back later to fill in this detail.
B6: Enter the following information once for the entire plant. Select the Total Number of Buildings on-site and click the "Set # of Buildings" button. This lets you enter information for the specified number of buildings. After entering data in a building tab, click the "Save and Continue" button at the top. That allows you to enter data for the next building or if building data entry is complete, to return to the General Information tab. You can also click the other Building Data tabs at the bottom.
B9: Total Plant Building Area | D9: =SUM(D19,'Building 2 Data'!D19,'Building 3 Data'!D19,'Building 4 Data'!D19,'Building 5 Data'!D19,'Building 6 Data'!D19,'Building 7 Data'!D19,'Building 8 Data'!D19,'Building 9 Data'!D19,'Building 10 Data'!D19) -> 9000 | E9: 1 | G9: Ft2 | H9: Total Plant Building Electric Load | K9: =SUM(G24,'Building 2 Data'!G24,'Building 3 Data'!G24,'Building 4 Data'!G24,'Building 5 Data'!G24,'Building 6 Data'!G24,'Building 7 Data'!G24,'Building 8 Data'!G24,'Building 9 Data'!G24,'Building 10 Data'!G24) -> 57.14935709 | L9: kW | M9: Total Plant Building Electric Use | O9: =SUM(L24,'Building 2 Data'!L24,'Building 3 Data'!L24,'Building 4 Data'!L24,'Building 5 Data'!L24,'Building 6 Data'!L24,'Building 7 Data'!L24,'Building 8 Data'!L24,'Building 9 Data'!L24,'Building 10 Data'!L24) -> 141729.2706 | P9: (kWh) | R9: kWh/Yr
B11: Does the site have buildings? | F11: Yes | H11: Total Number of Buildings On-site | K11: 10 | M11: ! Reducing the number of buildings will delete any data entered on the additional tabs | IU11: 2
B14: Enter the following information for each building at the plant. To begin, select the number of rooms in the "No. of Rooms" dropdown list below and click the "Set # of rooms" button. It is important to know and set the number of rooms upfront, before any lighting data is entered. If the number of rooms is later changed, all the data that had been entered will be lost.
C16: BUILDING 1
C18: Name | D18: Administration | I18: Operating Hours per Year | K18: =IF(K19="","",K19*K20*52) -> 2496 | L18: Hrs/Yr | M18: Approximate Building Age (If known) | S18: Yrs
C19: Area | D19: =I35+T35+T47+I47+I59+T59+T71+I71+I83+T83 -> 3700 | G19: Ft2 | I19: Operating Hours per Day | K19: 8 | L19: Hrs/Day
C20: No. of Rooms | G20: ! Changing the number of rooms will reset all lighting data entered. | I20: Operating Days per Week | K20: 6 | L20: Days/Wk | M20: Average Building Lighting Power Density (LPD) | R20: =IF(D19=0,"",(K38+V38+V50+K50+K62+V62+V74+K74+K86+V86)/D19) -> 4.774324324 | S20: W/ft2
C21: Estimated Electric Load: | I21: Estimated Annual Energy Use: | N21: Estimated Annual Energy Cost:
C22: ="Total Building " & $E$9 & " Lighting" -> Total Building 1 Lighting | G22: =IF((K38+V38+V50+K50+K62+V62+V74+K74+K86+V86)=0,0,(K38+V38+V50+K50+K62+V62+V74+K74+K86+V86)/1000) -> 17.665 | H22: kW | I22: ="Total Building " & $E$9 & " Lighting" -> Total Building 1 Lighting | L22: =IF((K38+V38+V50+K50+K62+V62+V74+K74+K86+V86)=0,IF(K18="",0,0),IF(K18="",0,((K38+V38+V50+K50+K62+V62+V74+K74+K86+V86)/1000)*K18)) -> 44091.84 | M22: kWh/Yr | N22: ="Total Building " & $E$9 & " Lighting" -> Total Building 1 Lighting | R22: =L22*'General Information'!$H$46 -> 4462.091854 | S22: $/Yr
C23: ="Total Building " & $E$9 & " HVAC" -> Total Building 1 HVAC | G23: =N$111 -> 5.116756959 | H23: kW | I23: ="Total Building " & $E$9 & " HVAC" -> Total Building 1 HVAC | L23: =O$111 -> 18285.69085 | M23: kWh/Yr | N23: ="Total Building " & $E$9 & " HVAC" -> Total Building 1 HVAC | R23: =R111 -> 1850.510938 | S23: $/Yr
C24: ="Total Building " & $E$9 & " Combined" -> Total Building 1 Combined | G24: =SUM(G22:G23) -> 22.78175696 | H24: kW | I24: ="Total Building " & $E$9 & " Combined" -> Total Building 1 Combined | L24: =SUM(L22,L23) -> 62377.53085 | M24: kWh/Yr | N24: ="Total Building " & $E$9 & " Combined" -> Total Building 1 Combined | R24: =SUM(R22,R23) -> 6312.602792 | S24: $/Yr
C26: LIGHTING
B28: To determine the site’s lighting loads and energy use, select each of the room’s lighting fixture types and quantity (Qty) using the dropdown lists below. Select a light type from the dropdown list for each size and kind of fixture in a room. Then enter the quantity for each type. The tool provides the fixture’s electrical energy load in watts. Do not include task lights (directional lights used to illuminate an area of work) when entering the room's lighting fixtures. If a type of fixture is not available in the dropdown list, use the "Other Type" input field to enter the fixture and its total wattage. The table automatically totals the room's lighting loads, each building's lighting energy use and the site's total lighting energy use per year for use in other areas of the tool. Enter the area of each room and the tool calculates the Lighting Power Density (LPD) in watts per square foot. You can now take an important next step and compare LPD’s from room to room and building to building to determine where excess energy might be in use.
C35: Room 1 Name | D35: Conference Room | H35: Area | I35: 600 | J35: Ft2 | N35: Room 2 Name | O35: Offices | S35: Area | T35: 2000 | U35: Ft2
C36: Room 1 Lighting (Main Lighting only - Do not include task lights) | N36: Room 2 Lighting (Main Lighting only - Do not include task lights)
C37: Select up to 6 Light Fixture Types | I37: Fixture Qty | K37: Total Room Wattage (W) | N37: Select up to 6 Light Fixture Types | T37: Fixture Qty | V37: Total Room Wattage (W)
C38: Light Type 1 | E38: Four F40T12 4' 40W Fluorescent Lamps, Magnetic Ballast | F38: =VLOOKUP(E38,'Linked Cells (hidden)'!$D$57:$E$150,2,FALSE) -> 175 | H38: =VLOOKUP(E38,'Linked Cells (hidden)'!$D$57:$E$150,2,FALSE)& " " & "Watts" -> 175 Watts | I38: 16 | K38: =(IF(F38="Total",0,I38*F38)+IF(F39="Total",0,I39*F39)+IF(F40="Total",0,I40*F40)+IF(F41="Total",0,I41*F41)+IF(F42="Total",0,I42*F42)+IF(F43="Total",0,I43*F43)) -> 2800 | M38: W | N38: Light Type 1 | P38: Three F40T12 4' 40W Fluorescent Lamps, Magnetic Ballast | Q38: =VLOOKUP(P38,'Linked Cells (hidden)'!$D$57:$E$150,2,FALSE) -> 135 | S38: =VLOOKUP(P38,'Linked Cells (hidden)'!$D$57:$E$150,2,FALSE)& " " & "Watts" -> 135 Watts | T38: 60 | V38: =(IF(Q38="Total",0,T38*Q38)+IF(Q39="Total",0,T39*Q39)+IF(Q40="Total",0,T40*Q40)+IF(Q41="Total",0,T41*Q41)+IF(Q42="Total",0,T42*Q42)+IF(Q43="Total",0,T43*Q43)) -> 8100 | W38: W
C39: Light Type 2 | E39: Select Light Fixture | F39: =VLOOKUP(E39,'Linked Cells (hidden)'!$D$57:$E$150,2,FALSE) -> Total | H39: =VLOOKUP(E39,'Linked Cells (hidden)'!$D$57:$E$150,2,FALSE)& " " & "Watts" -> Total Watts | N39: Light Type 2 | P39: Select Light Fixture | Q39: =VLOOKUP(P39,'Linked Cells (hidden)'!$D$57:$E$150,2,FALSE) -> Total | S39: =VLOOKUP(P39,'Linked Cells (hidden)'!$D$57:$E$150,2,FALSE)& " " & "Watts" -> Total Watts
C40: Light Type 3 | E40: Select Light Fixture | F40: =VLOOKUP(E40,'Linked Cells (hidden)'!$D$57:$E$150,2,FALSE) -> Total | H40: =VLOOKUP(E40,'Linked Cells (hidden)'!$D$57:$E$150,2,FALSE)& " " & "Watts" -> Total Watts | K40: Room Lighting Power Density (LPD) | N40: Light Type 3 | P40: Select Light Fixture | Q40: =VLOOKUP(P40,'Linked Cells (hidden)'!$D$57:$E$150,2,FALSE) -> Total | S40: =VLOOKUP(P40,'Linked Cells (hidden)'!$D$57:$E$150,2,FALSE)& " " & "Watts" -> Total Watts | V40: Room Lighting Power Density (LPD)
C41: Light Type 4 | E41: Select Light Fixture | F41: =VLOOKUP(E41,'Linked Cells (hidden)'!$D$57:$E$150,2,FALSE) -> Total | H41: =VLOOKUP(E41,'Linked Cells (hidden)'!$D$57:$E$150,2,FALSE)& " " & "Watts" -> Total Watts | K41: =IF(K38=0,"",K38/I35) -> 4.666666667 | L41: W/ft2 | N41: Light Type 4 | P41: Select Light Fixture | Q41: =VLOOKUP(P41,'Linked Cells (hidden)'!$D$57:$E$150,2,FALSE) -> Total | S41: =VLOOKUP(P41,'Linked Cells (hidden)'!$D$57:$E$150,2,FALSE)& " " & "Watts" -> Total Watts | V41: =IF(V38=0,"",V38/T35) -> 4.05 | W41: W/ft2
C42: Light Type 5 | E42: Select Light Fixture | F42: =VLOOKUP(E42,'Linked Cells (hidden)'!$D$57:$E$150,2,FALSE) -> Total | H42: =VLOOKUP(E42,'Linked Cells (hidden)'!$D$57:$E$150,2,FALSE)& " " & "Watts" -> Total Watts | N42: Light Type 5 | P42: Select Light Fixture | Q42: =VLOOKUP(P42,'Linked Cells (hidden)'!$D$57:$E$150,2,FALSE) -> Total | S42: =VLOOKUP(P42,'Linked Cells (hidden)'!$D$57:$E$150,2,FALSE)& " " & "Watts" -> Total Watts
C43: Other Type : Name | F43: =IF(D44=0,"Total",D44) -> Total | H43: =F43 & " Watts" -> Total Watts | N43: Other Type : Name | Q43: =IF(O44=0,"Total",O44) -> Total | S43: =Q43& " Watts" -> Total Watts
C44: : Watts | N44: : Watts
C47: Room 3 Name | H47: Area | J47: Ft2 | N47: Room 4 Name | O47: All Outside Lighting | S47: Area | T47: 100 | U47: Ft2
C48: Room 3 Lighting (Main Lighting only - Do not include task lights) | N48: Room 4 Lighting (Main Lighting only - Do not include task lights)
C49: Select up to 6 Light Fixture Types | K49: Total Room Wattage (W) | N49: Select up to 6 Light Fixture Types | V49: Total Room Wattage (W)
C50: Light Type 1 | E50: Select Light Fixture | F50: =VLOOKUP(E50,'Linked Cells (hidden)'!$D$57:$E$150,2,FALSE) -> Total | H50: =VLOOKUP(E50,'Linked Cells (hidden)'!$D$57:$E$150,2,FALSE)& " " & "Watts" -> Total Watts | K50: =(IF(F50="Total",0,I50*F50)+IF(F51="Total",0,I51*F51)+IF(F52="Total",0,I52*F52)+IF(F53="Total",0,I53*F53)+IF(F54="Total",0,I54*F54)+IF(F55="Total",0,I55*F55)) -> 0 | M50: W | N50: Light Type 1 | P50: One F48T12 HO 4' 60W Fluorescent Lamp, ES Magnetic Ballast | Q50: =VLOOKUP(P50,'Linked Cells (hidden)'!$D$57:$E$150,2,FALSE) -> 82 | S50: =VLOOKUP(P50,'Linked Cells (hidden)'!$D$57:$E$150,2,FALSE)& " " & "Watts" -> 82 Watts | T50: 45 | V50: =(IF(Q50="Total",0,T50*Q50)+IF(Q51="Total",0,T51*Q51)+IF(Q52="Total",0,T52*Q52)+IF(Q53="Total",0,T53*Q53)+IF(Q54="Total",0,T54*Q54)+IF(Q55="Total",0,T55*Q55)) -> 4665 | W50: W
C51: Light Type 2 | E51: Select Light Fixture | F51: =VLOOKUP(E51,'Linked Cells (hidden)'!$D$57:$E$150,2,FALSE) -> Total | H51: =VLOOKUP(E51,'Linked Cells (hidden)'!$D$57:$E$150,2,FALSE)& " " & "Watts" -> Total Watts | N51: Light Type 2 | P51: Two F40T12 4' 40W Fluorescent Lamps, Electronic Ballast | Q51: =VLOOKUP(P51,'Linked Cells (hidden)'!$D$57:$E$150,2,FALSE) -> 75 | S51: =VLOOKUP(P51,'Linked Cells (hidden)'!$D$57:$E$150,2,FALSE)& " " & "Watts" -> 75 Watts | T51: 13
C52: Light Type 3 | E52: Select Light Fixture | F52: =VLOOKUP(E52,'Linked Cells (hidden)'!$D$57:$E$150,2,FALSE) -> Total | H52: =VLOOKUP(E52,'Linked Cells (hidden)'!$D$57:$E$150,2,FALSE)& " " & "Watts" -> Total Watts | K52: Room Lighting Power Density (LPD) | N52: Light Type 3 | P52: Select Light Fixture | Q52: =VLOOKUP(P52,'Linked Cells (hidden)'!$D$57:$E$150,2,FALSE) -> Total | S52: =VLOOKUP(P52,'Linked Cells (hidden)'!$D$57:$E$150,2,FALSE)& " " & "Watts" -> Total Watts | V52: Room Lighting Power Density (LPD)
C53: Light Type 4 | E53: Select Light Fixture | F53: =VLOOKUP(E53,'Linked Cells (hidden)'!$D$57:$E$150,2,FALSE) -> Total | H53: =VLOOKUP(E53,'Linked Cells (hidden)'!$D$57:$E$150,2,FALSE)& " " & "Watts" -> Total Watts | K53: =IF(K50=0,"",K50/I47) ->  | L53: W/ft2 | N53: Light Type 4 | P53: Select Light Fixture | Q53: =VLOOKUP(P53,'Linked Cells (hidden)'!$D$57:$E$150,2,FALSE) -> Total | S53: =VLOOKUP(P53,'Linked Cells (hidden)'!$D$57:$E$150,2,FALSE)& " " & "Watts" -> Total Watts | V53: =IF(V50=0,"",V50/T47) -> 46.65 | W53: W/ft2
C54: Light Type 5 | E54: Select Light Fixture | F54: =VLOOKUP(E54,'Linked Cells (hidden)'!$D$57:$E$150,2,FALSE) -> Total | H54: =VLOOKUP(E54,'Linked Cells (hidden)'!$D$57:$E$150,2,FALSE)& " " & "Watts" -> Total Watts | N54: Light Type 5 | P54: Select Light Fixture | Q54: =VLOOKUP(P54,'Linked Cells (hidden)'!$D$57:$E$150,2,FALSE) -> Total | S54: =VLOOKUP(P54,'Linked Cells (hidden)'!$D$57:$E$150,2,FALSE)& " " & "Watts" -> Total Watts
C55: Other Type : Name | F55: =IF(D56=0,"Total",D56) -> Total | H55: =F55 & " Watts" -> Total Watts | N55: Other Type : Name | Q55: =IF(O56=0,"Total",O56) -> Total | S55: =Q55& " Watts" -> Total Watts
C56: : Watts | N56: : Watts
C59: Room 5 Name | D59: Hallways | H59: Area | I59: 1000 | J59: Ft2 | N59: Room 6 Name | S59: Area | U59: Ft2
C60: Room 5 Lighting (Main Lighting only - Do not include task lights) | N60: Room 6 Lighting (Main Lighting only - Do not include task lights)
C61: Select up to 6 Light Fixture Types | K61: Total Room Wattage (W) | N61: Select up to 6 Light Fixture Types | V61: Total Room Wattage (W)
C62: Light Type 1 | E62: Four F40T12 4' 40W Fluorescent Lamps, Magnetic Ballast | F62: =VLOOKUP(E62,'Linked Cells (hidden)'!$D$57:$E$150,2,FALSE) -> 175 | H62: =VLOOKUP(E62,'Linked Cells (hidden)'!$D$57:$E$150,2,FALSE)& " " & "Watts" -> 175 Watts | I62: 12 | K62: =(IF(F62="Total",0,I62*F62)+IF(F63="Total",0,I63*F63)+IF(F64="Total",0,I64*F64)+IF(F65="Total",0,I65*F65)+IF(F66="Total",0,I66*F66)+IF(F67="Total",0,I67*F67)) -> 2100 | M62: W | N62: Light Type 1 | P62: Select Light Fixture | Q62: =VLOOKUP(P62,'Linked Cells (hidden)'!$D$57:$E$150,2,FALSE) -> Total | S62: =VLOOKUP(P62,'Linked Cells (hidden)'!$D$57:$E$150,2,FALSE)& " " & "Watts" -> Total Watts | V62: =(IF(Q62="Total",0,T62*Q62)+IF(Q63="Total",0,T63*Q63)+IF(Q64="Total",0,T64*Q64)+IF(Q65="Total",0,T65*Q65)+IF(Q66="Total",0,T66*Q66)+IF(Q67="Total",0,T67*Q67)) -> 0 | W62: W
C63: Light Type 2 | E63: Select Light Fixture | F63: =VLOOKUP(E63,'Linked Cells (hidden)'!$D$57:$E$150,2,FALSE) -> Total | H63: =VLOOKUP(E63,'Linked Cells (hidden)'!$D$57:$E$150,2,FALSE)& " " & "Watts" -> Total Watts | N63: Light Type 2 | P63: Select Light Fixture | Q63: =VLOOKUP(P63,'Linked Cells (hidden)'!$D$57:$E$150,2,FALSE) -> Total | S63: =VLOOKUP(P63,'Linked Cells (hidden)'!$D$57:$E$150,2,FALSE)& " " & "Watts" -> Total Watts
C64: Light Type 3 | E64: Select Light Fixture | F64: =VLOOKUP(E64,'Linked Cells (hidden)'!$D$57:$E$150,2,FALSE) -> Total | H64: =VLOOKUP(E64,'Linked Cells (hidden)'!$D$57:$E$150,2,FALSE)& " " & "Watts" -> Total Watts | K64: Room Lighting Power Density (LPD) | N64: Light Type 3 | P64: Select Light Fixture | Q64: =VLOOKUP(P64,'Linked Cells (hidden)'!$D$57:$E$150,2,FALSE) -> Total | S64: =VLOOKUP(P64,'Linked Cells (hidden)'!$D$57:$E$150,2,FALSE)& " " & "Watts" -> Total Watts | V64: Room Lighting Power Density (LPD)
C65: Light Type 4 | E65: Select Light Fixture | F65: =VLOOKUP(E65,'Linked Cells (hidden)'!$D$57:$E$150,2,FALSE) -> Total | H65: =VLOOKUP(E65,'Linked Cells (hidden)'!$D$57:$E$150,2,FALSE)& " " & "Watts" -> Total Watts | K65: =IF(K62=0,"",K62/I59) -> 2.1 | L65: W/ft2 | N65: Light Type 4 | P65: Select Light Fixture | Q65: =VLOOKUP(P65,'Linked Cells (hidden)'!$D$57:$E$150,2,FALSE) -> Total | S65: =VLOOKUP(P65,'Linked Cells (hidden)'!$D$57:$E$150,2,FALSE)& " " & "Watts" -> Total Watts | V65: =IF(V62=0,"",V62/T59) ->  | W65: W/ft2
C66: Light Type 5 | E66: Select Light Fixture | F66: =VLOOKUP(E66,'Linked Cells (hidden)'!$D$57:$E$150,2,FALSE) -> Total | H66: =VLOOKUP(E66,'Linked Cells (hidden)'!$D$57:$E$150,2,FALSE)& " " & "Watts" -> Total Watts | N66: Light Type 5 | P66: Select Light Fixture | Q66: =VLOOKUP(P66,'Linked Cells (hidden)'!$D$57:$E$150,2,FALSE) -> Total | S66: =VLOOKUP(P66,'Linked Cells (hidden)'!$D$57:$E$150,2,FALSE)& " " & "Watts" -> Total Watts
C67: Other Type : Name | F67: =IF(D68=0,"Total",D68) -> Total | H67: =F67 & " Watts" -> Total Watts | N67: Other Type : Name | Q67: =IF(O68=0,"Total",O68) -> Total | S67: =Q67& " Watts" -> Total Watts
C68: : Watts | N68: : Watts
C71: Room 7 Name | H71: Area | J71: Ft2 | N71: Room 8 Name | S71: Area | U71: Ft2
C72: Room 7 Lighting (Main Lighting only - Do not include task lights) | N72: Room 8 Lighting (Main Lighting only - Do not include task lights)
C73: Select up to 6 Light Fixture Types | K73: Total Room Wattage (W) | N73: Select up to 6 Light Fixture Types | V73: Total Room Wattage (W)
C74: Light Type 1 | E74: Select Light Fixture | F74: =VLOOKUP(E74,'Linked Cells (hidden)'!$D$57:$E$150,2,FALSE) -> Total | H74: =VLOOKUP(E74,'Linked Cells (hidden)'!$D$57:$E$150,2,FALSE)& " " & "Watts" -> Total Watts | K74: =(IF(F74="Total",0,I74*F74)+IF(F75="Total",0,I75*F75)+IF(F76="Total",0,I76*F76)+IF(F77="Total",0,I77*F77)+IF(F78="Total",0,I78*F78)+IF(F79="Total",0,I79*F79)) -> 0 | M74: W | N74: Light Type 1 | P74: Select Light Fixture | Q74: =VLOOKUP(P74,'Linked Cells (hidden)'!$D$57:$E$150,2,FALSE) -> Total | S74: =VLOOKUP(P74,'Linked Cells (hidden)'!$D$57:$E$150,2,FALSE)& " " & "Watts" -> Total Watts | V74: =(IF(Q74="Total",0,T74*Q74)+IF(Q75="Total",0,T75*Q75)+IF(Q76="Total",0,T76*Q76)+IF(Q77="Total",0,T77*Q77)+IF(Q78="Total",0,T78*Q78)+IF(Q79="Total",0,T79*Q79)) -> 0 | W74: W
C75: Light Type 2 | E75: Select Light Fixture | F75: =VLOOKUP(E75,'Linked Cells (hidden)'!$D$57:$E$150,2,FALSE) -> Total | H75: =VLOOKUP(E75,'Linked Cells (hidden)'!$D$57:$E$150,2,FALSE)& " " & "Watts" -> Total Watts | N75: Light Type 2 | P75: Select Light Fixture | Q75: =VLOOKUP(P75,'Linked Cells (hidden)'!$D$57:$E$150,2,FALSE) -> Total | S75: =VLOOKUP(P75,'Linked Cells (hidden)'!$D$57:$E$150,2,FALSE)& " " & "Watts" -> Total Watts
C76: Light Type 3 | E76: Select Light Fixture | F76: =VLOOKUP(E76,'Linked Cells (hidden)'!$D$57:$E$150,2,FALSE) -> Total | H76: =VLOOKUP(E76,'Linked Cells (hidden)'!$D$57:$E$150,2,FALSE)& " " & "Watts" -> Total Watts | K76: Room Lighting Power Density (LPD) | N76: Light Type 3 | P76: Select Light Fixture | Q76: =VLOOKUP(P76,'Linked Cells (hidden)'!$D$57:$E$150,2,FALSE) -> Total | S76: =VLOOKUP(P76,'Linked Cells (hidden)'!$D$57:$E$150,2,FALSE)& " " & "Watts" -> Total Watts | V76: Room Lighting Power Density (LPD)
C77: Light Type 4 | E77: Select Light Fixture | F77: =VLOOKUP(E77,'Linked Cells (hidden)'!$D$57:$E$150,2,FALSE) -> Total | H77: =VLOOKUP(E77,'Linked Cells (hidden)'!$D$57:$E$150,2,FALSE)& " " & "Watts" -> Total Watts | K77: =IF(K74=0,"",K74/I71) ->  | L77: W/ft2 | N77: Light Type 4 | P77: Select Light Fixture | Q77: =VLOOKUP(P77,'Linked Cells (hidden)'!$D$57:$E$150,2,FALSE) -> Total | S77: =VLOOKUP(P77,'Linked Cells (hidden)'!$D$57:$E$150,2,FALSE)& " " & "Watts" -> Total Watts | V77: =IF(V74=0,"",V74/T71) ->  | W77: W/ft2
C78: Light Type 5 | E78: Select Light Fixture | F78: =VLOOKUP(E78,'Linked Cells (hidden)'!$D$57:$E$150,2,FALSE) -> Total | H78: =VLOOKUP(E78,'Linked Cells (hidden)'!$D$57:$E$150,2,FALSE)& " " & "Watts" -> Total Watts | N78: Light Type 5 | P78: Select Light Fixture | Q78: =VLOOKUP(P78,'Linked Cells (hidden)'!$D$57:$E$150,2,FALSE) -> Total | S78: =VLOOKUP(P78,'Linked Cells (hidden)'!$D$57:$E$150,2,FALSE)& " " & "Watts" -> Total Watts
C79: Other Type : Name | F79: =IF(D80=0,"Total",D80) -> Total | H79: =F79 & " Watts" -> Total Watts | N79: Other Type : Name | Q79: =IF(O80=0,"Total",O80) -> Total | S79: =Q79& " Watts" -> Total Watts
C80: : Watts | N80: : Watts
C83: Room 9 Name | H83: Area | J83: Ft2 | N83: Room 10 Name | S83: Area | U83: Ft2
C84: Room 9 Lighting (Main Lighting only - Do not include task lights) | N84: Room 10 Lighting (Main Lighting only - Do not include task lights)
C85: Select up to 6 Light Fixture Types | K85: Total Room Wattage (W) | N85: Select up to 6 Light Fixture Types | V85: Total Room Wattage (W)
C86: Light Type 1 | E86: Select Light Fixture | F86: =VLOOKUP(E86,'Linked Cells (hidden)'!$D$57:$E$150,2,FALSE) -> Total | H86: =VLOOKUP(E86,'Linked Cells (hidden)'!$D$57:$E$150,2,FALSE)& " " & "Watts" -> Total Watts | K86: =(IF(F86="Total",0,I86*F86)+IF(F87="Total",0,I87*F87)+IF(F88="Total",0,I88*F88)+IF(F89="Total",0,I89*F89)+IF(F90="Total",0,I90*F90)+IF(F91="Total",0,I91*F91)) -> 0 | M86: W | N86: Light Type 1 | P86: Select Light Fixture | Q86: =VLOOKUP(P86,'Linked Cells (hidden)'!$D$57:$E$150,2,FALSE) -> Total | S86: =VLOOKUP(P86,'Linked Cells (hidden)'!$D$57:$E$150,2,FALSE)& " " & "Watts" -> Total Watts | V86: =(IF(Q86="Total",0,T86*Q86)+IF(Q87="Total",0,T87*Q87)+IF(Q88="Total",0,T88*Q88)+IF(Q89="Total",0,T89*Q89)+IF(Q90="Total",0,T90*Q90)+IF(Q91="Total",0,T91*Q91)) -> 0 | W86: W
C87: Light Type 2 | E87: Select Light Fixture | F87: =VLOOKUP(E87,'Linked Cells (hidden)'!$D$57:$E$150,2,FALSE) -> Total | H87: =VLOOKUP(E87,'Linked Cells (hidden)'!$D$57:$E$150,2,FALSE)& " " & "Watts" -> Total Watts | N87: Light Type 2 | P87: Select Light Fixture | Q87: =VLOOKUP(P87,'Linked Cells (hidden)'!$D$57:$E$150,2,FALSE) -> Total | S87: =VLOOKUP(P87,'Linked Cells (hidden)'!$D$57:$E$150,2,FALSE)& " " & "Watts" -> Total Watts
C88: Light Type 3 | E88: Select Light Fixture | F88: =VLOOKUP(E88,'Linked Cells (hidden)'!$D$57:$E$150,2,FALSE) -> Total | H88: =VLOOKUP(E88,'Linked Cells (hidden)'!$D$57:$E$150,2,FALSE)& " " & "Watts" -> Total Watts | K88: Room Lighting Power Density (LPD) | N88: Light Type 3 | P88: Select Light Fixture | Q88: =VLOOKUP(P88,'Linked Cells (hidden)'!$D$57:$E$150,2,FALSE) -> Total | S88: =VLOOKUP(P88,'Linked Cells (hidden)'!$D$57:$E$150,2,FALSE)& " " & "Watts" -> Total Watts | V88: Room Lighting Power Density (LPD)
C89: Light Type 4 | E89: Select Light Fixture | F89: =VLOOKUP(E89,'Linked Cells (hidden)'!$D$57:$E$150,2,FALSE) -> Total | H89: =VLOOKUP(E89,'Linked Cells (hidden)'!$D$57:$E$150,2,FALSE)& " " & "Watts" -> Total Watts | K89: =IF(K86=0,"",K86/I83) ->  | L89: W/ft2 | N89: Light Type 4 | P89: Select Light Fixture | Q89: =VLOOKUP(P89,'Linked Cells (hidden)'!$D$57:$E$150,2,FALSE) -> Total | S89: =VLOOKUP(P89,'Linked Cells (hidden)'!$D$57:$E$150,2,FALSE)& " " & "Watts" -> Total Watts | V89: =IF(V86=0,"",V86/T83) ->  | W89: W/ft2
C90: Light Type 5 | E90: Select Light Fixture | F90: =VLOOKUP(E90,'Linked Cells (hidden)'!$D$57:$E$150,2,FALSE) -> Total | H90: =VLOOKUP(E90,'Linked Cells (hidden)'!$D$57:$E$150,2,FALSE)& " " & "Watts" -> Total Watts | N90: Light Type 5 | P90: Select Light Fixture | Q90: =VLOOKUP(P90,'Linked Cells (hidden)'!$D$57:$E$150,2,FALSE) -> Total | S90: =VLOOKUP(P90,'Linked Cells (hidden)'!$D$57:$E$150,2,FALSE)& " " & "Watts" -> Total Watts
C91: Other Type : Name | F91: =IF(D92=0,"Total",D92) -> Total | H91: =F91 & " Watts" -> Total Watts | N91: Other Type : Name | Q91: =IF(O92=0,"Total",O92) -> Total | S91: =Q91& " Watts" -> Total Watts
C92: : Watts | N92: : Watts
C96: HVAC/Non-Process Energy
B98: To determine the site's Non-Process Heating, Ventilating, and Air Conditioning (HVAC) loads and energy use, describe each building's HVAC electrical using units by entering them below. If multiple of a unit exists, either add them into the table as separate units or enter Motor Size as the motor's size (in hp) multiplied by the quantity. Non-Process HVAC is meant to include all equipment not tied to specific process operations such as general ventilation heaters, office air conditioners, restroom exhaust fans, etc. Do not provide process-related ventilation equipment such as odor control fans here. You can enter process equipment information on the "WTP or WWTP Energy Usage" tab. For each Non-Process HVAC unit select the equipment type from the dropdown list and enter an “Equipment Description.” Collect and enter each unit’s motor size, efficiency and full load amperage (FLA) ratings. This information can be gathered from the equipment's nameplate or specification datasheet. If the site has authorized personnel capable of taking electrical measurements, enter the motors average operating current. Otherwise leave the "Average Motor Operating Current" blank and the tool will use an 80% Load Factor in its calculations. Once the equipment's typical operating hours are entered, the tool calculates the estimated annual energy use and operating cost for the unit. If conditions at the plant change, you can adjust these values. A summary of the HVAC and lighting information entered on the building data tabs is displayed on the top on the WTP and WWTP Energy Usage tabs. For those values to be included in the total energy use and to be displayed in the pie charts and summary report, you must enter the values in the Equipment Electrical Energy Inventory table (on the WTP or WWTP Energy Usage tab) as Non Process HVAC. See the instructions on that tab on how to enter this information.
C103: System Type | D103: Equipment Type | G103: Equipment Description | H103: Motor Size (hp) | I103: Motor Efficiency | J103: Motor Full Load Amperage (FLA) | K103: Average Motor Operating Current (Amps) | L103: Motor Operating Hours (Hours/Year) | M103: Average Load Factor (%) | N103: Average HVAC Electric Load (kW) | O103: Estimated Annual Energy Use (kWh/yr) | R103: Estimated Annual Operating Costs ($/Year) | S103: Estimated Percent of Site Electric Use & Cost (%)
C104: Non Process HVAC | D104: Compressor | G104: Air Conditioner | H104: 3 | I104: 0.88 | J104: 4 | K104: 3.5 | L104: 2500 | M104: =IF(J104=0,0,IF(K104=0,0.75,K104/J104)) -> 0.875 | N104: =IF(I104=0,0,H104*0.746*M104/I104) -> 2.225284091 | O104: =N104*L104 -> 5563.210227 | R104: =O104*'General Information'!$H$46 -> 562.996578 | S104: =IF('General Information'!$H$44=0,"",O104/'General Information'!$H$44) -> 0.002474737646
C105: Non Process HVAC | D105: Fan | G105: HVAC | H105: 5 | I105: 0.86 | J105: 6 | K105: 4 | L105: 4400 | M105: 0.6666666667 | N105: 2.891472868 | O105: 12722.48062 | R105: =O105*'General Information'!$H$46 -> 1287.51436 | S105: =IF('General Information'!$H$44=0,"",O105/'General Information'!$H$44) -> 0.005659466468
C106: Non Process HVAC | D106: Select Equipment | M106: 0 | N106: 0 | O106: 0 | R106: =O106*'General Information'!$H$46 -> 0 | S106: =IF('General Information'!$H$44=0,"",O106/'General Information'!$H$44) -> 0
C107: Non Process HVAC | D107: Select Equipment | M107: 0 | N107: 0 | O107: 0 | R107: =O107*'General Information'!$H$46 -> 0 | S107: =IF('General Information'!$H$44=0,"",O107/'General Information'!$H$44) -> 0
C108: Non Process HVAC | D108: Select Equipment | M108: 0 | N108: 0 | O108: 0 | R108: =O108*'General Information'!$H$46 -> 0 | S108: =IF('General Information'!$H$44=0,"",O108/'General Information'!$H$44) -> 0
C109: Non Process HVAC | D109: Select Equipment | M109: 0 | N109: 0 | O109: 0 | R109: =O109*'General Information'!$H$46 -> 0 | S109: =IF('General Information'!$H$44=0,"",O109/'General Information'!$H$44) -> 0
J111: Total Building HVAC | N111: =SUM(N101:N109) -> 5.116756959 | O111: =SUM(O101:O109) -> 18285.69085 | R111: =SUM(R104:R109) -> 1850.510938 | S111: =SUM(S104:S109) -> 0.008134204114

Sheet Building 2 Data
A1: ="EPA Energy Use Assessment Tool for " & workbookType -> EPA Energy Use Assessment Tool for Drinking Water Systems
A2: Site Structural Buildings - Major Non-Process Energy Users
B4: In the Building Data tabs, the tool totals each building’s Lighting and HVAC information. You should use the totals for entry on the WTP or WWTP Energy Use tabs. For instructions on how to enter that information, see the WTP or WWTP Energy Usage tabs. If you have already identified the site's Lighting and HVAC loads or would just like to estimate them without detailing this information here, proceed to the WTP or WWTP Energy Usage tab. If you skip this tab, you can come back later to fill in this detail.
B6: The following information is entered once for the entire plant. To change the Total Number of Buildings on-site, go to the "Building 1 Data" tab and click the "Set # of Buildings" button. This lets you enter information for the specified number of buildings. After entering data in a building tab, click the "Save and Continue" button at the top. That allows you to enter data for the next building or if building data entry is complete, to return to the General Information tab. You can also click the other Building Data tabs at the bottom.
B9: Total Plant Building Area | D9: ='Building 1 Data'!D9 -> 9000 | E9: 2 | G9: Ft2 | H9: Total Plant Building Electric Load | K9: ='Building 1 Data'!K9 -> 57.14935709 | L9: kW | M9: Total Plant Building Electric Use | O9: ='Building 1 Data'!O9 -> 141729.2706 | R9: kWh/Yr
B11: Does the site have buildings? | D11: =hasBldgs -> Yes | H11: Total Number of Buildings On-site: | K11: =[0]!totalbldgs -> 10
B13: Enter the following information for each building at the plant. To begin, select the number of rooms in the "No. of Rooms" dropdown list below and click the "Set # of rooms" button. It is important to know and set the number of rooms upfront, before any lighting data is entered. If the number of rooms is later changed, all the data that had been entered will be lost.
C16: ="BUILDING " & E9 -> BUILDING 2
C18: Name | D18: Grit & Screen | I18: Operating Hours per Year | K18: =IF(K19="","",K19*K20*52) -> 2912 | L18: Hrs/Yr | M18: Approximate Building Age (If known) | S18: Yrs
C19: Area | D19: =I35+T35+T47+I47+I59+T59+T71+I71+I83+T83 -> 0 | G19: Ft2 | I19: Operating Hours per Day | K19: 8 | L19: Hrs/Day
C20: No. of Rooms | G20: ! Changing the number of rooms will reset all lighting data entered. | I20: Operating Days per Week | K20: 7 | L20: Days/Wk | M20: Average Building Lighting Power Density (LPD) | R20: =IF(D19=0,"",(K38+V38+V50+K50+K62+V62+V74+K74+K86+V86)/D19) ->  | S20: W/ft2
C21: Estimated Electric Load: | I21: Estimated Annual Energy Use: | N21: Estimated Annual Energy Cost:
C22: ="Total Building " & $E$9& " Lighting" -> Total Building 2 Lighting | G22: =IF((K38+V38+V50+K50+K62+V62+V74+K74+K86+V86)=0,0,(K38+V38+V50+K50+K62+V62+V74+K74+K86+V86)/1000) -> 0 | H22: kW | I22: ="Total Building " & $E$9& " Lighting" -> Total Building 2 Lighting | L22: =IF((K38+V38+V50+K50+K62+V62+V74+K74+K86+V86)=0,IF(K18="",0,0),IF(K18="",0,((K38+V38+V50+K50+K62+V62+V74+K74+K86+V86)/1000)*K18)) -> 0 | M22: kWh/Yr | N22: ="Total Building " & $E$9 & " Lighting" -> Total Building 2 Lighting | R22: =L22*'General Information'!$H$46 -> 0 | S22: $/Yr
C23: ="Total Building " & $E$9 & " HVAC" -> Total Building 2 HVAC | G23: =N111 -> 2.620973262 | H23: kW | I23: ="Total Building " & $E$9 & " HVAC" -> Total Building 2 HVAC | L23: =O$111 -> 6552.433155 | M23: kWh/Yr | N23: ="Total Building " & $E$9 & " HVAC" -> Total Building 2 HVAC | R23: =R111 -> 663.1058855 | S23: $/Yr
C24: ="Total Building " & $E$9 & " Combined" -> Total Building 2 Combined | G24: =SUM(G22:G23) -> 2.620973262 | H24: kW | I24: ="Total Building " & $E$9 & " Combined" -> Total Building 2 Combined | L24: =SUM(L22,L23) -> 6552.433155 | M24: kWh/Yr | N24: ="Total Building " & $E$9 & " Combined" -> Total Building 2 Combined | R24: =SUM(R22,R23) -> 663.1058855 | S24: $/Yr
C26: LIGHTING
B28: To determine the site’s lighting loads and energy use, select each of the room’s lighting fixture types and quantity (Qty) using the dropdown lists below. Select a light type from the dropdown list for each size and kind of fixture in a room. Then enter the quantity for each type. The tool provides the fixture’s electrical energy load in watts. Do not include task lights (directional lights used to illuminate an area of work) when entering the room's lighting fixtures. If a type of fixture is not available in the dropdown list, use the "Other Type" input field to enter the fixture and its total wattage. The table automatically totals the room's lighting loads, each building's lighting energy use and the site's total lighting energy use per year for use in other areas of the tool. Enter the area of each room and the tool calculates the Lighting Power Density (LPD) in watts per square foot. You can now take an important next step and compare LPD’s from room to room and building to building to determine where excess energy might be in use.
C35: Room 1 Name | H35: Area | J35: Ft2 | N35: Room 2 Name | S35: Area | U35: Ft2
C36: Room 1 Lighting (Main Lighting only - Do not include task lights) | N36: Room 2 Lighting (Main Lighting only - Do not include task lights)
C37: Select up to 6 Light Fixture Types | K37: Total Room Wattage (W) | N37: Select up to 6 Light Fixture Types | V37: Total Room Wattage (W)
C38: Light Type 1 | E38: Select Light Fixture | F38: =VLOOKUP(E38,'Linked Cells (hidden)'!$D$57:$E$150,2,FALSE) -> Total | H38: =VLOOKUP(E38,'Linked Cells (hidden)'!$D$57:$E$150,2,FALSE)& " " & "Watts" -> Total Watts | K38: =(IF(F38="Total",0,I38*F38)+IF(F39="Total",0,I39*F39)+IF(F40="Total",0,I40*F40)+IF(F41="Total",0,I41*F41)+IF(F42="Total",0,I42*F42)+IF(F43="Total",0,I43*F43)) -> 0 | M38: W | N38: Light Type 1 | P38: Select Light Fixture | Q38: =VLOOKUP(P38,'Linked Cells (hidden)'!$D$57:$E$150,2,FALSE) -> Total | S38: =VLOOKUP(P38,'Linked Cells (hidden)'!$D$57:$E$140,2,FALSE)& " " & "Watts" -> Total Watts | V38: =(IF(Q38="Total",0,T38*Q38)+IF(Q39="Total",0,T39*Q39)+IF(Q40="Total",0,T40*Q40)+IF(Q41="Total",0,T41*Q41)+IF(Q42="Total",0,T42*Q42)+IF(Q43="Total",0,T43*Q43)) -> 0 | X38: W
C39: Light Type 2 | E39: Select Light Fixture | F39: =VLOOKUP(E39,'Linked Cells (hidden)'!$D$57:$E$150,2,FALSE) -> Total | H39: =VLOOKUP(E39,'Linked Cells (hidden)'!$D$57:$E$150,2,FALSE)& " " & "Watts" -> Total Watts | N39: Light Type 2 | P39: Select Light Fixture | Q39: =VLOOKUP(P39,'Linked Cells (hidden)'!$D$57:$E$150,2,FALSE) -> Total | S39: =VLOOKUP(P39,'Linked Cells (hidden)'!$D$57:$E$140,2,FALSE)& " " & "Watts" -> Total Watts
C40: Light Type 3 | E40: Select Light Fixture | F40: =VLOOKUP(E40,'Linked Cells (hidden)'!$D$57:$E$150,2,FALSE) -> Total | H40: =VLOOKUP(E40,'Linked Cells (hidden)'!$D$57:$E$150,2,FALSE)& " " & "Watts" -> Total Watts | K40: Room Lighting Power Density (LPD) | N40: Light Type 3 | P40: Select Light Fixture | Q40: =VLOOKUP(P40,'Linked Cells (hidden)'!$D$57:$E$150,2,FALSE) -> Total | S40: =VLOOKUP(P40,'Linked Cells (hidden)'!$D$57:$E$140,2,FALSE)& " " & "Watts" -> Total Watts | V40: Room Lighting Power Density (LPD)
C41: Light Type 4 | E41: Select Light Fixture | F41: =VLOOKUP(E41,'Linked Cells (hidden)'!$D$57:$E$150,2,FALSE) -> Total | H41: =VLOOKUP(E41,'Linked Cells (hidden)'!$D$57:$E$150,2,FALSE)& " " & "Watts" -> Total Watts | K41: =IF(K38=0,"",K38/I35) ->  | L41: W/ft2 | N41: Light Type 4 | P41: Select Light Fixture | Q41: =VLOOKUP(P41,'Linked Cells (hidden)'!$D$57:$E$150,2,FALSE) -> Total | S41: =VLOOKUP(P41,'Linked Cells (hidden)'!$D$57:$E$140,2,FALSE)& " " & "Watts" -> Total Watts | V41: =IF(V38=0,"",V38/T35) ->  | W41: W/ft2
C42: Light Type 5 | E42: Select Light Fixture | F42: =VLOOKUP(E42,'Linked Cells (hidden)'!$D$57:$E$150,2,FALSE) -> Total | H42: =VLOOKUP(E42,'Linked Cells (hidden)'!$D$57:$E$150,2,FALSE)& " " & "Watts" -> Total Watts | N42: Light Type 5 | P42: Select Light Fixture | Q42: =VLOOKUP(P42,'Linked Cells (hidden)'!$D$57:$E$150,2,FALSE) -> Total | S42: =VLOOKUP(P42,'Linked Cells (hidden)'!$D$57:$E$140,2,FALSE)& " " & "Watts" -> Total Watts
C43: Other Type : Name | F43: =IF(D44=0,"Total",D44) -> Total | H43: =F43 & " Watts" -> Total Watts | N43: Other Type : Name | Q43: =IF(O44=0,"Total",O44) -> Total | S43: =Q43 & " Watts" -> Total Watts
C44: : Watts | N44: : Watts
C47: Room 3 Name | H47: Area | J47: Ft2 | N47: Room 4 Name | S47: Area | U47: Ft2
C48: Room 3 Lighting (Main Lighting only - Do not include task lights) | N48: Room 4 Lighting (Main Lighting only - Do not include task lights)
C49: Select up to 6 Light Fixture Types | K49: Total Room Wattage (W) | N49: Select up to 6 Light Fixture Types | V49: Total Room Wattage (W)
C50: Light Type 1 | E50: Select Light Fixture | F50: =VLOOKUP(E50,'Linked Cells (hidden)'!$D$57:$E$150,2,FALSE) -> Total | H50: =VLOOKUP(E50,'Linked Cells (hidden)'!$D$57:$E$150,2,FALSE)& " " & "Watts" -> Total Watts | K50: =(IF(F50="Total",0,I50*F50)+IF(F51="Total",0,I51*F51)+IF(F52="Total",0,I52*F52)+IF(F53="Total",0,I53*F53)+IF(F54="Total",0,I54*F54)+IF(F55="Total",0,I55*F55)) -> 0 | M50: W | N50: Light Type 1 | P50: Select Light Fixture | Q50: =VLOOKUP(P50,'Linked Cells (hidden)'!$D$57:$E$150,2,FALSE) -> Total | S50: =VLOOKUP(P50,'Linked Cells (hidden)'!$D$57:$E$140,2,FALSE)& " " & "Watts" -> Total Watts | V50: =(IF(Q50="Total",0,T50*Q50)+IF(Q51="Total",0,T51*Q51)+IF(Q52="Total",0,T52*Q52)+IF(Q53="Total",0,T53*Q53)+IF(Q54="Total",0,T54*Q54)+IF(Q55="Total",0,T55*Q55)) -> 0 | X50: W
C51: Light Type 2 | E51: Select Light Fixture | F51: =VLOOKUP(E51,'Linked Cells (hidden)'!$D$57:$E$150,2,FALSE) -> Total | H51: =VLOOKUP(E51,'Linked Cells (hidden)'!$D$57:$E$150,2,FALSE)& " " & "Watts" -> Total Watts | N51: Light Type 2 | P51: Select Light Fixture | Q51: =VLOOKUP(P51,'Linked Cells (hidden)'!$D$57:$E$150,2,FALSE) -> Total | S51: =VLOOKUP(P51,'Linked Cells (hidden)'!$D$57:$E$140,2,FALSE)& " " & "Watts" -> Total Watts
C52: Light Type 3 | E52: Select Light Fixture | F52: =VLOOKUP(E52,'Linked Cells (hidden)'!$D$57:$E$150,2,FALSE) -> Total | H52: =VLOOKUP(E52,'Linked Cells (hidden)'!$D$57:$E$150,2,FALSE)& " " & "Watts" -> Total Watts | K52: Room Lighting Power Density (LPD) | N52: Light Type 3 | P52: Select Light Fixture | Q52: =VLOOKUP(P52,'Linked Cells (hidden)'!$D$57:$E$150,2,FALSE) -> Total | S52: =VLOOKUP(P52,'Linked Cells (hidden)'!$D$57:$E$140,2,FALSE)& " " & "Watts" -> Total Watts | V52: Room Lighting Power Density (LPD)
C53: Light Type 4 | E53: Select Light Fixture | F53: =VLOOKUP(E53,'Linked Cells (hidden)'!$D$57:$E$150,2,FALSE) -> Total | H53: =VLOOKUP(E53,'Linked Cells (hidden)'!$D$57:$E$150,2,FALSE)& " " & "Watts" -> Total Watts | K53: =IF(K50=0,"",K50/I47) ->  | L53: W/ft2 | N53: Light Type 4 | P53: Select Light Fixture | Q53: =VLOOKUP(P53,'Linked Cells (hidden)'!$D$57:$E$150,2,FALSE) -> Total | S53: =VLOOKUP(P53,'Linked Cells (hidden)'!$D$57:$E$140,2,FALSE)& " " & "Watts" -> Total Watts | V53: =IF(V50=0,"",V50/T47) ->  | W53: W/ft2
C54: Light Type 5 | E54: Select Light Fixture | F54: =VLOOKUP(E54,'Linked Cells (hidden)'!$D$57:$E$150,2,FALSE) -> Total | H54: =VLOOKUP(E54,'Linked Cells (hidden)'!$D$57:$E$150,2,FALSE)& " " & "Watts" -> Total Watts | N54: Light Type 5 | P54: Select Light Fixture | Q54: =VLOOKUP(P54,'Linked Cells (hidden)'!$D$57:$E$150,2,FALSE) -> Total | S54: =VLOOKUP(P54,'Linked Cells (hidden)'!$D$57:$E$140,2,FALSE)& " " & "Watts" -> Total Watts
C55: Other Type : Name | F55: =IF(D56=0,"Total",D56) -> Total | H55: =F55 & " Watts" -> Total Watts | N55: Other Type : Name | Q55: =IF(O56=0,"Total",O56) -> Total | S55: =Q55 & " Watts" -> Total Watts
C56: : Watts | N56: : Watts
C59: Room 5 Name | H59: Area | J59: Ft2 | N59: Room 6 Name | S59: Area | U59: Ft2
C60: Room 5 Lighting (Main Lighting only - Do not include task lights) | N60: Room 6 Lighting (Main Lighting only - Do not include task lights)
C61: Select up to 6 Light Fixture Types | K61: Total Room Wattage (W) | N61: Select up to 6 Light Fixture Types | V61: Total Room Wattage (W)
C62: Light Type 1 | E62: Select Light Fixture | F62: =VLOOKUP(E62,'Linked Cells (hidden)'!$D$57:$E$150,2,FALSE) -> Total | H62: =VLOOKUP(E62,'Linked Cells (hidden)'!$D$57:$E$150,2,FALSE)& " " & "Watts" -> Total Watts | K62: =(IF(F62="Total",0,I62*F62)+IF(F63="Total",0,I63*F63)+IF(F64="Total",0,I64*F64)+IF(F65="Total",0,I65*F65)+IF(F66="Total",0,I66*F66)+IF(F67="Total",0,I67*F67)) -> 0 | M62: W | N62: Light Type 1 | P62: Select Light Fixture | Q62: =VLOOKUP(P62,'Linked Cells (hidden)'!$D$57:$E$150,2,FALSE) -> Total | S62: =VLOOKUP(P62,'Linked Cells (hidden)'!$D$57:$E$140,2,FALSE)& " " & "Watts" -> Total Watts | V62: =(IF(Q62="Total",0,T62*Q62)+IF(Q63="Total",0,T63*Q63)+IF(Q64="Total",0,T64*Q64)+IF(Q65="Total",0,T65*Q65)+IF(Q66="Total",0,T66*Q66)+IF(Q67="Total",0,T67*Q67)) -> 0 | X62: W
C63: Light Type 2 | E63: Select Light Fixture | F63: =VLOOKUP(E63,'Linked Cells (hidden)'!$D$57:$E$150,2,FALSE) -> Total | H63: =VLOOKUP(E63,'Linked Cells (hidden)'!$D$57:$E$150,2,FALSE)& " " & "Watts" -> Total Watts | N63: Light Type 2 | P63: Select Light Fixture | Q63: =VLOOKUP(P63,'Linked Cells (hidden)'!$D$57:$E$150,2,FALSE) -> Total | S63: =VLOOKUP(P63,'Linked Cells (hidden)'!$D$57:$E$140,2,FALSE)& " " & "Watts" -> Total Watts
C64: Light Type 3 | E64: Select Light Fixture | F64: =VLOOKUP(E64,'Linked Cells (hidden)'!$D$57:$E$150,2,FALSE) -> Total | H64: =VLOOKUP(E64,'Linked Cells (hidden)'!$D$57:$E$150,2,FALSE)& " " & "Watts" -> Total Watts | K64: Room Lighting Power Density (LPD) | N64: Light Type 3 | P64: Select Light Fixture | Q64: =VLOOKUP(P64,'Linked Cells (hidden)'!$D$57:$E$150,2,FALSE) -> Total | S64: =VLOOKUP(P64,'Linked Cells (hidden)'!$D$57:$E$140,2,FALSE)& " " & "Watts" -> Total Watts | V64: Room Lighting Power Density (LPD)
C65: Light Type 4 | E65: Select Light Fixture | F65: =VLOOKUP(E65,'Linked Cells (hidden)'!$D$57:$E$150,2,FALSE) -> Total | H65: =VLOOKUP(E65,'Linked Cells (hidden)'!$D$57:$E$150,2,FALSE)& " " & "Watts" -> Total Watts | K65: =IF(K62=0,"",K62/I59) ->  | L65: W/ft2 | N65: Light Type 4 | P65: Select Light Fixture | Q65: =VLOOKUP(P65,'Linked Cells (hidden)'!$D$57:$E$150,2,FALSE) -> Total | S65: =VLOOKUP(P65,'Linked Cells (hidden)'!$D$57:$E$140,2,FALSE)& " " & "Watts" -> Total Watts | V65: =IF(V62=0,"",V62/T59) ->  | W65: W/ft2
C66: Light Type 5 | E66: Select Light Fixture | F66: =VLOOKUP(E66,'Linked Cells (hidden)'!$D$57:$E$150,2,FALSE) -> Total | H66: =VLOOKUP(E66,'Linked Cells (hidden)'!$D$57:$E$150,2,FALSE)& " " & "Watts" -> Total Watts | N66: Light Type 5 | P66: Select Light Fixture | Q66: =VLOOKUP(P66,'Linked Cells (hidden)'!$D$57:$E$150,2,FALSE) -> Total | S66: =VLOOKUP(P66,'Linked Cells (hidden)'!$D$57:$E$140,2,FALSE)& " " & "Watts" -> Total Watts
C67: Other Type : Name | F67: =IF(D68=0,"Total",D68) -> Total | H67: =F67 & " Watts" -> Total Watts | N67: Other Type : Name | Q67: =IF(O68=0,"Total",O68) -> Total | S67: =Q67 & " Watts" -> Total Watts
C68: : Watts | N68: : Watts
C71: Room 7 Name | H71: Area | J71: Ft2 | N71: Room 8 Name | S71: Area | U71: Ft2
C72: Room 7 Lighting (Main Lighting only - Do not include task lights) | N72: Room 8 Lighting (Main Lighting only - Do not include task lights)
C73: Select up to 6 Light Fixture Types | K73: Total Room Wattage (W) | N73: Select up to 6 Light Fixture Types | V73: Total Room Wattage (W)
C74: Light Type 1 | E74: Select Light Fixture | H74: =VLOOKUP(E74,'Linked Cells (hidden)'!$D$57:$E$150,2,FALSE)& " " & "Watts" -> Total Watts | K74: =(IF(F74="Total",0,I74*F74)+IF(F75="Total",0,I75*F75)+IF(F76="Total",0,I76*F76)+IF(F77="Total",0,I77*F77)+IF(F78="Total",0,I78*F78)+IF(F79="Total",0,I79*F79)) -> 0 | M74: W | N74: Light Type 1 | P74: Select Light Fixture | S74: =VLOOKUP(P74,'Linked Cells (hidden)'!$D$57:$E$140,2,FALSE)& " " & "Watts" -> Total Watts | V74: =(IF(Q74="Total",0,T74*Q74)+IF(Q75="Total",0,T75*Q75)+IF(Q76="Total",0,T76*Q76)+IF(Q77="Total",0,T77*Q77)+IF(Q78="Total",0,T78*Q78)+IF(Q79="Total",0,T79*Q79)) -> 0 | X74: W
C75: Light Type 2 | E75: Select Light Fixture | F75: =VLOOKUP(E75,'Linked Cells (hidden)'!$D$57:$E$150,2,FALSE) -> Total | H75: =VLOOKUP(E75,'Linked Cells (hidden)'!$D$57:$E$150,2,FALSE)& " " & "Watts" -> Total Watts | N75: Light Type 2 | P75: Select Light Fixture | Q75: =VLOOKUP(P75,'Linked Cells (hidden)'!$D$57:$E$150,2,FALSE) -> Total | S75: =VLOOKUP(P75,'Linked Cells (hidden)'!$D$57:$E$140,2,FALSE)& " " & "Watts" -> Total Watts
C76: Light Type 3 | E76: Select Light Fixture | F76: =VLOOKUP(E76,'Linked Cells (hidden)'!$D$57:$E$150,2,FALSE) -> Total | H76: =VLOOKUP(E76,'Linked Cells (hidden)'!$D$57:$E$150,2,FALSE)& " " & "Watts" -> Total Watts | K76: Room Lighting Power Density (LPD) | N76: Light Type 3 | P76: Select Light Fixture | Q76: =VLOOKUP(P76,'Linked Cells (hidden)'!$D$57:$E$150,2,FALSE) -> Total | S76: =VLOOKUP(P76,'Linked Cells (hidden)'!$D$57:$E$140,2,FALSE)& " " & "Watts" -> Total Watts | V76: Room Lighting Power Density (LPD)
C77: Light Type 4 | E77: Select Light Fixture | F77: =VLOOKUP(E77,'Linked Cells (hidden)'!$D$57:$E$150,2,FALSE) -> Total | H77: =VLOOKUP(E77,'Linked Cells (hidden)'!$D$57:$E$150,2,FALSE)& " " & "Watts" -> Total Watts | K77: =IF(K74=0,"",K74/I71) ->  | L77: W/ft2 | N77: Light Type 4 | P77: Select Light Fixture | Q77: =VLOOKUP(P77,'Linked Cells (hidden)'!$D$57:$E$150,2,FALSE) -> Total | S77: =VLOOKUP(P77,'Linked Cells (hidden)'!$D$57:$E$140,2,FALSE)& " " & "Watts" -> Total Watts | V77: =IF(V74=0,"",V74/T71) ->  | W77: W/ft2
C78: Light Type 5 | E78: Select Light Fixture | F78: =VLOOKUP(E78,'Linked Cells (hidden)'!$D$57:$E$150,2,FALSE) -> Total | H78: =VLOOKUP(E78,'Linked Cells (hidden)'!$D$57:$E$150,2,FALSE)& " " & "Watts" -> Total Watts | N78: Light Type 5 | P78: Select Light Fixture | Q78: =VLOOKUP(P78,'Linked Cells (hidden)'!$D$57:$E$150,2,FALSE) -> Total | S78: =VLOOKUP(P78,'Linked Cells (hidden)'!$D$57:$E$140,2,FALSE)& " " & "Watts" -> Total Watts
C79: Other Type : Name | F79: =IF(D80=0,"Total",D80) -> Total | H79: =F79 & " Watts" -> Total Watts | N79: Other Type : Name | Q79: =IF(O80=0,"Total",O80) -> Total | S79: =Q79 & " Watts" -> Total Watts
C80: : Watts | N80: : Watts
C83: Room 9 Name | H83: Area | J83: Ft2 | N83: Room 10 Name | S83: Area | U83: Ft2
C84: Room 9 Lighting (Main Lighting only - Do not include task lights) | N84: Room 10 Lighting (Main Lighting only - Do not include task lights)
C85: Select up to 6 Light Fixture Types | K85: Total Room Wattage (W) | N85: Select up to 6 Light Fixture Types | V85: Total Room Wattage (W)
C86: Light Type 1 | E86: Select Light Fixture | F86: =VLOOKUP(E86,'Linked Cells (hidden)'!$D$57:$E$150,2,FALSE) -> Total | H86: =VLOOKUP(E86,'Linked Cells (hidden)'!$D$57:$E$150,2,FALSE)& " " & "Watts" -> Total Watts | K86: =(IF(F86="Total",0,I86*F86)+IF(F87="Total",0,I87*F87)+IF(F88="Total",0,I88*F88)+IF(F89="Total",0,I89*F89)+IF(F90="Total",0,I90*F90)+IF(F91="Total",0,I91*F91)) -> 0 | M86: W | N86: Light Type 1 | P86: Select Light Fixture | Q86: =VLOOKUP(P86,'Linked Cells (hidden)'!$D$57:$E$150,2,FALSE) -> Total | S86: =VLOOKUP(P86,'Linked Cells (hidden)'!$D$57:$E$140,2,FALSE)& " " & "Watts" -> Total Watts | V86: =(IF(Q86="Total",0,T86*Q86)+IF(Q87="Total",0,T87*Q87)+IF(Q88="Total",0,T88*Q88)+IF(Q89="Total",0,T89*Q89)+IF(Q90="Total",0,T90*Q90)+IF(Q91="Total",0,T91*Q91)) -> 0 | X86: W
C87: Light Type 2 | E87: Select Light Fixture | H87: =VLOOKUP(E87,'Linked Cells (hidden)'!$D$57:$E$150,2,FALSE)& " " & "Watts" -> Total Watts | N87: Light Type 2 | P87: Select Light Fixture | S87: =VLOOKUP(P87,'Linked Cells (hidden)'!$D$57:$E$140,2,FALSE)& " " & "Watts" -> Total Watts
C88: Light Type 3 | E88: Select Light Fixture | F88: =VLOOKUP(E88,'Linked Cells (hidden)'!$D$57:$E$150,2,FALSE) -> Total | H88: =VLOOKUP(E88,'Linked Cells (hidden)'!$D$57:$E$150,2,FALSE)& " " & "Watts" -> Total Watts | K88: Room Lighting Power Density (LPD) | N88: Light Type 3 | P88: Select Light Fixture | Q88: =VLOOKUP(P88,'Linked Cells (hidden)'!$D$57:$E$150,2,FALSE) -> Total | S88: =VLOOKUP(P88,'Linked Cells (hidden)'!$D$57:$E$140,2,FALSE)& " " & "Watts" -> Total Watts | V88: Room Lighting Power Density (LPD)
C89: Light Type 4 | E89: Select Light Fixture | F89: =VLOOKUP(E89,'Linked Cells (hidden)'!$D$57:$E$150,2,FALSE) -> Total | H89: =VLOOKUP(E89,'Linked Cells (hidden)'!$D$57:$E$150,2,FALSE)& " " & "Watts" -> Total Watts | K89: =IF(K86=0,"",K86/I83) ->  | L89: W/ft2 | N89: Light Type 4 | P89: Select Light Fixture | Q89: =VLOOKUP(P89,'Linked Cells (hidden)'!$D$57:$E$150,2,FALSE) -> Total | S89: =VLOOKUP(P89,'Linked Cells (hidden)'!$D$57:$E$140,2,FALSE)& " " & "Watts" -> Total Watts | V89: =IF(V86=0,"",V86/T83) ->  | W89: W/ft2
C90: Light Type 5 | E90: Select Light Fixture | F90: =VLOOKUP(E90,'Linked Cells (hidden)'!$D$57:$E$150,2,FALSE) -> Total | H90: =VLOOKUP(E90,'Linked Cells (hidden)'!$D$57:$E$150,2,FALSE)& " " & "Watts" -> Total Watts | N90: Light Type 5 | P90: Select Light Fixture | Q90: =VLOOKUP(P90,'Linked Cells (hidden)'!$D$57:$E$150,2,FALSE) -> Total | S90: =VLOOKUP(P90,'Linked Cells (hidden)'!$D$57:$E$140,2,FALSE)& " " & "Watts" -> Total Watts
C91: Other Type : Name | F91: =IF(D92=0,"Total",D92) -> Total | H91: =F91 & " Watts" -> Total Watts | N91: Other Type : Name | Q91: =IF(O92=0,"Total",O92) -> Total | S91: =Q91 & " Watts" -> Total Watts
C92: : Watts | N92: : Watts
B96: HVAC/Non-Process Energy
B98: To determine the site's Non-Process Heating, Ventilating, and Air Conditioning (HVAC) loads and energy use, describe each building's HVAC electrical using units by entering them below. If multiple of a unit exists, either add them into the table as separate units or enter Motor Size as the motor's size (in hp) multiplied by the quantity. Non-Process HVAC is meant to include all equipment not tied to specific process operations such as general ventilation heaters, office air conditioners, restroom exhaust fans, etc. Do not provide process-related ventilation equipment such as odor control fans here. You can enter process equipment information on the "WTP or WWTP Energy Usage" tab. For each Non-Process HVAC unit select the equipment type from the dropdown list and enter an “Equipment Description.” Collect and enter each unit’s motor size, efficiency and full load amperage (FLA) ratings. This information can be gathered from the equipment's nameplate or specification datasheet. If the site has authorized personnel capable of taking electrical measurements, enter the motors average operating current. Otherwise leave the "Average Motor Operating Current" blank and the tool will use an 80% Load Factor in its calculations. Once the equipment's typical operating hours are entered, the tool calculates the estimated annual energy use and operating cost for the unit. If conditions at the plant change, you can adjust these values. A summary of the HVAC and lighting information entered on the building data tabs is displayed on the top on the WTP and WWTP Energy Usage tabs. For those values to be included in the total energy use and to be displayed in the pie charts and summary report, you must enter the values in the Equipment Electrical Energy Inventory table (on the WTP or WWTP Energy Usage tab) as Non Process HVAC. See the instructions on that tab on how to enter this information.
C103: System Type | D103: Equipment Type | G103: Equipment Description | H103: Motor Size (hp) | I103: Motor Efficiency | J103: Motor Full Load Amperage (FLA) | K103: Average Motor Operating Current (Amps) | L103: Motor Operating Hours (Hours/Year) | M103: Average Load Factor (%) | N103: Average HVAC Electric Load (kW) | O103: Estimated Annual Energy Use (kWh/yr) | R103: Estimated Annual Operating Costs ($/Year) | S103: Estimated Percent of Site Electric Use & Cost (%)
C104: Non Process HVAC | D104: Fan | G104: Unit Heater Fan | H104: 0.75 | I104: 0.85 | J104: 1 | K104: 0.9 | L104: 2500 | M104: =IF(J104=0,0,IF(K104=0,0.75,K104/J104)) -> 0.9 | N104: =IF(I104=0,0,H104*0.746*M104/I104) -> 0.5924117647 | O104: =N104*L104 -> 1481.029412 | R104: =O104*'General Information'!$H$46 -> 149.8800974 | S104: =IF('General Information'!$H$44=0,"",O104/'General Information'!$H$44) -> 0.0006588209127
C105: Non Process HVAC | D105: Fan | G105: Unit Heater Fan | H105: 0.75 | I105: 0.85 | J105: 1 | K105: 0.9 | L105: 2500 | M105: 0.9 | N105: 0.5924117647 | O105: 1481.029412 | R105: =O105*'General Information'!$H$46 -> 149.8800974 | S105: =IF('General Information'!$H$44=0,"",O105/'General Information'!$H$44) -> 0.0006588209127
C106: Non Process HVAC | D106: Fan | G106: Exhaust Fan | H106: 2 | I106: 0.85 | J106: 2.2 | K106: 1.8 | L106: 2500 | M106: 0.8181818182 | N106: 1.436149733 | O106: 3590.374332 | R106: =O106*'General Information'!$H$46 -> 363.3456907 | S106: =IF('General Information'!$H$44=0,"",O106/'General Information'!$H$44) -> 0.001597141607
C107: Non Process HVAC | D107: Select Equipment | M107: 0 | N107: 0 | O107: 0 | R107: =O107*'General Information'!$H$46 -> 0 | S107: =IF('General Information'!$H$44=0,"",O107/'General Information'!$H$44) -> 0
C108: Non Process HVAC | D108: Select Equipment | M108: 0 | N108: 0 | O108: 0 | R108: =O108*'General Information'!$H$46 -> 0 | S108: =IF('General Information'!$H$44=0,"",O108/'General Information'!$H$44) -> 0
C109: Non Process HVAC | D109: Select Equipment | M109: 0 | N109: 0 | O109: 0 | R109: =O109*'General Information'!$H$46 -> 0 | S109: =IF('General Information'!$H$44=0,"",O109/'General Information'!$H$44) -> 0
J111: Total Building HVAC | N111: =SUM(N101:N109) -> 2.620973262 | O111: =SUM(O101:O109) -> 6552.433155 | R111: =SUM(R104:R109) -> 663.1058855 | S111: =SUM(S104:S109) -> 0.002914783432

Sheet Building 3 Data
A1: ="EPA Energy Use Assessment Tool for " & workbookType -> EPA Energy Use Assessment Tool for Drinking Water Systems
A2: Site Structural Buildings - Major Non-Process Energy Users
B4: In the Building Data tabs, the tool totals each building’s Lighting and HVAC information. You should use the totals for entry on the WTP or WWTP Energy Use tabs. For instructions on how to enter that information, see the WTP or WWTP Energy Usage tabs. If you have already identified the site's Lighting and HVAC loads or would just like to estimate them without detailing this information here, proceed to the WTP or WWTP Energy Usage tab. If you skip this tab, you can come back later to fill in this detail.
B6: The following information is entered once for the entire plant. To change the Total Number of Buildings on-site, go to the "Building 1 Data" tab and click the "Set # of Buildings" button. This lets you enter information for the specified number of buildings. After entering data in a building tab, click the "Save and Continue" button at the top. That allows you to enter data for the next building or if building data entry is complete, to return to the General Information tab. You can also click the other Building Data tabs at the bottom.
B9: Total Plant Building Area | D9: ='Building 1 Data'!D9 -> 9000 | E9: 3 | G9: Ft2 | H9: Total Plant Building Electric Load | K9: ='Building 1 Data'!K9 -> 57.14935709 | L9: kW | M9: Total Plant Building Electric Use | O9: ='Building 1 Data'!O9 -> 141729.2706 | R9: kWh/Yr
B11: Does the site have buildings? | D11: =hasBldgs -> Yes | H11: Total Number of Buildings On-site: | K11: =[0]!totalbldgs -> 10
B13: Enter the following information for each building at the plant. To begin, select the number of rooms in the "No. of Rooms" dropdown list below and click the "Set # of rooms" button. It is important to know and set the number of rooms upfront, before any lighting data is entered. If the number of rooms is later changed, all the data that had been entered will be lost.
C16: ="BUILDING " & E9 -> BUILDING 3
C18: Name | D18: Roughing Tower | I18: Operating Hours per Year | K18: =IF(K19="","",K19*K20*52) -> 2912 | L18: Hrs/Yr | M18: Approximate Building Age (If known) | S18: Yrs
C19: Area | D19: =I35+T35+T47+I47+I59+T59+T71+I71+I83+T83 -> 0 | G19: Ft2 | I19: Operating Hours per Day | K19: 8 | L19: Hrs/Day
C20: No. of Rooms | G20: ! Changing the number of rooms will reset all lighting data entered. | I20: Operating Days per Week | K20: 7 | L20: Days/Wk | M20: Average Building Lighting Power Density (LPD) | R20: =IF(D19=0,"",(K38+V38+V50+K50+K62+V62+V74+K74+K86+V86)/D19) ->  | S20: W/ft2
C21: Estimated Electric Load: | I21: Estimated Annual Energy Use: | N21: Estimated Annual Energy Cost:
C22: ="Total Building " & $E$9& " Lighting" -> Total Building 3 Lighting | G22: =IF((K38+V38+V50+K50+K62+V62+V74+K74+K86+V86)=0,0,(K38+V38+V50+K50+K62+V62+V74+K74+K86+V86)/1000) -> 0 | H22: kW | I22: ="Total Building " & $E$9& " Lighting" -> Total Building 3 Lighting | L22: =IF((K38+V38+V50+K50+K62+V62+V74+K74+K86+V86)=0,IF(K18="",0,0),IF(K18="",0,((K38+V38+V50+K50+K62+V62+V74+K74+K86+V86)/1000)*K18)) -> 0 | M22: kWh/Yr | N22: ="Total Building " & $E$9 & " Lighting" -> Total Building 3 Lighting | R22: =L22*'General Information'!$H$46 -> 0 | S22: $/Yr
C23: ="Total Building " & $E$9 & " HVAC" -> Total Building 3 HVAC | G23: =N111 -> 0.5924117647 | H23: kW | I23: ="Total Building " & $E$9 & " HVAC" -> Total Building 3 HVAC | L23: =O$111 -> 1481.029412 | M23: kWh/Yr | N23: ="Total Building " & $E$9 & " HVAC" -> Total Building 3 HVAC | R23: =R111 -> 149.8800974 | S23: $/Yr
C24: ="Total Building " & $E$9 & " Combined" -> Total Building 3 Combined | G24: =SUM(G22:G23) -> 0.5924117647 | H24: kW | I24: ="Total Building " & $E$9 & " Combined" -> Total Building 3 Combined | L24: =SUM(L22,L23) -> 1481.029412 | M24: kWh/Yr | N24: ="Total Building " & $E$9 & " Combined" -> Total Building 3 Combined | R24: =SUM(R22,R23) -> 149.8800974 | S24: $/Yr
C26: LIGHTING
B28: To determine the site’s lighting loads and energy use, select each of the room’s lighting fixture types and quantity (Qty) using the dropdown lists below. Select a light type from the dropdown list for each size and kind of fixture in a room. Then enter the quantity for each type. The tool provides the fixture’s electrical energy load in watts. Do not include task lights (directional lights used to illuminate an area of work) when entering the room's lighting fixtures. If a type of fixture is not available in the dropdown list, use the "Other Type" input field to enter the fixture and its total wattage. The table automatically totals the room's lighting loads, each building's lighting energy use and the site's total lighting energy use per year for use in other areas of the tool. Enter the area of each room and the tool calculates the Lighting Power Density (LPD) in watts per square foot. You can now take an important next step and compare LPD’s from room to room and building to building to determine where excess energy might be in use.
C35: Room 1 Name | H35: Area | J35: Ft2 | N35: Room 2 Name | S35: Area | U35: Ft2
C36: Room 1 Lighting (Main Lighting only - Do not include task lights) | N36: Room 2 Lighting (Main Lighting only - Do not include task lights)
C37: Select up to 6 Light Fixture Types | K37: Total Room Wattage (W) | N37: Select up to 6 Light Fixture Types | V37: Total Room Wattage (W)
C38: Light Type 1 | E38: Select Light Fixture | F38: =VLOOKUP(E38,'Linked Cells (hidden)'!$D$57:$E$150,2,FALSE) -> Total | H38: =VLOOKUP(E38,'Linked Cells (hidden)'!$D$57:$E$150,2,FALSE)& " " & "Watts" -> Total Watts | K38: =(IF(F38="Total",0,I38*F38)+IF(F39="Total",0,I39*F39)+IF(F40="Total",0,I40*F40)+IF(F41="Total",0,I41*F41)+IF(F42="Total",0,I42*F42)+IF(F43="Total",0,I43*F43)) -> 0 | M38: W | N38: Light Type 1 | P38: Select Light Fixture | Q38: =VLOOKUP(P38,'Linked Cells (hidden)'!$D$57:$E$150,2,FALSE) -> Total | S38: =VLOOKUP(P38,'Linked Cells (hidden)'!$D$57:$E$140,2,FALSE)& " " & "Watts" -> Total Watts | V38: =(IF(Q38="Total",0,T38*Q38)+IF(Q39="Total",0,T39*Q39)+IF(Q40="Total",0,T40*Q40)+IF(Q41="Total",0,T41*Q41)+IF(Q42="Total",0,T42*Q42)+IF(Q43="Total",0,T43*Q43)) -> 0 | X38: W
C39: Light Type 2 | E39: Select Light Fixture | F39: =VLOOKUP(E39,'Linked Cells (hidden)'!$D$57:$E$150,2,FALSE) -> Total | H39: =VLOOKUP(E39,'Linked Cells (hidden)'!$D$57:$E$150,2,FALSE)& " " & "Watts" -> Total Watts | N39: Light Type 2 | P39: Select Light Fixture | Q39: =VLOOKUP(P39,'Linked Cells (hidden)'!$D$57:$E$150,2,FALSE) -> Total | S39: =VLOOKUP(P39,'Linked Cells (hidden)'!$D$57:$E$140,2,FALSE)& " " & "Watts" -> Total Watts
C40: Light Type 3 | E40: Select Light Fixture | F40: =VLOOKUP(E40,'Linked Cells (hidden)'!$D$57:$E$150,2,FALSE) -> Total | H40: =VLOOKUP(E40,'Linked Cells (hidden)'!$D$57:$E$150,2,FALSE)& " " & "Watts" -> Total Watts | K40: Room Lighting Power Density (LPD) | N40: Light Type 3 | P40: Select Light Fixture | Q40: =VLOOKUP(P40,'Linked Cells (hidden)'!$D$57:$E$150,2,FALSE) -> Total | S40: =VLOOKUP(P40,'Linked Cells (hidden)'!$D$57:$E$140,2,FALSE)& " " & "Watts" -> Total Watts | V40: Room Lighting Power Density (LPD)
C41: Light Type 4 | E41: Select Light Fixture | F41: =VLOOKUP(E41,'Linked Cells (hidden)'!$D$57:$E$150,2,FALSE) -> Total | H41: =VLOOKUP(E41,'Linked Cells (hidden)'!$D$57:$E$150,2,FALSE)& " " & "Watts" -> Total Watts | K41: =IF(K38=0,"",K38/I35) ->  | L41: W/ft2 | N41: Light Type 4 | P41: Select Light Fixture | Q41: =VLOOKUP(P41,'Linked Cells (hidden)'!$D$57:$E$150,2,FALSE) -> Total | S41: =VLOOKUP(P41,'Linked Cells (hidden)'!$D$57:$E$140,2,FALSE)& " " & "Watts" -> Total Watts | V41: =IF(V38=0,"",V38/T35) ->  | W41: W/ft2
C42: Light Type 5 | E42: Select Light Fixture | F42: =VLOOKUP(E42,'Linked Cells (hidden)'!$D$57:$E$150,2,FALSE) -> Total | H42: =VLOOKUP(E42,'Linked Cells (hidden)'!$D$57:$E$150,2,FALSE)& " " & "Watts" -> Total Watts | N42: Light Type 5 | P42: Select Light Fixture | Q42: =VLOOKUP(P42,'Linked Cells (hidden)'!$D$57:$E$150,2,FALSE) -> Total | S42: =VLOOKUP(P42,'Linked Cells (hidden)'!$D$57:$E$140,2,FALSE)& " " & "Watts" -> Total Watts
C43: Other Type : Name | F43: =IF(D44=0,"Total",D44) -> Total | H43: =F43 & " Watts" -> Total Watts | N43: Other Type : Name | Q43: =IF(O44=0,"Total",O44) -> Total | S43: =Q43 & " Watts" -> Total Watts
C44: : Watts | N44: : Watts
C47: Room 3 Name | H47: Area | J47: Ft2 | N47: Room 4 Name | S47: Area | U47: Ft2
C48: Room 3 Lighting (Main Lighting only - Do not include task lights) | N48: Room 4 Lighting (Main Lighting only - Do not include task lights)
C49: Select up to 6 Light Fixture Types | K49: Total Room Wattage (W) | N49: Select up to 6 Light Fixture Types | V49: Total Room Wattage (W)
C50: Light Type 1 | E50: Select Light Fixture | F50: =VLOOKUP(E50,'Linked Cells (hidden)'!$D$57:$E$150,2,FALSE) -> Total | H50: =VLOOKUP(E50,'Linked Cells (hidden)'!$D$57:$E$150,2,FALSE)& " " & "Watts" -> Total Watts | K50: =(IF(F50="Total",0,I50*F50)+IF(F51="Total",0,I51*F51)+IF(F52="Total",0,I52*F52)+IF(F53="Total",0,I53*F53)+IF(F54="Total",0,I54*F54)+IF(F55="Total",0,I55*F55)) -> 0 | M50: W | N50: Light Type 1 | P50: Select Light Fixture | Q50: =VLOOKUP(P50,'Linked Cells (hidden)'!$D$57:$E$150,2,FALSE) -> Total | S50: =VLOOKUP(P50,'Linked Cells (hidden)'!$D$57:$E$140,2,FALSE)& " " & "Watts" -> Total Watts | V50: =(IF(Q50="Total",0,T50*Q50)+IF(Q51="Total",0,T51*Q51)+IF(Q52="Total",0,T52*Q52)+IF(Q53="Total",0,T53*Q53)+IF(Q54="Total",0,T54*Q54)+IF(Q55="Total",0,T55*Q55)) -> 0 | X50: W
C51: Light Type 2 | E51: Select Light Fixture | F51: =VLOOKUP(E51,'Linked Cells (hidden)'!$D$57:$E$150,2,FALSE) -> Total | H51: =VLOOKUP(E51,'Linked Cells (hidden)'!$D$57:$E$150,2,FALSE)& " " & "Watts" -> Total Watts | N51: Light Type 2 | P51: Select Light Fixture | Q51: =VLOOKUP(P51,'Linked Cells (hidden)'!$D$57:$E$150,2,FALSE) -> Total | S51: =VLOOKUP(P51,'Linked Cells (hidden)'!$D$57:$E$140,2,FALSE)& " " & "Watts" -> Total Watts
C52: Light Type 3 | E52: Select Light Fixture | F52: =VLOOKUP(E52,'Linked Cells (hidden)'!$D$57:$E$150,2,FALSE) -> Total | H52: =VLOOKUP(E52,'Linked Cells (hidden)'!$D$57:$E$150,2,FALSE)& " " & "Watts" -> Total Watts | K52: Room Lighting Power Density (LPD) | N52: Light Type 3 | P52: Select Light Fixture | Q52: =VLOOKUP(P52,'Linked Cells (hidden)'!$D$57:$E$150,2,FALSE) -> Total | S52: =VLOOKUP(P52,'Linked Cells (hidden)'!$D$57:$E$140,2,FALSE)& " " & "Watts" -> Total Watts | V52: Room Lighting Power Density (LPD)
C53: Light Type 4 | E53: Select Light Fixture | F53: =VLOOKUP(E53,'Linked Cells (hidden)'!$D$57:$E$150,2,FALSE) -> Total | H53: =VLOOKUP(E53,'Linked Cells (hidden)'!$D$57:$E$150,2,FALSE)& " " & "Watts" -> Total Watts | K53: =IF(K50=0,"",K50/I47) ->  | L53: W/ft2 | N53: Light Type 4 | P53: Select Light Fixture | Q53: =VLOOKUP(P53,'Linked Cells (hidden)'!$D$57:$E$150,2,FALSE) -> Total | S53: =VLOOKUP(P53,'Linked Cells (hidden)'!$D$57:$E$140,2,FALSE)& " " & "Watts" -> Total Watts | V53: =IF(V50=0,"",V50/T47) ->  | W53: W/ft2
C54: Light Type 5 | E54: Select Light Fixture | F54: =VLOOKUP(E54,'Linked Cells (hidden)'!$D$57:$E$150,2,FALSE) -> Total | H54: =VLOOKUP(E54,'Linked Cells (hidden)'!$D$57:$E$150,2,FALSE)& " " & "Watts" -> Total Watts | N54: Light Type 5 | P54: Select Light Fixture | Q54: =VLOOKUP(P54,'Linked Cells (hidden)'!$D$57:$E$150,2,FALSE) -> Total | S54: =VLOOKUP(P54,'Linked Cells (hidden)'!$D$57:$E$140,2,FALSE)& " " & "Watts" -> Total Watts
C55: Other Type : Name | F55: =IF(D56=0,"Total",D56) -> Total | H55: =F55 & " Watts" -> Total Watts | N55: Other Type : Name | Q55: =IF(O56=0,"Total",O56) -> Total | S55: =Q55 & " Watts" -> Total Watts
C56: : Watts | N56: : Watts
C59: Room 5 Name | H59: Area | J59: Ft2 | N59: Room 6 Name | S59: Area | U59: Ft2
C60: Room 5 Lighting (Main Lighting only - Do not include task lights) | N60: Room 6 Lighting (Main Lighting only - Do not include task lights)
C61: Select up to 6 Light Fixture Types | K61: Total Room Wattage (W) | N61: Select up to 6 Light Fixture Types | V61: Total Room Wattage (W)
C62: Light Type 1 | E62: Select Light Fixture | F62: =VLOOKUP(E62,'Linked Cells (hidden)'!$D$57:$E$150,2,FALSE) -> Total | H62: =VLOOKUP(E62,'Linked Cells (hidden)'!$D$57:$E$150,2,FALSE)& " " & "Watts" -> Total Watts | K62: =(IF(F62="Total",0,I62*F62)+IF(F63="Total",0,I63*F63)+IF(F64="Total",0,I64*F64)+IF(F65="Total",0,I65*F65)+IF(F66="Total",0,I66*F66)+IF(F67="Total",0,I67*F67)) -> 0 | M62: W | N62: Light Type 1 | P62: Select Light Fixture | Q62: =VLOOKUP(P62,'Linked Cells (hidden)'!$D$57:$E$150,2,FALSE) -> Total | S62: =VLOOKUP(P62,'Linked Cells (hidden)'!$D$57:$E$140,2,FALSE)& " " & "Watts" -> Total Watts | V62: =(IF(Q62="Total",0,T62*Q62)+IF(Q63="Total",0,T63*Q63)+IF(Q64="Total",0,T64*Q64)+IF(Q65="Total",0,T65*Q65)+IF(Q66="Total",0,T66*Q66)+IF(Q67="Total",0,T67*Q67)) -> 0 | X62: W
C63: Light Type 2 | E63: Select Light Fixture | F63: =VLOOKUP(E63,'Linked Cells (hidden)'!$D$57:$E$150,2,FALSE) -> Total | H63: =VLOOKUP(E63,'Linked Cells (hidden)'!$D$57:$E$150,2,FALSE)& " " & "Watts" -> Total Watts | N63: Light Type 2 | P63: Select Light Fixture | Q63: =VLOOKUP(P63,'Linked Cells (hidden)'!$D$57:$E$150,2,FALSE) -> Total | S63: =VLOOKUP(P63,'Linked Cells (hidden)'!$D$57:$E$140,2,FALSE)& " " & "Watts" -> Total Watts
C64: Light Type 3 | E64: Select Light Fixture | F64: =VLOOKUP(E64,'Linked Cells (hidden)'!$D$57:$E$150,2,FALSE) -> Total | H64: =VLOOKUP(E64,'Linked Cells (hidden)'!$D$57:$E$150,2,FALSE)& " " & "Watts" -> Total Watts | K64: Room Lighting Power Density (LPD) | N64: Light Type 3 | P64: Select Light Fixture | Q64: =VLOOKUP(P64,'Linked Cells (hidden)'!$D$57:$E$150,2,FALSE) -> Total | S64: =VLOOKUP(P64,'Linked Cells (hidden)'!$D$57:$E$140,2,FALSE)& " " & "Watts" -> Total Watts | V64: Room Lighting Power Density (LPD)
C65: Light Type 4 | E65: Select Light Fixture | F65: =VLOOKUP(E65,'Linked Cells (hidden)'!$D$57:$E$150,2,FALSE) -> Total | H65: =VLOOKUP(E65,'Linked Cells (hidden)'!$D$57:$E$150,2,FALSE)& " " & "Watts" -> Total Watts | K65: =IF(K62=0,"",K62/I59) ->  | L65: W/ft2 | N65: Light Type 4 | P65: Select Light Fixture | Q65: =VLOOKUP(P65,'Linked Cells (hidden)'!$D$57:$E$150,2,FALSE) -> Total | S65: =VLOOKUP(P65,'Linked Cells (hidden)'!$D$57:$E$140,2,FALSE)& " " & "Watts" -> Total Watts | V65: =IF(V62=0,"",V62/T59) ->  | W65: W/ft2
C66: Light Type 5 | E66: Select Light Fixture | F66: =VLOOKUP(E66,'Linked Cells (hidden)'!$D$57:$E$150,2,FALSE) -> Total | H66: =VLOOKUP(E66,'Linked Cells (hidden)'!$D$57:$E$150,2,FALSE)& " " & "Watts" -> Total Watts | N66: Light Type 5 | P66: Select Light Fixture | Q66: =VLOOKUP(P66,'Linked Cells (hidden)'!$D$57:$E$150,2,FALSE) -> Total | S66: =VLOOKUP(P66,'Linked Cells (hidden)'!$D$57:$E$140,2,FALSE)& " " & "Watts" -> Total Watts
C67: Other Type : Name | F67: =IF(D68=0,"Total",D68) -> Total | H67: =F67 & " Watts" -> Total Watts | N67: Other Type : Name | Q67: =IF(O68=0,"Total",O68) -> Total | S67: =Q67 & " Watts" -> Total Watts
C68: : Watts | N68: : Watts
C71: Room 7 Name | H71: Area | J71: Ft2 | N71: Room 8 Name | S71: Area | U71: Ft2
C72: Room 7 Lighting (Main Lighting only - Do not include task lights) | N72: Room 8 Lighting (Main Lighting only - Do not include task lights)
C73: Select up to 6 Light Fixture Types | K73: Total Room Wattage (W) | N73: Select up to 6 Light Fixture Types | V73: Total Room Wattage (W)
C74: Light Type 1 | E74: Select Light Fixture | H74: =VLOOKUP(E74,'Linked Cells (hidden)'!$D$57:$E$150,2,FALSE)& " " & "Watts" -> Total Watts | K74: =(IF(F74="Total",0,I74*F74)+IF(F75="Total",0,I75*F75)+IF(F76="Total",0,I76*F76)+IF(F77="Total",0,I77*F77)+IF(F78="Total",0,I78*F78)+IF(F79="Total",0,I79*F79)) -> 0 | M74: W | N74: Light Type 1 | P74: Select Light Fixture | S74: =VLOOKUP(P74,'Linked Cells (hidden)'!$D$57:$E$140,2,FALSE)& " " & "Watts" -> Total Watts | V74: =(IF(Q74="Total",0,T74*Q74)+IF(Q75="Total",0,T75*Q75)+IF(Q76="Total",0,T76*Q76)+IF(Q77="Total",0,T77*Q77)+IF(Q78="Total",0,T78*Q78)+IF(Q79="Total",0,T79*Q79)) -> 0 | X74: W
C75: Light Type 2 | E75: Select Light Fixture | F75: =VLOOKUP(E75,'Linked Cells (hidden)'!$D$57:$E$150,2,FALSE) -> Total | H75: =VLOOKUP(E75,'Linked Cells (hidden)'!$D$57:$E$150,2,FALSE)& " " & "Watts" -> Total Watts | N75: Light Type 2 | P75: Select Light Fixture | Q75: =VLOOKUP(P75,'Linked Cells (hidden)'!$D$57:$E$150,2,FALSE) -> Total | S75: =VLOOKUP(P75,'Linked Cells (hidden)'!$D$57:$E$140,2,FALSE)& " " & "Watts" -> Total Watts
C76: Light Type 3 | E76: Select Light Fixture | F76: =VLOOKUP(E76,'Linked Cells (hidden)'!$D$57:$E$150,2,FALSE) -> Total | H76: =VLOOKUP(E76,'Linked Cells (hidden)'!$D$57:$E$150,2,FALSE)& " " & "Watts" -> Total Watts | K76: Room Lighting Power Density (LPD) | N76: Light Type 3 | P76: Select Light Fixture | Q76: =VLOOKUP(P76,'Linked Cells (hidden)'!$D$57:$E$150,2,FALSE) -> Total | S76: =VLOOKUP(P76,'Linked Cells (hidden)'!$D$57:$E$140,2,FALSE)& " " & "Watts" -> Total Watts | V76: Room Lighting Power Density (LPD)
C77: Light Type 4 | E77: Select Light Fixture | F77: =VLOOKUP(E77,'Linked Cells (hidden)'!$D$57:$E$150,2,FALSE) -> Total | H77: =VLOOKUP(E77,'Linked Cells (hidden)'!$D$57:$E$150,2,FALSE)& " " & "Watts" -> Total Watts | K77: =IF(K74=0,"",K74/I71) ->  | L77: W/ft2 | N77: Light Type 4 | P77: Select Light Fixture | Q77: =VLOOKUP(P77,'Linked Cells (hidden)'!$D$57:$E$150,2,FALSE) -> Total | S77: =VLOOKUP(P77,'Linked Cells (hidden)'!$D$57:$E$140,2,FALSE)& " " & "Watts" -> Total Watts | V77: =IF(V74=0,"",V74/T71) ->  | W77: W/ft2
C78: Light Type 5 | E78: Select Light Fixture | F78: =VLOOKUP(E78,'Linked Cells (hidden)'!$D$57:$E$150,2,FALSE) -> Total | H78: =VLOOKUP(E78,'Linked Cells (hidden)'!$D$57:$E$150,2,FALSE)& " " & "Watts" -> Total Watts | N78: Light Type 5 | P78: Select Light Fixture | Q78: =VLOOKUP(P78,'Linked Cells (hidden)'!$D$57:$E$150,2,FALSE) -> Total | S78: =VLOOKUP(P78,'Linked Cells (hidden)'!$D$57:$E$140,2,FALSE)& " " & "Watts" -> Total Watts
C79: Other Type : Name | F79: =IF(D80=0,"Total",D80) -> Total | H79: =F79 & " Watts" -> Total Watts | N79: Other Type : Name | Q79: =IF(O80=0,"Total",O80) -> Total | S79: =Q79 & " Watts" -> Total Watts
C80: : Watts | N80: : Watts
C83: Room 9 Name | H83: Area | J83: Ft2 | N83: Room 10 Name | S83: Area | U83: Ft2
C84: Room 9 Lighting (Main Lighting only - Do not include task lights) | N84: Room 10 Lighting (Main Lighting only - Do not include task lights)
C85: Select up to 6 Light Fixture Types | K85: Total Room Wattage (W) | N85: Select up to 6 Light Fixture Types | V85: Total Room Wattage (W)
C86: Light Type 1 | E86: Select Light Fixture | F86: =VLOOKUP(E86,'Linked Cells (hidden)'!$D$57:$E$150,2,FALSE) -> Total | H86: =VLOOKUP(E86,'Linked Cells (hidden)'!$D$57:$E$150,2,FALSE)& " " & "Watts" -> Total Watts | K86: =(IF(F86="Total",0,I86*F86)+IF(F87="Total",0,I87*F87)+IF(F88="Total",0,I88*F88)+IF(F89="Total",0,I89*F89)+IF(F90="Total",0,I90*F90)+IF(F91="Total",0,I91*F91)) -> 0 | M86: W | N86: Light Type 1 | P86: Select Light Fixture | Q86: =VLOOKUP(P86,'Linked Cells (hidden)'!$D$57:$E$150,2,FALSE) -> Total | S86: =VLOOKUP(P86,'Linked Cells (hidden)'!$D$57:$E$140,2,FALSE)& " " & "Watts" -> Total Watts | V86: =(IF(Q86="Total",0,T86*Q86)+IF(Q87="Total",0,T87*Q87)+IF(Q88="Total",0,T88*Q88)+IF(Q89="Total",0,T89*Q89)+IF(Q90="Total",0,T90*Q90)+IF(Q91="Total",0,T91*Q91)) -> 0 | X86: W
C87: Light Type 2 | E87: Select Light Fixture | H87: =VLOOKUP(E87,'Linked Cells (hidden)'!$D$57:$E$150,2,FALSE)& " " & "Watts" -> Total Watts | N87: Light Type 2 | P87: Select Light Fixture | S87: =VLOOKUP(P87,'Linked Cells (hidden)'!$D$57:$E$140,2,FALSE)& " " & "Watts" -> Total Watts
C88: Light Type 3 | E88: Select Light Fixture | F88: =VLOOKUP(E88,'Linked Cells (hidden)'!$D$57:$E$150,2,FALSE) -> Total | H88: =VLOOKUP(E88,'Linked Cells (hidden)'!$D$57:$E$150,2,FALSE)& " " & "Watts" -> Total Watts | K88: Room Lighting Power Density (LPD) | N88: Light Type 3 | P88: Select Light Fixture | Q88: =VLOOKUP(P88,'Linked Cells (hidden)'!$D$57:$E$150,2,FALSE) -> Total | S88: =VLOOKUP(P88,'Linked Cells (hidden)'!$D$57:$E$140,2,FALSE)& " " & "Watts" -> Total Watts | V88: Room Lighting Power Density (LPD)
C89: Light Type 4 | E89: Select Light Fixture | F89: =VLOOKUP(E89,'Linked Cells (hidden)'!$D$57:$E$150,2,FALSE) -> Total | H89: =VLOOKUP(E89,'Linked Cells (hidden)'!$D$57:$E$150,2,FALSE)& " " & "Watts" -> Total Watts | K89: =IF(K86=0,"",K86/I83) ->  | L89: W/ft2 | N89: Light Type 4 | P89: Select Light Fixture | Q89: =VLOOKUP(P89,'Linked Cells (hidden)'!$D$57:$E$150,2,FALSE) -> Total | S89: =VLOOKUP(P89,'Linked Cells (hidden)'!$D$57:$E$140,2,FALSE)& " " & "Watts" -> Total Watts | V89: =IF(V86=0,"",V86/T83) ->  | W89: W/ft2
C90: Light Type 5 | E90: Select Light Fixture | F90: =VLOOKUP(E90,'Linked Cells (hidden)'!$D$57:$E$150,2,FALSE) -> Total | H90: =VLOOKUP(E90,'Linked Cells (hidden)'!$D$57:$E$150,2,FALSE)& " " & "Watts" -> Total Watts | N90: Light Type 5 | P90: Select Light Fixture | Q90: =VLOOKUP(P90,'Linked Cells (hidden)'!$D$57:$E$150,2,FALSE) -> Total | S90: =VLOOKUP(P90,'Linked Cells (hidden)'!$D$57:$E$140,2,FALSE)& " " & "Watts" -> Total Watts
C91: Other Type : Name | F91: =IF(D92=0,"Total",D92) -> Total | H91: =F91 & " Watts" -> Total Watts | N91: Other Type : Name | Q91: =IF(O92=0,"Total",O92) -> Total | S91: =Q91 & " Watts" -> Total Watts
C92: : Watts | N92: : Watts
B96: HVAC/Non-Process Energy
B98: To determine the site's Non-Process Heating, Ventilating, and Air Conditioning (HVAC) loads and energy use, describe each building's HVAC electrical using units by entering them below. If multiple of a unit exists, either add them into the table as separate units or enter Motor Size as the motor's size (in hp) multiplied by the quantity. Non-Process HVAC is meant to include all equipment not tied to specific process operations such as general ventilation heaters, office air conditioners, restroom exhaust fans, etc. Do not provide process-related ventilation equipment such as odor control fans here. You can enter process equipment information on the "WTP or WWTP Energy Usage" tab. For each Non-Process HVAC unit select the equipment type from the dropdown list and enter an “Equipment Description.” Collect and enter each unit’s motor size, efficiency and full load amperage (FLA) ratings. This information can be gathered from the equipment's nameplate or specification datasheet. If the site has authorized personnel capable of taking electrical measurements, enter the motors average operating current. Otherwise leave the "Average Motor Operating Current" blank and the tool will use an 80% Load Factor in its calculations. Once the equipment's typical operating hours are entered, the tool calculates the estimated annual energy use and operating cost for the unit. If conditions at the plant change, you can adjust these values. A summary of the HVAC and lighting information entered on the building data tabs is displayed on the top on the WTP and WWTP Energy Usage tabs. For those values to be included in the total energy use and to be displayed in the pie charts and summary report, you must enter the values in the Equipment Electrical Energy Inventory table (on the WTP or WWTP Energy Usage tab) as Non Process HVAC. See the instructions on that tab on how to enter this information.
C103: System Type | D103: Equipment Type | G103: Equipment Description | H103: Motor Size (hp) | I103: Motor Efficiency | J103: Motor Full Load Amperage (FLA) | K103: Average Motor Operating Current (Amps) | L103: Motor Operating Hours (Hours/Year) | M103: Average Load Factor (%) | N103: Average HVAC Electric Load (kW) | O103: Estimated Annual Energy Use (kWh/yr) | R103: Estimated Annual Operating Costs ($/Year) | S103: Estimated Percent of Site Electric Use & Cost (%)
C104: Non Process HVAC | D104: Fan | G104: Unit Heater Fan | H104: 0.75 | I104: 0.85 | J104: 1 | K104: 0.9 | L104: 2500 | M104: =IF(J104=0,0,IF(K104=0,0.75,K104/J104)) -> 0.9 | N104: =IF(I104=0,0,H104*0.746*M104/I104) -> 0.5924117647 | O104: =N104*L104 -> 1481.029412 | R104: =O104*'General Information'!$H$46 -> 149.8800974 | S104: =IF('General Information'!$H$44=0,"",O104/'General Information'!$H$44) -> 0.0006588209127
C105: Non Process HVAC | D105: Select Equipment | M105: 0 | N105: 0 | O105: 0 | R105: =O105*'General Information'!$H$46 -> 0 | S105: =IF('General Information'!$H$44=0,"",O105/'General Information'!$H$44) -> 0
C106: Non Process HVAC | D106: Select Equipment | M106: 0 | N106: 0 | O106: 0 | R106: =O106*'General Information'!$H$46 -> 0 | S106: =IF('General Information'!$H$44=0,"",O106/'General Information'!$H$44) -> 0
C107: Non Process HVAC | D107: Select Equipment | M107: 0 | N107: 0 | O107: 0 | R107: =O107*'General Information'!$H$46 -> 0 | S107: =IF('General Information'!$H$44=0,"",O107/'General Information'!$H$44) -> 0
C108: Non Process HVAC | D108: Select Equipment | M108: 0 | N108: 0 | O108: 0 | R108: =O108*'General Information'!$H$46 -> 0 | S108: =IF('General Information'!$H$44=0,"",O108/'General Information'!$H$44) -> 0
C109: Non Process HVAC | D109: Select Equipment | M109: 0 | N109: 0 | O109: 0 | R109: =O109*'General Information'!$H$46 -> 0 | S109: =IF('General Information'!$H$44=0,"",O109/'General Information'!$H$44) -> 0
J111: Total Building HVAC | N111: =SUM(N101:N109) -> 0.5924117647 | O111: =SUM(O101:O109) -> 1481.029412 | R111: =SUM(R104:R109) -> 149.8800974 | S111: =SUM(S104:S109) -> 0.0006588209127

Sheet Building 4 Data
A1: ="EPA Energy Use Assessment Tool for " & workbookType -> EPA Energy Use Assessment Tool for Drinking Water Systems
A2: Site Structural Buildings - Major Non-Process Energy Users
B4: In the Building Data tabs, the tool totals each building’s Lighting and HVAC information. You should use the totals for entry on the WTP or WWTP Energy Use tabs. For instructions on how to enter that information, see the WTP or WWTP Energy Usage tabs. If you have already identified the site's Lighting and HVAC loads or would just like to estimate them without detailing this information here, proceed to the WTP or WWTP Energy Usage tab. If you skip this tab, you can come back later to fill in this detail.
B6: The following information is entered once for the entire plant. To change the Total Number of Buildings on-site, go to the "Building 1 Data" tab and click the "Set # of Buildings" button. This lets you enter information for the specified number of buildings. After entering data in a building tab, click the "Save and Continue" button at the top. That allows you to enter data for the next building or if building data entry is complete, to return to the General Information tab. You can also click the other Building Data tabs at the bottom.
B9: Total Plant Building Area | D9: ='Building 1 Data'!D9 -> 9000 | E9: 4 | G9: Ft2 | H9: Total Plant Building Electric Load | K9: ='Building 1 Data'!K9 -> 57.14935709 | L9: kW | M9: Total Plant Building Electric Use | O9: ='Building 1 Data'!O9 -> 141729.2706 | R9: kWh/Yr
B11: Does the site have buildings? | D11: =hasBldgs -> Yes | H11: Total Number of Buildings On-site: | K11: =[0]!totalbldgs -> 10
B13: Enter the following information for each building at the plant. To begin, select the number of rooms in the "No. of Rooms" dropdown list below and click the "Set # of rooms" button. It is important to know and set the number of rooms upfront, before any lighting data is entered. If the number of rooms is later changed, all the data that had been entered will be lost.
C16: ="BUILDING " & E9 -> BUILDING 4
C18: Name | D18: Primary Splitter | I18: Operating Hours per Year | K18: =IF(K19="","",K19*K20*52) -> 2912 | L18: Hrs/Yr | M18: Approximate Building Age (If known) | S18: Yrs
C19: Area | D19: =I35+T35+T47+I47+I59+T59+T71+I71+I83+T83 -> 200 | G19: Ft2 | I19: Operating Hours per Day | K19: 8 | L19: Hrs/Day
C20: No. of Rooms | G20: ! Changing the number of rooms will reset all lighting data entered. | I20: Operating Days per Week | K20: 7 | L20: Days/Wk | M20: Average Building Lighting Power Density (LPD) | R20: =IF(D19=0,"",(K38+V38+V50+K50+K62+V62+V74+K74+K86+V86)/D19) -> 3.5 | S20: W/ft2
C21: Estimated Electric Load: | I21: Estimated Annual Energy Use: | N21: Estimated Annual Energy Cost:
C22: ="Total Building " & $E$9& " Lighting" -> Total Building 4 Lighting | G22: =IF((K38+V38+V50+K50+K62+V62+V74+K74+K86+V86)=0,0,(K38+V38+V50+K50+K62+V62+V74+K74+K86+V86)/1000) -> 0.7 | H22: kW | I22: ="Total Building " & $E$9& " Lighting" -> Total Building 4 Lighting | L22: =IF((K38+V38+V50+K50+K62+V62+V74+K74+K86+V86)=0,IF(K18="",0,0),IF(K18="",0,((K38+V38+V50+K50+K62+V62+V74+K74+K86+V86)/1000)*K18)) -> 2038.4 | M22: kWh/Yr | N22: ="Total Building " & $E$9 & " Lighting" -> Total Building 4 Lighting | R22: =L22*'General Information'!$H$46 -> 206.2859712 | S22: $/Yr
C23: ="Total Building " & $E$9 & " HVAC" -> Total Building 4 HVAC | G23: =N111 -> 2.620973262 | H23: kW | I23: ="Total Building " & $E$9 & " HVAC" -> Total Building 4 HVAC | L23: =O$111 -> 6552.433155 | M23: kWh/Yr | N23: ="Total Building " & $E$9 & " HVAC" -> Total Building 4 HVAC | R23: =R111 -> 663.1058855 | S23: $/Yr
C24: ="Total Building " & $E$9 & " Combined" -> Total Building 4 Combined | G24: =SUM(G22:G23) -> 3.320973262 | H24: kW | I24: ="Total Building " & $E$9 & " Combined" -> Total Building 4 Combined | L24: =SUM(L22,L23) -> 8590.833155 | M24: kWh/Yr | N24: ="Total Building " & $E$9 & " Combined" -> Total Building 4 Combined | R24: =SUM(R22,R23) -> 869.3918567 | S24: $/Yr
C26: LIGHTING
B28: To determine the site’s lighting loads and energy use, select each of the room’s lighting fixture types and quantity (Qty) using the dropdown lists below. Select a light type from the dropdown list for each size and kind of fixture in a room. Then enter the quantity for each type. The tool provides the fixture’s electrical energy load in watts. Do not include task lights (directional lights used to illuminate an area of work) when entering the room's lighting fixtures. If a type of fixture is not available in the dropdown list, use the "Other Type" input field to enter the fixture and its total wattage. The table automatically totals the room's lighting loads, each building's lighting energy use and the site's total lighting energy use per year for use in other areas of the tool. Enter the area of each room and the tool calculates the Lighting Power Density (LPD) in watts per square foot. You can now take an important next step and compare LPD’s from room to room and building to building to determine where excess energy might be in use.
C35: Room 1 Name | D35: Main Floor | H35: Area | I35: 200 | J35: Ft2 | N35: Room 2 Name | S35: Area | U35: Ft2
C36: Room 1 Lighting (Main Lighting only - Do not include task lights) | N36: Room 2 Lighting (Main Lighting only - Do not include task lights)
C37: Select up to 6 Light Fixture Types | K37: Total Room Wattage (W) | N37: Select up to 6 Light Fixture Types | V37: Total Room Wattage (W)
C38: Light Type 1 | E38: Four F40T12 4' 40W Fluorescent Lamps, Magnetic Ballast | F38: =VLOOKUP(E38,'Linked Cells (hidden)'!$D$57:$E$150,2,FALSE) -> 175 | H38: =VLOOKUP(E38,'Linked Cells (hidden)'!$D$57:$E$150,2,FALSE)& " " & "Watts" -> 175 Watts | I38: 4 | K38: =(IF(F38="Total",0,I38*F38)+IF(F39="Total",0,I39*F39)+IF(F40="Total",0,I40*F40)+IF(F41="Total",0,I41*F41)+IF(F42="Total",0,I42*F42)+IF(F43="Total",0,I43*F43)) -> 700 | M38: W | N38: Light Type 1 | P38: Select Light Fixture | Q38: =VLOOKUP(P38,'Linked Cells (hidden)'!$D$57:$E$150,2,FALSE) -> Total | S38: =VLOOKUP(P38,'Linked Cells (hidden)'!$D$57:$E$140,2,FALSE)& " " & "Watts" -> Total Watts | V38: =(IF(Q38="Total",0,T38*Q38)+IF(Q39="Total",0,T39*Q39)+IF(Q40="Total",0,T40*Q40)+IF(Q41="Total",0,T41*Q41)+IF(Q42="Total",0,T42*Q42)+IF(Q43="Total",0,T43*Q43)) -> 0 | X38: W
C39: Light Type 2 | E39: Select Light Fixture | F39: =VLOOKUP(E39,'Linked Cells (hidden)'!$D$57:$E$150,2,FALSE) -> Total | H39: =VLOOKUP(E39,'Linked Cells (hidden)'!$D$57:$E$150,2,FALSE)& " " & "Watts" -> Total Watts | N39: Light Type 2 | P39: Select Light Fixture | Q39: =VLOOKUP(P39,'Linked Cells (hidden)'!$D$57:$E$150,2,FALSE) -> Total | S39: =VLOOKUP(P39,'Linked Cells (hidden)'!$D$57:$E$140,2,FALSE)& " " & "Watts" -> Total Watts
C40: Light Type 3 | E40: Select Light Fixture | F40: =VLOOKUP(E40,'Linked Cells (hidden)'!$D$57:$E$150,2,FALSE) -> Total | H40: =VLOOKUP(E40,'Linked Cells (hidden)'!$D$57:$E$150,2,FALSE)& " " & "Watts" -> Total Watts | K40: Room Lighting Power Density (LPD) | N40: Light Type 3 | P40: Select Light Fixture | Q40: =VLOOKUP(P40,'Linked Cells (hidden)'!$D$57:$E$150,2,FALSE) -> Total | S40: =VLOOKUP(P40,'Linked Cells (hidden)'!$D$57:$E$140,2,FALSE)& " " & "Watts" -> Total Watts | V40: Room Lighting Power Density (LPD)
C41: Light Type 4 | E41: Select Light Fixture | F41: =VLOOKUP(E41,'Linked Cells (hidden)'!$D$57:$E$150,2,FALSE) -> Total | H41: =VLOOKUP(E41,'Linked Cells (hidden)'!$D$57:$E$150,2,FALSE)& " " & "Watts" -> Total Watts | K41: =IF(K38=0,"",K38/I35) -> 3.5 | L41: W/ft2 | N41: Light Type 4 | P41: Select Light Fixture | Q41: =VLOOKUP(P41,'Linked Cells (hidden)'!$D$57:$E$150,2,FALSE) -> Total | S41: =VLOOKUP(P41,'Linked Cells (hidden)'!$D$57:$E$140,2,FALSE)& " " & "Watts" -> Total Watts | V41: =IF(V38=0,"",V38/T35) ->  | W41: W/ft2
C42: Light Type 5 | E42: Select Light Fixture | F42: =VLOOKUP(E42,'Linked Cells (hidden)'!$D$57:$E$150,2,FALSE) -> Total | H42: =VLOOKUP(E42,'Linked Cells (hidden)'!$D$57:$E$150,2,FALSE)& " " & "Watts" -> Total Watts | N42: Light Type 5 | P42: Select Light Fixture | Q42: =VLOOKUP(P42,'Linked Cells (hidden)'!$D$57:$E$150,2,FALSE) -> Total | S42: =VLOOKUP(P42,'Linked Cells (hidden)'!$D$57:$E$140,2,FALSE)& " " & "Watts" -> Total Watts
C43: Other Type : Name | F43: =IF(D44=0,"Total",D44) -> Total | H43: =F43 & " Watts" -> Total Watts | N43: Other Type : Name | Q43: =IF(O44=0,"Total",O44) -> Total | S43: =Q43 & " Watts" -> Total Watts
C44: : Watts | N44: : Watts
C47: Room 3 Name | H47: Area | J47: Ft2 | N47: Room 4 Name | S47: Area | U47: Ft2
C48: Room 3 Lighting (Main Lighting only - Do not include task lights) | N48: Room 4 Lighting (Main Lighting only - Do not include task lights)
C49: Select up to 6 Light Fixture Types | K49: Total Room Wattage (W) | N49: Select up to 6 Light Fixture Types | V49: Total Room Wattage (W)
C50: Light Type 1 | E50: Select Light Fixture | F50: =VLOOKUP(E50,'Linked Cells (hidden)'!$D$57:$E$150,2,FALSE) -> Total | H50: =VLOOKUP(E50,'Linked Cells (hidden)'!$D$57:$E$150,2,FALSE)& " " & "Watts" -> Total Watts | K50: =(IF(F50="Total",0,I50*F50)+IF(F51="Total",0,I51*F51)+IF(F52="Total",0,I52*F52)+IF(F53="Total",0,I53*F53)+IF(F54="Total",0,I54*F54)+IF(F55="Total",0,I55*F55)) -> 0 | M50: W | N50: Light Type 1 | P50: Select Light Fixture | Q50: =VLOOKUP(P50,'Linked Cells (hidden)'!$D$57:$E$150,2,FALSE) -> Total | S50: =VLOOKUP(P50,'Linked Cells (hidden)'!$D$57:$E$140,2,FALSE)& " " & "Watts" -> Total Watts | V50: =(IF(Q50="Total",0,T50*Q50)+IF(Q51="Total",0,T51*Q51)+IF(Q52="Total",0,T52*Q52)+IF(Q53="Total",0,T53*Q53)+IF(Q54="Total",0,T54*Q54)+IF(Q55="Total",0,T55*Q55)) -> 0 | X50: W
C51: Light Type 2 | E51: Select Light Fixture | F51: =VLOOKUP(E51,'Linked Cells (hidden)'!$D$57:$E$150,2,FALSE) -> Total | H51: =VLOOKUP(E51,'Linked Cells (hidden)'!$D$57:$E$150,2,FALSE)& " " & "Watts" -> Total Watts | N51: Light Type 2 | P51: Select Light Fixture | Q51: =VLOOKUP(P51,'Linked Cells (hidden)'!$D$57:$E$150,2,FALSE) -> Total | S51: =VLOOKUP(P51,'Linked Cells (hidden)'!$D$57:$E$140,2,FALSE)& " " & "Watts" -> Total Watts
C52: Light Type 3 | E52: Select Light Fixture | F52: =VLOOKUP(E52,'Linked Cells (hidden)'!$D$57:$E$150,2,FALSE) -> Total | H52: =VLOOKUP(E52,'Linked Cells (hidden)'!$D$57:$E$150,2,FALSE)& " " & "Watts" -> Total Watts | K52: Room Lighting Power Density (LPD) | N52: Light Type 3 | P52: Select Light Fixture | Q52: =VLOOKUP(P52,'Linked Cells (hidden)'!$D$57:$E$150,2,FALSE) -> Total | S52: =VLOOKUP(P52,'Linked Cells (hidden)'!$D$57:$E$140,2,FALSE)& " " & "Watts" -> Total Watts | V52: Room Lighting Power Density (LPD)
C53: Light Type 4 | E53: Select Light Fixture | F53: =VLOOKUP(E53,'Linked Cells (hidden)'!$D$57:$E$150,2,FALSE) -> Total | H53: =VLOOKUP(E53,'Linked Cells (hidden)'!$D$57:$E$150,2,FALSE)& " " & "Watts" -> Total Watts | K53: =IF(K50=0,"",K50/I47) ->  | L53: W/ft2 | N53: Light Type 4 | P53: Select Light Fixture | Q53: =VLOOKUP(P53,'Linked Cells (hidden)'!$D$57:$E$150,2,FALSE) -> Total | S53: =VLOOKUP(P53,'Linked Cells (hidden)'!$D$57:$E$140,2,FALSE)& " " & "Watts" -> Total Watts | V53: =IF(V50=0,"",V50/T47) ->  | W53: W/ft2
C54: Light Type 5 | E54: Select Light Fixture | F54: =VLOOKUP(E54,'Linked Cells (hidden)'!$D$57:$E$150,2,FALSE) -> Total | H54: =VLOOKUP(E54,'Linked Cells (hidden)'!$D$57:$E$150,2,FALSE)& " " & "Watts" -> Total Watts | N54: Light Type 5 | P54: Select Light Fixture | Q54: =VLOOKUP(P54,'Linked Cells (hidden)'!$D$57:$E$150,2,FALSE) -> Total | S54: =VLOOKUP(P54,'Linked Cells (hidden)'!$D$57:$E$140,2,FALSE)& " " & "Watts" -> Total Watts
C55: Other Type : Name | F55: =IF(D56=0,"Total",D56) -> Total | H55: =F55 & " Watts" -> Total Watts | N55: Other Type : Name | Q55: =IF(O56=0,"Total",O56) -> Total | S55: =Q55 & " Watts" -> Total Watts
C56: : Watts | N56: : Watts
C59: Room 5 Name | H59: Area | J59: Ft2 | N59: Room 6 Name | S59: Area | U59: Ft2
C60: Room 5 Lighting (Main Lighting only - Do not include task lights) | N60: Room 6 Lighting (Main Lighting only - Do not include task lights)
C61: Select up to 6 Light Fixture Types | K61: Total Room Wattage (W) | N61: Select up to 6 Light Fixture Types | V61: Total Room Wattage (W)
C62: Light Type 1 | E62: Select Light Fixture | F62: =VLOOKUP(E62,'Linked Cells (hidden)'!$D$57:$E$150,2,FALSE) -> Total | H62: =VLOOKUP(E62,'Linked Cells (hidden)'!$D$57:$E$150,2,FALSE)& " " & "Watts" -> Total Watts | K62: =(IF(F62="Total",0,I62*F62)+IF(F63="Total",0,I63*F63)+IF(F64="Total",0,I64*F64)+IF(F65="Total",0,I65*F65)+IF(F66="Total",0,I66*F66)+IF(F67="Total",0,I67*F67)) -> 0 | M62: W | N62: Light Type 1 | P62: Select Light Fixture | Q62: =VLOOKUP(P62,'Linked Cells (hidden)'!$D$57:$E$150,2,FALSE) -> Total | S62: =VLOOKUP(P62,'Linked Cells (hidden)'!$D$57:$E$140,2,FALSE)& " " & "Watts" -> Total Watts | V62: =(IF(Q62="Total",0,T62*Q62)+IF(Q63="Total",0,T63*Q63)+IF(Q64="Total",0,T64*Q64)+IF(Q65="Total",0,T65*Q65)+IF(Q66="Total",0,T66*Q66)+IF(Q67="Total",0,T67*Q67)) -> 0 | X62: W
C63: Light Type 2 | E63: Select Light Fixture | F63: =VLOOKUP(E63,'Linked Cells (hidden)'!$D$57:$E$150,2,FALSE) -> Total | H63: =VLOOKUP(E63,'Linked Cells (hidden)'!$D$57:$E$150,2,FALSE)& " " & "Watts" -> Total Watts | N63: Light Type 2 | P63: Select Light Fixture | Q63: =VLOOKUP(P63,'Linked Cells (hidden)'!$D$57:$E$150,2,FALSE) -> Total | S63: =VLOOKUP(P63,'Linked Cells (hidden)'!$D$57:$E$140,2,FALSE)& " " & "Watts" -> Total Watts
C64: Light Type 3 | E64: Select Light Fixture | F64: =VLOOKUP(E64,'Linked Cells (hidden)'!$D$57:$E$150,2,FALSE) -> Total | H64: =VLOOKUP(E64,'Linked Cells (hidden)'!$D$57:$E$150,2,FALSE)& " " & "Watts" -> Total Watts | K64: Room Lighting Power Density (LPD) | N64: Light Type 3 | P64: Select Light Fixture | Q64: =VLOOKUP(P64,'Linked Cells (hidden)'!$D$57:$E$150,2,FALSE) -> Total | S64: =VLOOKUP(P64,'Linked Cells (hidden)'!$D$57:$E$140,2,FALSE)& " " & "Watts" -> Total Watts | V64: Room Lighting Power Density (LPD)
C65: Light Type 4 | E65: Select Light Fixture | F65: =VLOOKUP(E65,'Linked Cells (hidden)'!$D$57:$E$150,2,FALSE) -> Total | H65: =VLOOKUP(E65,'Linked Cells (hidden)'!$D$57:$E$150,2,FALSE)& " " & "Watts" -> Total Watts | K65: =IF(K62=0,"",K62/I59) ->  | L65: W/ft2 | N65: Light Type 4 | P65: Select Light Fixture | Q65: =VLOOKUP(P65,'Linked Cells (hidden)'!$D$57:$E$150,2,FALSE) -> Total | S65: =VLOOKUP(P65,'Linked Cells (hidden)'!$D$57:$E$140,2,FALSE)& " " & "Watts" -> Total Watts | V65: =IF(V62=0,"",V62/T59) ->  | W65: W/ft2
C66: Light Type 5 | E66: Select Light Fixture | F66: =VLOOKUP(E66,'Linked Cells (hidden)'!$D$57:$E$150,2,FALSE) -> Total | H66: =VLOOKUP(E66,'Linked Cells (hidden)'!$D$57:$E$150,2,FALSE)& " " & "Watts" -> Total Watts | N66: Light Type 5 | P66: Select Light Fixture | Q66: =VLOOKUP(P66,'Linked Cells (hidden)'!$D$57:$E$150,2,FALSE) -> Total | S66: =VLOOKUP(P66,'Linked Cells (hidden)'!$D$57:$E$140,2,FALSE)& " " & "Watts" -> Total Watts
C67: Other Type : Name | F67: =IF(D68=0,"Total",D68) -> Total | H67: =F67 & " Watts" -> Total Watts | N67: Other Type : Name | Q67: =IF(O68=0,"Total",O68) -> Total | S67: =Q67 & " Watts" -> Total Watts
C68: : Watts | N68: : Watts
C71: Room 7 Name | H71: Area | J71: Ft2 | N71: Room 8 Name | S71: Area | U71: Ft2
C72: Room 7 Lighting (Main Lighting only - Do not include task lights) | N72: Room 8 Lighting (Main Lighting only - Do not include task lights)
C73: Select up to 6 Light Fixture Types | K73: Total Room Wattage (W) | N73: Select up to 6 Light Fixture Types | V73: Total Room Wattage (W)
C74: Light Type 1 | E74: Select Light Fixture | H74: =VLOOKUP(E74,'Linked Cells (hidden)'!$D$57:$E$150,2,FALSE)& " " & "Watts" -> Total Watts | K74: =(IF(F74="Total",0,I74*F74)+IF(F75="Total",0,I75*F75)+IF(F76="Total",0,I76*F76)+IF(F77="Total",0,I77*F77)+IF(F78="Total",0,I78*F78)+IF(F79="Total",0,I79*F79)) -> 0 | M74: W | N74: Light Type 1 | P74: Select Light Fixture | S74: =VLOOKUP(P74,'Linked Cells (hidden)'!$D$57:$E$140,2,FALSE)& " " & "Watts" -> Total Watts | V74: =(IF(Q74="Total",0,T74*Q74)+IF(Q75="Total",0,T75*Q75)+IF(Q76="Total",0,T76*Q76)+IF(Q77="Total",0,T77*Q77)+IF(Q78="Total",0,T78*Q78)+IF(Q79="Total",0,T79*Q79)) -> 0 | X74: W
C75: Light Type 2 | E75: Select Light Fixture | F75: =VLOOKUP(E75,'Linked Cells (hidden)'!$D$57:$E$150,2,FALSE) -> Total | H75: =VLOOKUP(E75,'Linked Cells (hidden)'!$D$57:$E$150,2,FALSE)& " " & "Watts" -> Total Watts | N75: Light Type 2 | P75: Select Light Fixture | Q75: =VLOOKUP(P75,'Linked Cells (hidden)'!$D$57:$E$150,2,FALSE) -> Total | S75: =VLOOKUP(P75,'Linked Cells (hidden)'!$D$57:$E$140,2,FALSE)& " " & "Watts" -> Total Watts
C76: Light Type 3 | E76: Select Light Fixture | F76: =VLOOKUP(E76,'Linked Cells (hidden)'!$D$57:$E$150,2,FALSE) -> Total | H76: =VLOOKUP(E76,'Linked Cells (hidden)'!$D$57:$E$150,2,FALSE)& " " & "Watts" -> Total Watts | K76: Room Lighting Power Density (LPD) | N76: Light Type 3 | P76: Select Light Fixture | Q76: =VLOOKUP(P76,'Linked Cells (hidden)'!$D$57:$E$150,2,FALSE) -> Total | S76: =VLOOKUP(P76,'Linked Cells (hidden)'!$D$57:$E$140,2,FALSE)& " " & "Watts" -> Total Watts | V76: Room Lighting Power Density (LPD)
C77: Light Type 4 | E77: Select Light Fixture | F77: =VLOOKUP(E77,'Linked Cells (hidden)'!$D$57:$E$150,2,FALSE) -> Total | H77: =VLOOKUP(E77,'Linked Cells (hidden)'!$D$57:$E$150,2,FALSE)& " " & "Watts" -> Total Watts | K77: =IF(K74=0,"",K74/I71) ->  | L77: W/ft2 | N77: Light Type 4 | P77: Select Light Fixture | Q77: =VLOOKUP(P77,'Linked Cells (hidden)'!$D$57:$E$150,2,FALSE) -> Total | S77: =VLOOKUP(P77,'Linked Cells (hidden)'!$D$57:$E$140,2,FALSE)& " " & "Watts" -> Total Watts | V77: =IF(V74=0,"",V74/T71) ->  | W77: W/ft2
C78: Light Type 5 | E78: Select Light Fixture | F78: =VLOOKUP(E78,'Linked Cells (hidden)'!$D$57:$E$150,2,FALSE) -> Total | H78: =VLOOKUP(E78,'Linked Cells (hidden)'!$D$57:$E$150,2,FALSE)& " " & "Watts" -> Total Watts | N78: Light Type 5 | P78: Select Light Fixture | Q78: =VLOOKUP(P78,'Linked Cells (hidden)'!$D$57:$E$150,2,FALSE) -> Total | S78: =VLOOKUP(P78,'Linked Cells (hidden)'!$D$57:$E$140,2,FALSE)& " " & "Watts" -> Total Watts
C79: Other Type : Name | F79: =IF(D80=0,"Total",D80) -> Total | H79: =F79 & " Watts" -> Total Watts | N79: Other Type : Name | Q79: =IF(O80=0,"Total",O80) -> Total | S79: =Q79 & " Watts" -> Total Watts
C80: : Watts | N80: : Watts
C83: Room 9 Name | H83: Area | J83: Ft2 | N83: Room 10 Name | S83: Area | U83: Ft2
C84: Room 9 Lighting (Main Lighting only - Do not include task lights) | N84: Room 10 Lighting (Main Lighting only - Do not include task lights)
C85: Select up to 6 Light Fixture Types | K85: Total Room Wattage (W) | N85: Select up to 6 Light Fixture Types | V85: Total Room Wattage (W)
C86: Light Type 1 | E86: Select Light Fixture | F86: =VLOOKUP(E86,'Linked Cells (hidden)'!$D$57:$E$150,2,FALSE) -> Total | H86: =VLOOKUP(E86,'Linked Cells (hidden)'!$D$57:$E$150,2,FALSE)& " " & "Watts" -> Total Watts | K86: =(IF(F86="Total",0,I86*F86)+IF(F87="Total",0,I87*F87)+IF(F88="Total",0,I88*F88)+IF(F89="Total",0,I89*F89)+IF(F90="Total",0,I90*F90)+IF(F91="Total",0,I91*F91)) -> 0 | M86: W | N86: Light Type 1 | P86: Select Light Fixture | Q86: =VLOOKUP(P86,'Linked Cells (hidden)'!$D$57:$E$150,2,FALSE) -> Total | S86: =VLOOKUP(P86,'Linked Cells (hidden)'!$D$57:$E$140,2,FALSE)& " " & "Watts" -> Total Watts | V86: =(IF(Q86="Total",0,T86*Q86)+IF(Q87="Total",0,T87*Q87)+IF(Q88="Total",0,T88*Q88)+IF(Q89="Total",0,T89*Q89)+IF(Q90="Total",0,T90*Q90)+IF(Q91="Total",0,T91*Q91)) -> 0 | X86: W
C87: Light Type 2 | E87: Select Light Fixture | H87: =VLOOKUP(E87,'Linked Cells (hidden)'!$D$57:$E$150,2,FALSE)& " " & "Watts" -> Total Watts | N87: Light Type 2 | P87: Select Light Fixture | S87: =VLOOKUP(P87,'Linked Cells (hidden)'!$D$57:$E$140,2,FALSE)& " " & "Watts" -> Total Watts
C88: Light Type 3 | E88: Select Light Fixture | F88: =VLOOKUP(E88,'Linked Cells (hidden)'!$D$57:$E$150,2,FALSE) -> Total | H88: =VLOOKUP(E88,'Linked Cells (hidden)'!$D$57:$E$150,2,FALSE)& " " & "Watts" -> Total Watts | K88: Room Lighting Power Density (LPD) | N88: Light Type 3 | P88: Select Light Fixture | Q88: =VLOOKUP(P88,'Linked Cells (hidden)'!$D$57:$E$150,2,FALSE) -> Total | S88: =VLOOKUP(P88,'Linked Cells (hidden)'!$D$57:$E$140,2,FALSE)& " " & "Watts" -> Total Watts | V88: Room Lighting Power Density (LPD)
C89: Light Type 4 | E89: Select Light Fixture | F89: =VLOOKUP(E89,'Linked Cells (hidden)'!$D$57:$E$150,2,FALSE) -> Total | H89: =VLOOKUP(E89,'Linked Cells (hidden)'!$D$57:$E$150,2,FALSE)& " " & "Watts" -> Total Watts | K89: =IF(K86=0,"",K86/I83) ->  | L89: W/ft2 | N89: Light Type 4 | P89: Select Light Fixture | Q89: =VLOOKUP(P89,'Linked Cells (hidden)'!$D$57:$E$150,2,FALSE) -> Total | S89: =VLOOKUP(P89,'Linked Cells (hidden)'!$D$57:$E$140,2,FALSE)& " " & "Watts" -> Total Watts | V89: =IF(V86=0,"",V86/T83) ->  | W89: W/ft2
C90: Light Type 5 | E90: Select Light Fixture | F90: =VLOOKUP(E90,'Linked Cells (hidden)'!$D$57:$E$150,2,FALSE) -> Total | H90: =VLOOKUP(E90,'Linked Cells (hidden)'!$D$57:$E$150,2,FALSE)& " " & "Watts" -> Total Watts | N90: Light Type 5 | P90: Select Light Fixture | Q90: =VLOOKUP(P90,'Linked Cells (hidden)'!$D$57:$E$150,2,FALSE) -> Total | S90: =VLOOKUP(P90,'Linked Cells (hidden)'!$D$57:$E$140,2,FALSE)& " " & "Watts" -> Total Watts
C91: Other Type : Name | F91: =IF(D92=0,"Total",D92) -> Total | H91: =F91 & " Watts" -> Total Watts | N91: Other Type : Name | Q91: =IF(O92=0,"Total",O92) -> Total | S91: =Q91 & " Watts" -> Total Watts
C92: : Watts | N92: : Watts
B96: HVAC/Non-Process Energy
B98: To determine the site's Non-Process Heating, Ventilating, and Air Conditioning (HVAC) loads and energy use, describe each building's HVAC electrical using units by entering them below. If multiple of a unit exists, either add them into the table as separate units or enter Motor Size as the motor's size (in hp) multiplied by the quantity. Non-Process HVAC is meant to include all equipment not tied to specific process operations such as general ventilation heaters, office air conditioners, restroom exhaust fans, etc. Do not provide process-related ventilation equipment such as odor control fans here. You can enter process equipment information on the "WTP or WWTP Energy Usage" tab. For each Non-Process HVAC unit select the equipment type from the dropdown list and enter an “Equipment Description.” Collect and enter each unit’s motor size, efficiency and full load amperage (FLA) ratings. This information can be gathered from the equipment's nameplate or specification datasheet. If the site has authorized personnel capable of taking electrical measurements, enter the motors average operating current. Otherwise leave the "Average Motor Operating Current" blank and the tool will use an 80% Load Factor in its calculations. Once the equipment's typical operating hours are entered, the tool calculates the estimated annual energy use and operating cost for the unit. If conditions at the plant change, you can adjust these values. A summary of the HVAC and lighting information entered on the building data tabs is displayed on the top on the WTP and WWTP Energy Usage tabs. For those values to be included in the total energy use and to be displayed in the pie charts and summary report, you must enter the values in the Equipment Electrical Energy Inventory table (on the WTP or WWTP Energy Usage tab) as Non Process HVAC. See the instructions on that tab on how to enter this information.
C103: System Type | D103: Equipment Type | G103: Equipment Description | H103: Motor Size (hp) | I103: Motor Efficiency | J103: Motor Full Load Amperage (FLA) | K103: Average Motor Operating Current (Amps) | L103: Motor Operating Hours (Hours/Year) | M103: Average Load Factor (%) | N103: Average HVAC Electric Load (kW) | O103: Estimated Annual Energy Use (kWh/yr) | R103: Estimated Annual Operating Costs ($/Year) | S103: Estimated Percent of Site Electric Use & Cost (%)
C104: Non Process HVAC | D104: Fan | G104: Unit Heater Fan | H104: 0.75 | I104: 0.85 | J104: 1 | K104: 0.9 | L104: 2500 | M104: =IF(J104=0,0,IF(K104=0,0.75,K104/J104)) -> 0.9 | N104: =IF(I104=0,0,H104*0.746*M104/I104) -> 0.5924117647 | O104: =N104*L104 -> 1481.029412 | R104: =O104*'General Information'!$H$46 -> 149.8800974 | S104: =IF('General Information'!$H$44=0,"",O104/'General Information'!$H$44) -> 0.0006588209127
C105: Non Process HVAC | D105: Fan | G105: Unit Heater Fan | H105: 0.75 | I105: 0.85 | J105: 1 | K105: 0.9 | L105: 2500 | M105: 0.9 | N105: 0.5924117647 | O105: 1481.029412 | R105: =O105*'General Information'!$H$46 -> 149.8800974 | S105: =IF('General Information'!$H$44=0,"",O105/'General Information'!$H$44) -> 0.0006588209127
C106: Non Process HVAC | D106: Fan | G106: Exhaust Fan | H106: 2 | I106: 0.85 | J106: 2.2 | K106: 1.8 | L106: 2500 | M106: 0.8181818182 | N106: 1.436149733 | O106: 3590.374332 | R106: =O106*'General Information'!$H$46 -> 363.3456907 | S106: =IF('General Information'!$H$44=0,"",O106/'General Information'!$H$44) -> 0.001597141607
C107: Non Process HVAC | D107: Select Equipment | M107: 0 | N107: 0 | O107: 0 | R107: =O107*'General Information'!$H$46 -> 0 | S107: =IF('General Information'!$H$44=0,"",O107/'General Information'!$H$44) -> 0
C108: Non Process HVAC | D108: Select Equipment | M108: 0 | N108: 0 | O108: 0 | R108: =O108*'General Information'!$H$46 -> 0 | S108: =IF('General Information'!$H$44=0,"",O108/'General Information'!$H$44) -> 0
C109: Non Process HVAC | D109: Select Equipment | M109: 0 | N109: 0 | O109: 0 | R109: =O109*'General Information'!$H$46 -> 0 | S109: =IF('General Information'!$H$44=0,"",O109/'General Information'!$H$44) -> 0
J111: Total Building HVAC | N111: =SUM(N101:N109) -> 2.620973262 | O111: =SUM(O101:O109) -> 6552.433155 | R111: =SUM(R104:R109) -> 663.1058855 | S111: =SUM(S104:S109) -> 0.002914783432

Sheet Building 5 Data
A1: ="EPA Energy Use Assessment Tool for " & workbookType -> EPA Energy Use Assessment Tool for Drinking Water Systems
A2: Site Structural Buildings - Major Non-Process Energy Users
B4: In the Building Data tabs, the tool totals each building’s Lighting and HVAC information. You should use the totals for entry on the WTP or WWTP Energy Use tabs. For instructions on how to enter that information, see the WTP or WWTP Energy Usage tabs. If you have already identified the site's Lighting and HVAC loads or would just like to estimate them without detailing this information here, proceed to the WTP or WWTP Energy Usage tab. If you skip this tab, you can come back later to fill in this detail.
B6: The following information is entered once for the entire plant. To change the Total Number of Buildings on-site, go to the "Building 1 Data" tab and click the "Set # of Buildings" button. This lets you enter information for the specified number of buildings. After entering data in a building tab, click the "Save and Continue" button at the top. That allows you to enter data for the next building or if building data entry is complete, to return to the General Information tab. You can also click the other Building Data tabs at the bottom.
B9: Total Plant Building Area | D9: ='Building 1 Data'!D9 -> 9000 | E9: 5 | G9: Ft2 | H9: Total Plant Building Electric Load | K9: ='Building 1 Data'!K9 -> 57.14935709 | L9: kW | M9: Total Plant Building Electric Use | O9: ='Building 1 Data'!O9 -> 141729.2706 | R9: kWh/Yr
B11: Does the site have buildings? | D11: =hasBldgs -> Yes | H11: Total Number of Buildings On-site: | K11: =[0]!totalbldgs -> 10
B13: Enter the following information for each building at the plant. To begin, select the number of rooms in the "No. of Rooms" dropdown list below and click the "Set # of rooms" button. It is important to know and set the number of rooms upfront, before any lighting data is entered. If the number of rooms is later changed, all the data that had been entered will be lost.
C16: ="BUILDING " & E9 -> BUILDING 5
C18: Name | D18: Digesters | I18: Operating Hours per Year | K18: =IF(K19="","",K19*K20*52) -> 2912 | L18: Hrs/Yr | M18: Approximate Building Age (If known) | S18: Yrs
C19: Area | D19: =I35+T35+T47+I47+I59+T59+T71+I71+I83+T83 -> 0 | G19: Ft2 | I19: Operating Hours per Day | K19: 8 | L19: Hrs/Day
C20: No. of Rooms | G20: ! Changing the number of rooms will reset all lighting data entered. | I20: Operating Days per Week | K20: 7 | L20: Days/Wk | M20: Average Building Lighting Power Density (LPD) | R20: =IF(D19=0,"",(K38+V38+V50+K50+K62+V62+V74+K74+K86+V86)/D19) ->  | S20: W/ft2
C21: Estimated Electric Load: | I21: Estimated Annual Energy Use: | N21: Estimated Annual Energy Cost:
C22: ="Total Building " & $E$9& " Lighting" -> Total Building 5 Lighting | G22: =IF((K38+V38+V50+K50+K62+V62+V74+K74+K86+V86)=0,0,(K38+V38+V50+K50+K62+V62+V74+K74+K86+V86)/1000) -> 0 | H22: kW | I22: ="Total Building " & $E$9& " Lighting" -> Total Building 5 Lighting | L22: =IF((K38+V38+V50+K50+K62+V62+V74+K74+K86+V86)=0,IF(K18="",0,0),IF(K18="",0,((K38+V38+V50+K50+K62+V62+V74+K74+K86+V86)/1000)*K18)) -> 0 | M22: kWh/Yr | N22: ="Total Building " & $E$9 & " Lighting" -> Total Building 5 Lighting | R22: =L22*'General Information'!$H$46 -> 0 | S22: $/Yr
C23: ="Total Building " & $E$9 & " HVAC" -> Total Building 5 HVAC | G23: =N111 -> 1.436149733 | H23: kW | I23: ="Total Building " & $E$9 & " HVAC" -> Total Building 5 HVAC | L23: =O$111 -> 3590.374332 | M23: kWh/Yr | N23: ="Total Building " & $E$9 & " HVAC" -> Total Building 5 HVAC | R23: =R111 -> 363.3456907 | S23: $/Yr
C24: ="Total Building " & $E$9 & " Combined" -> Total Building 5 Combined | G24: =SUM(G22:G23) -> 1.436149733 | H24: kW | I24: ="Total Building " & $E$9 & " Combined" -> Total Building 5 Combined | L24: =SUM(L22,L23) -> 3590.374332 | M24: kWh/Yr | N24: ="Total Building " & $E$9 & " Combined" -> Total Building 5 Combined | R24: =SUM(R22,R23) -> 363.3456907 | S24: $/Yr
C26: LIGHTING
B28: To determine the site’s lighting loads and energy use, select each of the room’s lighting fixture types and quantity (Qty) using the dropdown lists below. Select a light type from the dropdown list for each size and kind of fixture in a room. Then enter the quantity for each type. The tool provides the fixture’s electrical energy load in watts. Do not include task lights (directional lights used to illuminate an area of work) when entering the room's lighting fixtures. If a type of fixture is not available in the dropdown list, use the "Other Type" input field to enter the fixture and its total wattage. The table automatically totals the room's lighting loads, each building's lighting energy use and the site's total lighting energy use per year for use in other areas of the tool. Enter the area of each room and the tool calculates the Lighting Power Density (LPD) in watts per square foot. You can now take an important next step and compare LPD’s from room to room and building to building to determine where excess energy might be in use.
C35: Room 1 Name | H35: Area | J35: Ft2 | N35: Room 2 Name | S35: Area | U35: Ft2
C36: Room 1 Lighting (Main Lighting only - Do not include task lights) | N36: Room 2 Lighting (Main Lighting only - Do not include task lights)
C37: Select up to 6 Light Fixture Types | K37: Total Room Wattage (W) | N37: Select up to 6 Light Fixture Types | V37: Total Room Wattage (W)
C38: Light Type 1 | E38: Select Light Fixture | F38: =VLOOKUP(E38,'Linked Cells (hidden)'!$D$57:$E$150,2,FALSE) -> Total | H38: =VLOOKUP(E38,'Linked Cells (hidden)'!$D$57:$E$150,2,FALSE)& " " & "Watts" -> Total Watts | K38: =(IF(F38="Total",0,I38*F38)+IF(F39="Total",0,I39*F39)+IF(F40="Total",0,I40*F40)+IF(F41="Total",0,I41*F41)+IF(F42="Total",0,I42*F42)+IF(F43="Total",0,I43*F43)) -> 0 | M38: W | N38: Light Type 1 | P38: Select Light Fixture | Q38: =VLOOKUP(P38,'Linked Cells (hidden)'!$D$57:$E$150,2,FALSE) -> Total | S38: =VLOOKUP(P38,'Linked Cells (hidden)'!$D$57:$E$140,2,FALSE)& " " & "Watts" -> Total Watts | V38: =(IF(Q38="Total",0,T38*Q38)+IF(Q39="Total",0,T39*Q39)+IF(Q40="Total",0,T40*Q40)+IF(Q41="Total",0,T41*Q41)+IF(Q42="Total",0,T42*Q42)+IF(Q43="Total",0,T43*Q43)) -> 0 | X38: W
C39: Light Type 2 | E39: Select Light Fixture | F39: =VLOOKUP(E39,'Linked Cells (hidden)'!$D$57:$E$150,2,FALSE) -> Total | H39: =VLOOKUP(E39,'Linked Cells (hidden)'!$D$57:$E$150,2,FALSE)& " " & "Watts" -> Total Watts | N39: Light Type 2 | P39: Select Light Fixture | Q39: =VLOOKUP(P39,'Linked Cells (hidden)'!$D$57:$E$150,2,FALSE) -> Total | S39: =VLOOKUP(P39,'Linked Cells (hidden)'!$D$57:$E$140,2,FALSE)& " " & "Watts" -> Total Watts
C40: Light Type 3 | E40: Select Light Fixture | F40: =VLOOKUP(E40,'Linked Cells (hidden)'!$D$57:$E$150,2,FALSE) -> Total | H40: =VLOOKUP(E40,'Linked Cells (hidden)'!$D$57:$E$150,2,FALSE)& " " & "Watts" -> Total Watts | K40: Room Lighting Power Density (LPD) | N40: Light Type 3 | P40: Select Light Fixture | Q40: =VLOOKUP(P40,'Linked Cells (hidden)'!$D$57:$E$150,2,FALSE) -> Total | S40: =VLOOKUP(P40,'Linked Cells (hidden)'!$D$57:$E$140,2,FALSE)& " " & "Watts" -> Total Watts | V40: Room Lighting Power Density (LPD)
C41: Light Type 4 | E41: Select Light Fixture | F41: =VLOOKUP(E41,'Linked Cells (hidden)'!$D$57:$E$150,2,FALSE) -> Total | H41: =VLOOKUP(E41,'Linked Cells (hidden)'!$D$57:$E$150,2,FALSE)& " " & "Watts" -> Total Watts | K41: =IF(K38=0,"",K38/I35) ->  | L41: W/ft2 | N41: Light Type 4 | P41: Select Light Fixture | Q41: =VLOOKUP(P41,'Linked Cells (hidden)'!$D$57:$E$150,2,FALSE) -> Total | S41: =VLOOKUP(P41,'Linked Cells (hidden)'!$D$57:$E$140,2,FALSE)& " " & "Watts" -> Total Watts | V41: =IF(V38=0,"",V38/T35) ->  | W41: W/ft2
C42: Light Type 5 | E42: Select Light Fixture | F42: =VLOOKUP(E42,'Linked Cells (hidden)'!$D$57:$E$150,2,FALSE) -> Total | H42: =VLOOKUP(E42,'Linked Cells (hidden)'!$D$57:$E$150,2,FALSE)& " " & "Watts" -> Total Watts | N42: Light Type 5 | P42: Select Light Fixture | Q42: =VLOOKUP(P42,'Linked Cells (hidden)'!$D$57:$E$150,2,FALSE) -> Total | S42: =VLOOKUP(P42,'Linked Cells (hidden)'!$D$57:$E$140,2,FALSE)& " " & "Watts" -> Total Watts
C43: Other Type : Name | F43: =IF(D44=0,"Total",D44) -> Total | H43: =F43 & " Watts" -> Total Watts | N43: Other Type : Name | Q43: =IF(O44=0,"Total",O44) -> Total | S43: =Q43 & " Watts" -> Total Watts
C44: : Watts | N44: : Watts
C47: Room 3 Name | H47: Area | J47: Ft2 | N47: Room 4 Name | S47: Area | U47: Ft2
C48: Room 3 Lighting (Main Lighting only - Do not include task lights) | N48: Room 4 Lighting (Main Lighting only - Do not include task lights)
C49: Select up to 6 Light Fixture Types | K49: Total Room Wattage (W) | N49: Select up to 6 Light Fixture Types | V49: Total Room Wattage (W)
C50: Light Type 1 | E50: Select Light Fixture | F50: =VLOOKUP(E50,'Linked Cells (hidden)'!$D$57:$E$150,2,FALSE) -> Total | H50: =VLOOKUP(E50,'Linked Cells (hidden)'!$D$57:$E$150,2,FALSE)& " " & "Watts" -> Total Watts | K50: =(IF(F50="Total",0,I50*F50)+IF(F51="Total",0,I51*F51)+IF(F52="Total",0,I52*F52)+IF(F53="Total",0,I53*F53)+IF(F54="Total",0,I54*F54)+IF(F55="Total",0,I55*F55)) -> 0 | M50: W | N50: Light Type 1 | P50: Select Light Fixture | Q50: =VLOOKUP(P50,'Linked Cells (hidden)'!$D$57:$E$150,2,FALSE) -> Total | S50: =VLOOKUP(P50,'Linked Cells (hidden)'!$D$57:$E$140,2,FALSE)& " " & "Watts" -> Total Watts | V50: =(IF(Q50="Total",0,T50*Q50)+IF(Q51="Total",0,T51*Q51)+IF(Q52="Total",0,T52*Q52)+IF(Q53="Total",0,T53*Q53)+IF(Q54="Total",0,T54*Q54)+IF(Q55="Total",0,T55*Q55)) -> 0 | X50: W
C51: Light Type 2 | E51: Select Light Fixture | F51: =VLOOKUP(E51,'Linked Cells (hidden)'!$D$57:$E$150,2,FALSE) -> Total | H51: =VLOOKUP(E51,'Linked Cells (hidden)'!$D$57:$E$150,2,FALSE)& " " & "Watts" -> Total Watts | N51: Light Type 2 | P51: Select Light Fixture | Q51: =VLOOKUP(P51,'Linked Cells (hidden)'!$D$57:$E$150,2,FALSE) -> Total | S51: =VLOOKUP(P51,'Linked Cells (hidden)'!$D$57:$E$140,2,FALSE)& " " & "Watts" -> Total Watts
C52: Light Type 3 | E52: Select Light Fixture | F52: =VLOOKUP(E52,'Linked Cells (hidden)'!$D$57:$E$150,2,FALSE) -> Total | H52: =VLOOKUP(E52,'Linked Cells (hidden)'!$D$57:$E$150,2,FALSE)& " " & "Watts" -> Total Watts | K52: Room Lighting Power Density (LPD) | N52: Light Type 3 | P52: Select Light Fixture | Q52: =VLOOKUP(P52,'Linked Cells (hidden)'!$D$57:$E$150,2,FALSE) -> Total | S52: =VLOOKUP(P52,'Linked Cells (hidden)'!$D$57:$E$140,2,FALSE)& " " & "Watts" -> Total Watts | V52: Room Lighting Power Density (LPD)
C53: Light Type 4 | E53: Select Light Fixture | F53: =VLOOKUP(E53,'Linked Cells (hidden)'!$D$57:$E$150,2,FALSE) -> Total | H53: =VLOOKUP(E53,'Linked Cells (hidden)'!$D$57:$E$150,2,FALSE)& " " & "Watts" -> Total Watts | K53: =IF(K50=0,"",K50/I47) ->  | L53: W/ft2 | N53: Light Type 4 | P53: Select Light Fixture | Q53: =VLOOKUP(P53,'Linked Cells (hidden)'!$D$57:$E$150,2,FALSE) -> Total | S53: =VLOOKUP(P53,'Linked Cells (hidden)'!$D$57:$E$140,2,FALSE)& " " & "Watts" -> Total Watts | V53: =IF(V50=0,"",V50/T47) ->  | W53: W/ft2
C54: Light Type 5 | E54: Select Light Fixture | F54: =VLOOKUP(E54,'Linked Cells (hidden)'!$D$57:$E$150,2,FALSE) -> Total | H54: =VLOOKUP(E54,'Linked Cells (hidden)'!$D$57:$E$150,2,FALSE)& " " & "Watts" -> Total Watts | N54: Light Type 5 | P54: Select Light Fixture | Q54: =VLOOKUP(P54,'Linked Cells (hidden)'!$D$57:$E$150,2,FALSE) -> Total | S54: =VLOOKUP(P54,'Linked Cells (hidden)'!$D$57:$E$140,2,FALSE)& " " & "Watts" -> Total Watts
C55: Other Type : Name | F55: =IF(D56=0,"Total",D56) -> Total | H55: =F55 & " Watts" -> Total Watts | N55: Other Type : Name | Q55: =IF(O56=0,"Total",O56) -> Total | S55: =Q55 & " Watts" -> Total Watts
C56: : Watts | N56: : Watts
C59: Room 5 Name | H59: Area | J59: Ft2 | N59: Room 6 Name | S59: Area | U59: Ft2
C60: Room 5 Lighting (Main Lighting only - Do not include task lights) | N60: Room 6 Lighting (Main Lighting only - Do not include task lights)
C61: Select up to 6 Light Fixture Types | K61: Total Room Wattage (W) | N61: Select up to 6 Light Fixture Types | V61: Total Room Wattage (W)
C62: Light Type 1 | E62: Select Light Fixture | F62: =VLOOKUP(E62,'Linked Cells (hidden)'!$D$57:$E$150,2,FALSE) -> Total | H62: =VLOOKUP(E62,'Linked Cells (hidden)'!$D$57:$E$150,2,FALSE)& " " & "Watts" -> Total Watts | K62: =(IF(F62="Total",0,I62*F62)+IF(F63="Total",0,I63*F63)+IF(F64="Total",0,I64*F64)+IF(F65="Total",0,I65*F65)+IF(F66="Total",0,I66*F66)+IF(F67="Total",0,I67*F67)) -> 0 | M62: W | N62: Light Type 1 | P62: Select Light Fixture | Q62: =VLOOKUP(P62,'Linked Cells (hidden)'!$D$57:$E$150,2,FALSE) -> Total | S62: =VLOOKUP(P62,'Linked Cells (hidden)'!$D$57:$E$140,2,FALSE)& " " & "Watts" -> Total Watts | V62: =(IF(Q62="Total",0,T62*Q62)+IF(Q63="Total",0,T63*Q63)+IF(Q64="Total",0,T64*Q64)+IF(Q65="Total",0,T65*Q65)+IF(Q66="Total",0,T66*Q66)+IF(Q67="Total",0,T67*Q67)) -> 0 | X62: W
C63: Light Type 2 | E63: Select Light Fixture | F63: =VLOOKUP(E63,'Linked Cells (hidden)'!$D$57:$E$150,2,FALSE) -> Total | H63: =VLOOKUP(E63,'Linked Cells (hidden)'!$D$57:$E$150,2,FALSE)& " " & "Watts" -> Total Watts | N63: Light Type 2 | P63: Select Light Fixture | Q63: =VLOOKUP(P63,'Linked Cells (hidden)'!$D$57:$E$150,2,FALSE) -> Total | S63: =VLOOKUP(P63,'Linked Cells (hidden)'!$D$57:$E$140,2,FALSE)& " " & "Watts" -> Total Watts
C64: Light Type 3 | E64: Select Light Fixture | F64: =VLOOKUP(E64,'Linked Cells (hidden)'!$D$57:$E$150,2,FALSE) -> Total | H64: =VLOOKUP(E64,'Linked Cells (hidden)'!$D$57:$E$150,2,FALSE)& " " & "Watts" -> Total Watts | K64: Room Lighting Power Density (LPD) | N64: Light Type 3 | P64: Select Light Fixture | Q64: =VLOOKUP(P64,'Linked Cells (hidden)'!$D$57:$E$150,2,FALSE) -> Total | S64: =VLOOKUP(P64,'Linked Cells (hidden)'!$D$57:$E$140,2,FALSE)& " " & "Watts" -> Total Watts | V64: Room Lighting Power Density (LPD)
C65: Light Type 4 | E65: Select Light Fixture | F65: =VLOOKUP(E65,'Linked Cells (hidden)'!$D$57:$E$150,2,FALSE) -> Total | H65: =VLOOKUP(E65,'Linked Cells (hidden)'!$D$57:$E$150,2,FALSE)& " " & "Watts" -> Total Watts | K65: =IF(K62=0,"",K62/I59) ->  | L65: W/ft2 | N65: Light Type 4 | P65: Select Light Fixture | Q65: =VLOOKUP(P65,'Linked Cells (hidden)'!$D$57:$E$150,2,FALSE) -> Total | S65: =VLOOKUP(P65,'Linked Cells (hidden)'!$D$57:$E$140,2,FALSE)& " " & "Watts" -> Total Watts | V65: =IF(V62=0,"",V62/T59) ->  | W65: W/ft2
C66: Light Type 5 | E66: Select Light Fixture | F66: =VLOOKUP(E66,'Linked Cells (hidden)'!$D$57:$E$150,2,FALSE) -> Total | H66: =VLOOKUP(E66,'Linked Cells (hidden)'!$D$57:$E$150,2,FALSE)& " " & "Watts" -> Total Watts | N66: Light Type 5 | P66: Select Light Fixture | Q66: =VLOOKUP(P66,'Linked Cells (hidden)'!$D$57:$E$150,2,FALSE) -> Total | S66: =VLOOKUP(P66,'Linked Cells (hidden)'!$D$57:$E$140,2,FALSE)& " " & "Watts" -> Total Watts
C67: Other Type : Name | F67: =IF(D68=0,"Total",D68) -> Total | H67: =F67 & " Watts" -> Total Watts | N67: Other Type : Name | Q67: =IF(O68=0,"Total",O68) -> Total | S67: =Q67 & " Watts" -> Total Watts
C68: : Watts | N68: : Watts
C71: Room 7 Name | H71: Area | J71: Ft2 | N71: Room 8 Name | S71: Area | U71: Ft2
C72: Room 7 Lighting (Main Lighting only - Do not include task lights) | N72: Room 8 Lighting (Main Lighting only - Do not include task lights)
C73: Select up to 6 Light Fixture Types | K73: Total Room Wattage (W) | N73: Select up to 6 Light Fixture Types | V73: Total Room Wattage (W)
C74: Light Type 1 | E74: Select Light Fixture | H74: =VLOOKUP(E74,'Linked Cells (hidden)'!$D$57:$E$150,2,FALSE)& " " & "Watts" -> Total Watts | K74: =(IF(F74="Total",0,I74*F74)+IF(F75="Total",0,I75*F75)+IF(F76="Total",0,I76*F76)+IF(F77="Total",0,I77*F77)+IF(F78="Total",0,I78*F78)+IF(F79="Total",0,I79*F79)) -> 0 | M74: W | N74: Light Type 1 | P74: Select Light Fixture | S74: =VLOOKUP(P74,'Linked Cells (hidden)'!$D$57:$E$140,2,FALSE)& " " & "Watts" -> Total Watts | V74: =(IF(Q74="Total",0,T74*Q74)+IF(Q75="Total",0,T75*Q75)+IF(Q76="Total",0,T76*Q76)+IF(Q77="Total",0,T77*Q77)+IF(Q78="Total",0,T78*Q78)+IF(Q79="Total",0,T79*Q79)) -> 0 | X74: W
C75: Light Type 2 | E75: Select Light Fixture | F75: =VLOOKUP(E75,'Linked Cells (hidden)'!$D$57:$E$150,2,FALSE) -> Total | H75: =VLOOKUP(E75,'Linked Cells (hidden)'!$D$57:$E$150,2,FALSE)& " " & "Watts" -> Total Watts | N75: Light Type 2 | P75: Select Light Fixture | Q75: =VLOOKUP(P75,'Linked Cells (hidden)'!$D$57:$E$150,2,FALSE) -> Total | S75: =VLOOKUP(P75,'Linked Cells (hidden)'!$D$57:$E$140,2,FALSE)& " " & "Watts" -> Total Watts
C76: Light Type 3 | E76: Select Light Fixture | F76: =VLOOKUP(E76,'Linked Cells (hidden)'!$D$57:$E$150,2,FALSE) -> Total | H76: =VLOOKUP(E76,'Linked Cells (hidden)'!$D$57:$E$150,2,FALSE)& " " & "Watts" -> Total Watts | K76: Room Lighting Power Density (LPD) | N76: Light Type 3 | P76: Select Light Fixture | Q76: =VLOOKUP(P76,'Linked Cells (hidden)'!$D$57:$E$150,2,FALSE) -> Total | S76: =VLOOKUP(P76,'Linked Cells (hidden)'!$D$57:$E$140,2,FALSE)& " " & "Watts" -> Total Watts | V76: Room Lighting Power Density (LPD)
C77: Light Type 4 | E77: Select Light Fixture | F77: =VLOOKUP(E77,'Linked Cells (hidden)'!$D$57:$E$150,2,FALSE) -> Total | H77: =VLOOKUP(E77,'Linked Cells (hidden)'!$D$57:$E$150,2,FALSE)& " " & "Watts" -> Total Watts | K77: =IF(K74=0,"",K74/I71) ->  | L77: W/ft2 | N77: Light Type 4 | P77: Select Light Fixture | Q77: =VLOOKUP(P77,'Linked Cells (hidden)'!$D$57:$E$150,2,FALSE) -> Total | S77: =VLOOKUP(P77,'Linked Cells (hidden)'!$D$57:$E$140,2,FALSE)& " " & "Watts" -> Total Watts | V77: =IF(V74=0,"",V74/T71) ->  | W77: W/ft2
C78: Light Type 5 | E78: Select Light Fixture | F78: =VLOOKUP(E78,'Linked Cells (hidden)'!$D$57:$E$150,2,FALSE) -> Total | H78: =VLOOKUP(E78,'Linked Cells (hidden)'!$D$57:$E$150,2,FALSE)& " " & "Watts" -> Total Watts | N78: Light Type 5 | P78: Select Light Fixture | Q78: =VLOOKUP(P78,'Linked Cells (hidden)'!$D$57:$E$150,2,FALSE) -> Total | S78: =VLOOKUP(P78,'Linked Cells (hidden)'!$D$57:$E$140,2,FALSE)& " " & "Watts" -> Total Watts
C79: Other Type : Name | F79: =IF(D80=0,"Total",D80) -> Total | H79: =F79 & " Watts" -> Total Watts | N79: Other Type : Name | Q79: =IF(O80=0,"Total",O80) -> Total | S79: =Q79 & " Watts" -> Total Watts
C80: : Watts | N80: : Watts
C83: Room 9 Name | H83: Area | J83: Ft2 | N83: Room 10 Name | S83: Area | U83: Ft2
C84: Room 9 Lighting (Main Lighting only - Do not include task lights) | N84: Room 10 Lighting (Main Lighting only - Do not include task lights)
C85: Select up to 6 Light Fixture Types | K85: Total Room Wattage (W) | N85: Select up to 6 Light Fixture Types | V85: Total Room Wattage (W)
C86: Light Type 1 | E86: Select Light Fixture | F86: =VLOOKUP(E86,'Linked Cells (hidden)'!$D$57:$E$150,2,FALSE) -> Total | H86: =VLOOKUP(E86,'Linked Cells (hidden)'!$D$57:$E$150,2,FALSE)& " " & "Watts" -> Total Watts | K86: =(IF(F86="Total",0,I86*F86)+IF(F87="Total",0,I87*F87)+IF(F88="Total",0,I88*F88)+IF(F89="Total",0,I89*F89)+IF(F90="Total",0,I90*F90)+IF(F91="Total",0,I91*F91)) -> 0 | M86: W | N86: Light Type 1 | P86: Select Light Fixture | Q86: =VLOOKUP(P86,'Linked Cells (hidden)'!$D$57:$E$150,2,FALSE) -> Total | S86: =VLOOKUP(P86,'Linked Cells (hidden)'!$D$57:$E$140,2,FALSE)& " " & "Watts" -> Total Watts | V86: =(IF(Q86="Total",0,T86*Q86)+IF(Q87="Total",0,T87*Q87)+IF(Q88="Total",0,T88*Q88)+IF(Q89="Total",0,T89*Q89)+IF(Q90="Total",0,T90*Q90)+IF(Q91="Total",0,T91*Q91)) -> 0 | X86: W
C87: Light Type 2 | E87: Select Light Fixture | H87: =VLOOKUP(E87,'Linked Cells (hidden)'!$D$57:$E$150,2,FALSE)& " " & "Watts" -> Total Watts | N87: Light Type 2 | P87: Select Light Fixture | S87: =VLOOKUP(P87,'Linked Cells (hidden)'!$D$57:$E$140,2,FALSE)& " " & "Watts" -> Total Watts
C88: Light Type 3 | E88: Select Light Fixture | F88: =VLOOKUP(E88,'Linked Cells (hidden)'!$D$57:$E$150,2,FALSE) -> Total | H88: =VLOOKUP(E88,'Linked Cells (hidden)'!$D$57:$E$150,2,FALSE)& " " & "Watts" -> Total Watts | K88: Room Lighting Power Density (LPD) | N88: Light Type 3 | P88: Select Light Fixture | Q88: =VLOOKUP(P88,'Linked Cells (hidden)'!$D$57:$E$150,2,FALSE) -> Total | S88: =VLOOKUP(P88,'Linked Cells (hidden)'!$D$57:$E$140,2,FALSE)& " " & "Watts" -> Total Watts | V88: Room Lighting Power Density (LPD)
C89: Light Type 4 | E89: Select Light Fixture | F89: =VLOOKUP(E89,'Linked Cells (hidden)'!$D$57:$E$150,2,FALSE) -> Total | H89: =VLOOKUP(E89,'Linked Cells (hidden)'!$D$57:$E$150,2,FALSE)& " " & "Watts" -> Total Watts | K89: =IF(K86=0,"",K86/I83) ->  | L89: W/ft2 | N89: Light Type 4 | P89: Select Light Fixture | Q89: =VLOOKUP(P89,'Linked Cells (hidden)'!$D$57:$E$150,2,FALSE) -> Total | S89: =VLOOKUP(P89,'Linked Cells (hidden)'!$D$57:$E$140,2,FALSE)& " " & "Watts" -> Total Watts | V89: =IF(V86=0,"",V86/T83) ->  | W89: W/ft2
C90: Light Type 5 | E90: Select Light Fixture | F90: =VLOOKUP(E90,'Linked Cells (hidden)'!$D$57:$E$150,2,FALSE) -> Total | H90: =VLOOKUP(E90,'Linked Cells (hidden)'!$D$57:$E$150,2,FALSE)& " " & "Watts" -> Total Watts | N90: Light Type 5 | P90: Select Light Fixture | Q90: =VLOOKUP(P90,'Linked Cells (hidden)'!$D$57:$E$150,2,FALSE) -> Total | S90: =VLOOKUP(P90,'Linked Cells (hidden)'!$D$57:$E$140,2,FALSE)& " " & "Watts" -> Total Watts
C91: Other Type : Name | F91: =IF(D92=0,"Total",D92) -> Total | H91: =F91 & " Watts" -> Total Watts | N91: Other Type : Name | Q91: =IF(O92=0,"Total",O92) -> Total | S91: =Q91 & " Watts" -> Total Watts
C92: : Watts | N92: : Watts
B96: HVAC/Non-Process Energy
B98: To determine the site's Non-Process Heating, Ventilating, and Air Conditioning (HVAC) loads and energy use, describe each building's HVAC electrical using units by entering them below. If multiple of a unit exists, either add them into the table as separate units or enter Motor Size as the motor's size (in hp) multiplied by the quantity. Non-Process HVAC is meant to include all equipment not tied to specific process operations such as general ventilation heaters, office air conditioners, restroom exhaust fans, etc. Do not provide process-related ventilation equipment such as odor control fans here. You can enter process equipment information on the "WTP or WWTP Energy Usage" tab. For each Non-Process HVAC unit select the equipment type from the dropdown list and enter an “Equipment Description.” Collect and enter each unit’s motor size, efficiency and full load amperage (FLA) ratings. This information can be gathered from the equipment's nameplate or specification datasheet. If the site has authorized personnel capable of taking electrical measurements, enter the motors average operating current. Otherwise leave the "Average Motor Operating Current" blank and the tool will use an 80% Load Factor in its calculations. Once the equipment's typical operating hours are entered, the tool calculates the estimated annual energy use and operating cost for the unit. If conditions at the plant change, you can adjust these values. A summary of the HVAC and lighting information entered on the building data tabs is displayed on the top on the WTP and WWTP Energy Usage tabs. For those values to be included in the total energy use and to be displayed in the pie charts and summary report, you must enter the values in the Equipment Electrical Energy Inventory table (on the WTP or WWTP Energy Usage tab) as Non Process HVAC. See the instructions on that tab on how to enter this information.
C103: System Type | D103: Equipment Type | G103: Equipment Description | H103: Motor Size (hp) | I103: Motor Efficiency | J103: Motor Full Load Amperage (FLA) | K103: Average Motor Operating Current (Amps) | L103: Motor Operating Hours (Hours/Year) | M103: Average Load Factor (%) | N103: Average HVAC Electric Load (kW) | O103: Estimated Annual Energy Use (kWh/yr) | R103: Estimated Annual Operating Costs ($/Year) | S103: Estimated Percent of Site Electric Use & Cost (%)
C104: Non Process HVAC | D104: Fan | G104: Exhaust Fan | H104: 2 | I104: 0.85 | J104: 2.2 | K104: 1.8 | L104: 2500 | M104: =IF(J104=0,0,IF(K104=0,0.75,K104/J104)) -> 0.8181818182 | N104: =IF(I104=0,0,H104*0.746*M104/I104) -> 1.436149733 | O104: =N104*L104 -> 3590.374332 | R104: =O104*'General Information'!$H$46 -> 363.3456907 | S104: =IF('General Information'!$H$44=0,"",O104/'General Information'!$H$44) -> 0.001597141607
C105: Non Process HVAC | D105: Select Equipment | M105: 0 | N105: 0 | O105: 0 | R105: =O105*'General Information'!$H$46 -> 0 | S105: =IF('General Information'!$H$44=0,"",O105/'General Information'!$H$44) -> 0
C106: Non Process HVAC | D106: Select Equipment | M106: 0 | N106: 0 | O106: 0 | R106: =O106*'General Information'!$H$46 -> 0 | S106: =IF('General Information'!$H$44=0,"",O106/'General Information'!$H$44) -> 0
C107: Non Process HVAC | D107: Select Equipment | M107: 0 | N107: 0 | O107: 0 | R107: =O107*'General Information'!$H$46 -> 0 | S107: =IF('General Information'!$H$44=0,"",O107/'General Information'!$H$44) -> 0
C108: Non Process HVAC | D108: Select Equipment | M108: 0 | N108: 0 | O108: 0 | R108: =O108*'General Information'!$H$46 -> 0 | S108: =IF('General Information'!$H$44=0,"",O108/'General Information'!$H$44) -> 0
C109: Non Process HVAC | D109: Select Equipment | M109: 0 | N109: 0 | O109: 0 | R109: =O109*'General Information'!$H$46 -> 0 | S109: =IF('General Information'!$H$44=0,"",O109/'General Information'!$H$44) -> 0
J111: Total Building HVAC | N111: =SUM(N101:N109) -> 1.436149733 | O111: =SUM(O101:O109) -> 3590.374332 | R111: =SUM(R104:R109) -> 363.3456907 | S111: =SUM(S104:S109) -> 0.001597141607

Sheet Building 6 Data
A1: ="EPA Energy Use Assessment Tool for " & workbookType -> EPA Energy Use Assessment Tool for Drinking Water Systems
A2: Site Structural Buildings - Major Non-Process Energy Users
B4: In the Building Data tabs, the tool totals each building’s Lighting and HVAC information. You should use the totals for entry on the WTP or WWTP Energy Use tabs. For instructions on how to enter that information, see the WTP or WWTP Energy Usage tabs. If you have already identified the site's Lighting and HVAC loads or would just like to estimate them without detailing this information here, proceed to the WTP or WWTP Energy Usage tab. If you skip this tab, you can come back later to fill in this detail.
B6: The following information is entered once for the entire plant. To change the Total Number of Buildings on-site, go to the "Building 1 Data" tab and click the "Set # of Buildings" button. This lets you enter information for the specified number of buildings. After entering data in a building tab, click the "Save and Continue" button at the top. That allows you to enter data for the next building or if building data entry is complete, to return to the General Information tab. You can also click the other Building Data tabs at the bottom.
B9: Total Plant Building Area | D9: ='Building 1 Data'!D9 -> 9000 | E9: 6 | G9: Ft2 | H9: Total Plant Building Electric Load | K9: ='Building 1 Data'!K9 -> 57.14935709 | L9: kW | M9: Total Plant Building Electric Use | O9: ='Building 1 Data'!O9 -> 141729.2706 | R9: kWh/Yr
B11: Does the site have buildings? | D11: =hasBldgs -> Yes | H11: Total Number of Buildings On-site: | K11: =[0]!totalbldgs -> 10
B13: Enter the following information for each building at the plant. To begin, select the number of rooms in the "No. of Rooms" dropdown list below and click the "Set # of rooms" button. It is important to know and set the number of rooms upfront, before any lighting data is entered. If the number of rooms is later changed, all the data that had been entered will be lost.
C16: ="BUILDING " & E9 -> BUILDING 6
C18: Name | D18: Secondary Pumping | I18: Operating Hours per Year | K18: =IF(K19="","",K19*K20*52) -> 2912 | L18: Hrs/Yr | M18: Approximate Building Age (If known) | S18: Yrs
C19: Area | D19: =I35+T35+T47+I47+I59+T59+T71+I71+I83+T83 -> 500 | G19: Ft2 | I19: Operating Hours per Day | K19: 8 | L19: Hrs/Day
C20: No. of Rooms | G20: ! Changing the number of rooms will reset all lighting data entered. | I20: Operating Days per Week | K20: 7 | L20: Days/Wk | M20: Average Building Lighting Power Density (LPD) | R20: =IF(D19=0,"",(K38+V38+V50+K50+K62+V62+V74+K74+K86+V86)/D19) -> 3.344 | S20: W/ft2
C21: Estimated Electric Load: | I21: Estimated Annual Energy Use: | N21: Estimated Annual Energy Cost:
C22: ="Total Building " & $E$9& " Lighting" -> Total Building 6 Lighting | G22: =IF((K38+V38+V50+K50+K62+V62+V74+K74+K86+V86)=0,0,(K38+V38+V50+K50+K62+V62+V74+K74+K86+V86)/1000) -> 1.672 | H22: kW | I22: ="Total Building " & $E$9& " Lighting" -> Total Building 6 Lighting | L22: =IF((K38+V38+V50+K50+K62+V62+V74+K74+K86+V86)=0,IF(K18="",0,0),IF(K18="",0,((K38+V38+V50+K50+K62+V62+V74+K74+K86+V86)/1000)*K18)) -> 4868.864 | M22: kWh/Yr | N22: ="Total Building " & $E$9 & " Lighting" -> Total Building 6 Lighting | R22: =L22*'General Information'!$H$46 -> 492.7287769 | S22: $/Yr
C23: ="Total Building " & $E$9 & " HVAC" -> Total Building 6 HVAC | G23: =N111 -> 0.5924117647 | H23: kW | I23: ="Total Building " & $E$9 & " HVAC" -> Total Building 6 HVAC | L23: =O$111 -> 1481.029412 | M23: kWh/Yr | N23: ="Total Building " & $E$9 & " HVAC" -> Total Building 6 HVAC | R23: =R111 -> 149.8800974 | S23: $/Yr
C24: ="Total Building " & $E$9 & " Combined" -> Total Building 6 Combined | G24: =SUM(G22:G23) -> 2.264411765 | H24: kW | I24: ="Total Building " & $E$9 & " Combined" -> Total Building 6 Combined | L24: =SUM(L22,L23) -> 6349.893412 | M24: kWh/Yr | N24: ="Total Building " & $E$9 & " Combined" -> Total Building 6 Combined | R24: =SUM(R22,R23) -> 642.6088743 | S24: $/Yr
C26: LIGHTING
B28: To determine the site’s lighting loads and energy use, select each of the room’s lighting fixture types and quantity (Qty) using the dropdown lists below. Select a light type from the dropdown list for each size and kind of fixture in a room. Then enter the quantity for each type. The tool provides the fixture’s electrical energy load in watts. Do not include task lights (directional lights used to illuminate an area of work) when entering the room's lighting fixtures. If a type of fixture is not available in the dropdown list, use the "Other Type" input field to enter the fixture and its total wattage. The table automatically totals the room's lighting loads, each building's lighting energy use and the site's total lighting energy use per year for use in other areas of the tool. Enter the area of each room and the tool calculates the Lighting Power Density (LPD) in watts per square foot. You can now take an important next step and compare LPD’s from room to room and building to building to determine where excess energy might be in use.
C35: Room 1 Name | D35: Main Floor | H35: Area | I35: 500 | J35: Ft2 | N35: Room 2 Name | S35: Area | U35: Ft2
C36: Room 1 Lighting (Main Lighting only - Do not include task lights) | N36: Room 2 Lighting (Main Lighting only - Do not include task lights)
C37: Select up to 6 Light Fixture Types | K37: Total Room Wattage (W) | N37: Select up to 6 Light Fixture Types | V37: Total Room Wattage (W)
C38: Light Type 1 | E38: Two F96T12 HO 8' 95W ES Fluorescent Lamps, ES Magnetic Ballast | F38: =VLOOKUP(E38,'Linked Cells (hidden)'!$D$57:$E$150,2,FALSE) -> 209 | H38: =VLOOKUP(E38,'Linked Cells (hidden)'!$D$57:$E$150,2,FALSE)& " " & "Watts" -> 209 Watts | I38: 8 | K38: =(IF(F38="Total",0,I38*F38)+IF(F39="Total",0,I39*F39)+IF(F40="Total",0,I40*F40)+IF(F41="Total",0,I41*F41)+IF(F42="Total",0,I42*F42)+IF(F43="Total",0,I43*F43)) -> 1672 | M38: W | N38: Light Type 1 | P38: Select Light Fixture | Q38: =VLOOKUP(P38,'Linked Cells (hidden)'!$D$57:$E$150,2,FALSE) -> Total | S38: =VLOOKUP(P38,'Linked Cells (hidden)'!$D$57:$E$140,2,FALSE)& " " & "Watts" -> Total Watts | V38: =(IF(Q38="Total",0,T38*Q38)+IF(Q39="Total",0,T39*Q39)+IF(Q40="Total",0,T40*Q40)+IF(Q41="Total",0,T41*Q41)+IF(Q42="Total",0,T42*Q42)+IF(Q43="Total",0,T43*Q43)) -> 0 | X38: W
C39: Light Type 2 | E39: Select Light Fixture | F39: =VLOOKUP(E39,'Linked Cells (hidden)'!$D$57:$E$150,2,FALSE) -> Total | H39: =VLOOKUP(E39,'Linked Cells (hidden)'!$D$57:$E$150,2,FALSE)& " " & "Watts" -> Total Watts | N39: Light Type 2 | P39: Select Light Fixture | Q39: =VLOOKUP(P39,'Linked Cells (hidden)'!$D$57:$E$150,2,FALSE) -> Total | S39: =VLOOKUP(P39,'Linked Cells (hidden)'!$D$57:$E$140,2,FALSE)& " " & "Watts" -> Total Watts
C40: Light Type 3 | E40: Select Light Fixture | F40: =VLOOKUP(E40,'Linked Cells (hidden)'!$D$57:$E$150,2,FALSE) -> Total | H40: =VLOOKUP(E40,'Linked Cells (hidden)'!$D$57:$E$150,2,FALSE)& " " & "Watts" -> Total Watts | K40: Room Lighting Power Density (LPD) | N40: Light Type 3 | P40: Select Light Fixture | Q40: =VLOOKUP(P40,'Linked Cells (hidden)'!$D$57:$E$150,2,FALSE) -> Total | S40: =VLOOKUP(P40,'Linked Cells (hidden)'!$D$57:$E$140,2,FALSE)& " " & "Watts" -> Total Watts | V40: Room Lighting Power Density (LPD)
C41: Light Type 4 | E41: Select Light Fixture | F41: =VLOOKUP(E41,'Linked Cells (hidden)'!$D$57:$E$150,2,FALSE) -> Total | H41: =VLOOKUP(E41,'Linked Cells (hidden)'!$D$57:$E$150,2,FALSE)& " " & "Watts" -> Total Watts | K41: =IF(K38=0,"",K38/I35) -> 3.344 | L41: W/ft2 | N41: Light Type 4 | P41: Select Light Fixture | Q41: =VLOOKUP(P41,'Linked Cells (hidden)'!$D$57:$E$150,2,FALSE) -> Total | S41: =VLOOKUP(P41,'Linked Cells (hidden)'!$D$57:$E$140,2,FALSE)& " " & "Watts" -> Total Watts | V41: =IF(V38=0,"",V38/T35) ->  | W41: W/ft2
C42: Light Type 5 | E42: Select Light Fixture | F42: =VLOOKUP(E42,'Linked Cells (hidden)'!$D$57:$E$150,2,FALSE) -> Total | H42: =VLOOKUP(E42,'Linked Cells (hidden)'!$D$57:$E$150,2,FALSE)& " " & "Watts" -> Total Watts | N42: Light Type 5 | P42: Select Light Fixture | Q42: =VLOOKUP(P42,'Linked Cells (hidden)'!$D$57:$E$150,2,FALSE) -> Total | S42: =VLOOKUP(P42,'Linked Cells (hidden)'!$D$57:$E$140,2,FALSE)& " " & "Watts" -> Total Watts
C43: Other Type : Name | F43: =IF(D44=0,"Total",D44) -> Total | H43: =F43 & " Watts" -> Total Watts | N43: Other Type : Name | Q43: =IF(O44=0,"Total",O44) -> Total | S43: =Q43 & " Watts" -> Total Watts
C44: : Watts | N44: : Watts
C47: Room 3 Name | H47: Area | J47: Ft2 | N47: Room 4 Name | S47: Area | U47: Ft2
C48: Room 3 Lighting (Main Lighting only - Do not include task lights) | N48: Room 4 Lighting (Main Lighting only - Do not include task lights)
C49: Select up to 6 Light Fixture Types | K49: Total Room Wattage (W) | N49: Select up to 6 Light Fixture Types | V49: Total Room Wattage (W)
C50: Light Type 1 | E50: Select Light Fixture | F50: =VLOOKUP(E50,'Linked Cells (hidden)'!$D$57:$E$150,2,FALSE) -> Total | H50: =VLOOKUP(E50,'Linked Cells (hidden)'!$D$57:$E$150,2,FALSE)& " " & "Watts" -> Total Watts | K50: =(IF(F50="Total",0,I50*F50)+IF(F51="Total",0,I51*F51)+IF(F52="Total",0,I52*F52)+IF(F53="Total",0,I53*F53)+IF(F54="Total",0,I54*F54)+IF(F55="Total",0,I55*F55)) -> 0 | M50: W | N50: Light Type 1 | P50: Select Light Fixture | Q50: =VLOOKUP(P50,'Linked Cells (hidden)'!$D$57:$E$150,2,FALSE) -> Total | S50: =VLOOKUP(P50,'Linked Cells (hidden)'!$D$57:$E$140,2,FALSE)& " " & "Watts" -> Total Watts | V50: =(IF(Q50="Total",0,T50*Q50)+IF(Q51="Total",0,T51*Q51)+IF(Q52="Total",0,T52*Q52)+IF(Q53="Total",0,T53*Q53)+IF(Q54="Total",0,T54*Q54)+IF(Q55="Total",0,T55*Q55)) -> 0 | X50: W
C51: Light Type 2 | E51: Select Light Fixture | F51: =VLOOKUP(E51,'Linked Cells (hidden)'!$D$57:$E$150,2,FALSE) -> Total | H51: =VLOOKUP(E51,'Linked Cells (hidden)'!$D$57:$E$150,2,FALSE)& " " & "Watts" -> Total Watts | N51: Light Type 2 | P51: Select Light Fixture | Q51: =VLOOKUP(P51,'Linked Cells (hidden)'!$D$57:$E$150,2,FALSE) -> Total | S51: =VLOOKUP(P51,'Linked Cells (hidden)'!$D$57:$E$140,2,FALSE)& " " & "Watts" -> Total Watts
C52: Light Type 3 | E52: Select Light Fixture | F52: =VLOOKUP(E52,'Linked Cells (hidden)'!$D$57:$E$150,2,FALSE) -> Total | H52: =VLOOKUP(E52,'Linked Cells (hidden)'!$D$57:$E$150,2,FALSE)& " " & "Watts" -> Total Watts | K52: Room Lighting Power Density (LPD) | N52: Light Type 3 | P52: Select Light Fixture | Q52: =VLOOKUP(P52,'Linked Cells (hidden)'!$D$57:$E$150,2,FALSE) -> Total | S52: =VLOOKUP(P52,'Linked Cells (hidden)'!$D$57:$E$140,2,FALSE)& " " & "Watts" -> Total Watts | V52: Room Lighting Power Density (LPD)
C53: Light Type 4 | E53: Select Light Fixture | F53: =VLOOKUP(E53,'Linked Cells (hidden)'!$D$57:$E$150,2,FALSE) -> Total | H53: =VLOOKUP(E53,'Linked Cells (hidden)'!$D$57:$E$150,2,FALSE)& " " & "Watts" -> Total Watts | K53: =IF(K50=0,"",K50/I47) ->  | L53: W/ft2 | N53: Light Type 4 | P53: Select Light Fixture | Q53: =VLOOKUP(P53,'Linked Cells (hidden)'!$D$57:$E$150,2,FALSE) -> Total | S53: =VLOOKUP(P53,'Linked Cells (hidden)'!$D$57:$E$140,2,FALSE)& " " & "Watts" -> Total Watts | V53: =IF(V50=0,"",V50/T47) ->  | W53: W/ft2
C54: Light Type 5 | E54: Select Light Fixture | F54: =VLOOKUP(E54,'Linked Cells (hidden)'!$D$57:$E$150,2,FALSE) -> Total | H54: =VLOOKUP(E54,'Linked Cells (hidden)'!$D$57:$E$150,2,FALSE)& " " & "Watts" -> Total Watts | N54: Light Type 5 | P54: Select Light Fixture | Q54: =VLOOKUP(P54,'Linked Cells (hidden)'!$D$57:$E$150,2,FALSE) -> Total | S54: =VLOOKUP(P54,'Linked Cells (hidden)'!$D$57:$E$140,2,FALSE)& " " & "Watts" -> Total Watts
C55: Other Type : Name | F55: =IF(D56=0,"Total",D56) -> Total | H55: =F55 & " Watts" -> Total Watts | N55: Other Type : Name | Q55: =IF(O56=0,"Total",O56) -> Total | S55: =Q55 & " Watts" -> Total Watts
C56: : Watts | N56: : Watts
C59: Room 5 Name | H59: Area | J59: Ft2 | N59: Room 6 Name | S59: Area | U59: Ft2
C60: Room 5 Lighting (Main Lighting only - Do not include task lights) | N60: Room 6 Lighting (Main Lighting only - Do not include task lights)
C61: Select up to 6 Light Fixture Types | K61: Total Room Wattage (W) | N61: Select up to 6 Light Fixture Types | V61: Total Room Wattage (W)
C62: Light Type 1 | E62: Select Light Fixture | F62: =VLOOKUP(E62,'Linked Cells (hidden)'!$D$57:$E$150,2,FALSE) -> Total | H62: =VLOOKUP(E62,'Linked Cells (hidden)'!$D$57:$E$150,2,FALSE)& " " & "Watts" -> Total Watts | K62: =(IF(F62="Total",0,I62*F62)+IF(F63="Total",0,I63*F63)+IF(F64="Total",0,I64*F64)+IF(F65="Total",0,I65*F65)+IF(F66="Total",0,I66*F66)+IF(F67="Total",0,I67*F67)) -> 0 | M62: W | N62: Light Type 1 | P62: Select Light Fixture | Q62: =VLOOKUP(P62,'Linked Cells (hidden)'!$D$57:$E$150,2,FALSE) -> Total | S62: =VLOOKUP(P62,'Linked Cells (hidden)'!$D$57:$E$140,2,FALSE)& " " & "Watts" -> Total Watts | V62: =(IF(Q62="Total",0,T62*Q62)+IF(Q63="Total",0,T63*Q63)+IF(Q64="Total",0,T64*Q64)+IF(Q65="Total",0,T65*Q65)+IF(Q66="Total",0,T66*Q66)+IF(Q67="Total",0,T67*Q67)) -> 0 | X62: W
C63: Light Type 2 | E63: Select Light Fixture | F63: =VLOOKUP(E63,'Linked Cells (hidden)'!$D$57:$E$150,2,FALSE) -> Total | H63: =VLOOKUP(E63,'Linked Cells (hidden)'!$D$57:$E$150,2,FALSE)& " " & "Watts" -> Total Watts | N63: Light Type 2 | P63: Select Light Fixture | Q63: =VLOOKUP(P63,'Linked Cells (hidden)'!$D$57:$E$150,2,FALSE) -> Total | S63: =VLOOKUP(P63,'Linked Cells (hidden)'!$D$57:$E$140,2,FALSE)& " " & "Watts" -> Total Watts
C64: Light Type 3 | E64: Select Light Fixture | F64: =VLOOKUP(E64,'Linked Cells (hidden)'!$D$57:$E$150,2,FALSE) -> Total | H64: =VLOOKUP(E64,'Linked Cells (hidden)'!$D$57:$E$150,2,FALSE)& " " & "Watts" -> Total Watts | K64: Room Lighting Power Density (LPD) | N64: Light Type 3 | P64: Select Light Fixture | Q64: =VLOOKUP(P64,'Linked Cells (hidden)'!$D$57:$E$150,2,FALSE) -> Total | S64: =VLOOKUP(P64,'Linked Cells (hidden)'!$D$57:$E$140,2,FALSE)& " " & "Watts" -> Total Watts | V64: Room Lighting Power Density (LPD)
C65: Light Type 4 | E65: Select Light Fixture | F65: =VLOOKUP(E65,'Linked Cells (hidden)'!$D$57:$E$150,2,FALSE) -> Total | H65: =VLOOKUP(E65,'Linked Cells (hidden)'!$D$57:$E$150,2,FALSE)& " " & "Watts" -> Total Watts | K65: =IF(K62=0,"",K62/I59) ->  | L65: W/ft2 | N65: Light Type 4 | P65: Select Light Fixture | Q65: =VLOOKUP(P65,'Linked Cells (hidden)'!$D$57:$E$150,2,FALSE) -> Total | S65: =VLOOKUP(P65,'Linked Cells (hidden)'!$D$57:$E$140,2,FALSE)& " " & "Watts" -> Total Watts | V65: =IF(V62=0,"",V62/T59) ->  | W65: W/ft2
C66: Light Type 5 | E66: Select Light Fixture | F66: =VLOOKUP(E66,'Linked Cells (hidden)'!$D$57:$E$150,2,FALSE) -> Total | H66: =VLOOKUP(E66,'Linked Cells (hidden)'!$D$57:$E$150,2,FALSE)& " " & "Watts" -> Total Watts | N66: Light Type 5 | P66: Select Light Fixture | Q66: =VLOOKUP(P66,'Linked Cells (hidden)'!$D$57:$E$150,2,FALSE) -> Total | S66: =VLOOKUP(P66,'Linked Cells (hidden)'!$D$57:$E$140,2,FALSE)& " " & "Watts" -> Total Watts
C67: Other Type : Name | F67: =IF(D68=0,"Total",D68) -> Total | H67: =F67 & " Watts" -> Total Watts | N67: Other Type : Name | Q67: =IF(O68=0,"Total",O68) -> Total | S67: =Q67 & " Watts" -> Total Watts
C68: : Watts | N68: : Watts
C71: Room 7 Name | H71: Area | J71: Ft2 | N71: Room 8 Name | S71: Area | U71: Ft2
C72: Room 7 Lighting (Main Lighting only - Do not include task lights) | N72: Room 8 Lighting (Main Lighting only - Do not include task lights)
C73: Select up to 6 Light Fixture Types | K73: Total Room Wattage (W) | N73: Select up to 6 Light Fixture Types | V73: Total Room Wattage (W)
C74: Light Type 1 | E74: Select Light Fixture | H74: =VLOOKUP(E74,'Linked Cells (hidden)'!$D$57:$E$150,2,FALSE)& " " & "Watts" -> Total Watts | K74: =(IF(F74="Total",0,I74*F74)+IF(F75="Total",0,I75*F75)+IF(F76="Total",0,I76*F76)+IF(F77="Total",0,I77*F77)+IF(F78="Total",0,I78*F78)+IF(F79="Total",0,I79*F79)) -> 0 | M74: W | N74: Light Type 1 | P74: Select Light Fixture | S74: =VLOOKUP(P74,'Linked Cells (hidden)'!$D$57:$E$140,2,FALSE)& " " & "Watts" -> Total Watts | V74: =(IF(Q74="Total",0,T74*Q74)+IF(Q75="Total",0,T75*Q75)+IF(Q76="Total",0,T76*Q76)+IF(Q77="Total",0,T77*Q77)+IF(Q78="Total",0,T78*Q78)+IF(Q79="Total",0,T79*Q79)) -> 0 | X74: W
C75: Light Type 2 | E75: Select Light Fixture | F75: =VLOOKUP(E75,'Linked Cells (hidden)'!$D$57:$E$150,2,FALSE) -> Total | H75: =VLOOKUP(E75,'Linked Cells (hidden)'!$D$57:$E$150,2,FALSE)& " " & "Watts" -> Total Watts | N75: Light Type 2 | P75: Select Light Fixture | Q75: =VLOOKUP(P75,'Linked Cells (hidden)'!$D$57:$E$150,2,FALSE) -> Total | S75: =VLOOKUP(P75,'Linked Cells (hidden)'!$D$57:$E$140,2,FALSE)& " " & "Watts" -> Total Watts
C76: Light Type 3 | E76: Select Light Fixture | F76: =VLOOKUP(E76,'Linked Cells (hidden)'!$D$57:$E$150,2,FALSE) -> Total | H76: =VLOOKUP(E76,'Linked Cells (hidden)'!$D$57:$E$150,2,FALSE)& " " & "Watts" -> Total Watts | K76: Room Lighting Power Density (LPD) | N76: Light Type 3 | P76: Select Light Fixture | Q76: =VLOOKUP(P76,'Linked Cells (hidden)'!$D$57:$E$150,2,FALSE) -> Total | S76: =VLOOKUP(P76,'Linked Cells (hidden)'!$D$57:$E$140,2,FALSE)& " " & "Watts" -> Total Watts | V76: Room Lighting Power Density (LPD)
C77: Light Type 4 | E77: Select Light Fixture | F77: =VLOOKUP(E77,'Linked Cells (hidden)'!$D$57:$E$150,2,FALSE) -> Total | H77: =VLOOKUP(E77,'Linked Cells (hidden)'!$D$57:$E$150,2,FALSE)& " " & "Watts" -> Total Watts | K77: =IF(K74=0,"",K74/I71) ->  | L77: W/ft2 | N77: Light Type 4 | P77: Select Light Fixture | Q77: =VLOOKUP(P77,'Linked Cells (hidden)'!$D$57:$E$150,2,FALSE) -> Total | S77: =VLOOKUP(P77,'Linked Cells (hidden)'!$D$57:$E$140,2,FALSE)& " " & "Watts" -> Total Watts | V77: =IF(V74=0,"",V74/T71) ->  | W77: W/ft2
C78: Light Type 5 | E78: Select Light Fixture | F78: =VLOOKUP(E78,'Linked Cells (hidden)'!$D$57:$E$150,2,FALSE) -> Total | H78: =VLOOKUP(E78,'Linked Cells (hidden)'!$D$57:$E$150,2,FALSE)& " " & "Watts" -> Total Watts | N78: Light Type 5 | P78: Select Light Fixture | Q78: =VLOOKUP(P78,'Linked Cells (hidden)'!$D$57:$E$150,2,FALSE) -> Total | S78: =VLOOKUP(P78,'Linked Cells (hidden)'!$D$57:$E$140,2,FALSE)& " " & "Watts" -> Total Watts
C79: Other Type : Name | F79: =IF(D80=0,"Total",D80) -> Total | H79: =F79 & " Watts" -> Total Watts | N79: Other Type : Name | Q79: =IF(O80=0,"Total",O80) -> Total | S79: =Q79 & " Watts" -> Total Watts
C80: : Watts | N80: : Watts
C83: Room 9 Name | H83: Area | J83: Ft2 | N83: Room 10 Name | S83: Area | U83: Ft2
C84: Room 9 Lighting (Main Lighting only - Do not include task lights) | N84: Room 10 Lighting (Main Lighting only - Do not include task lights)
C85: Select up to 6 Light Fixture Types | K85: Total Room Wattage (W) | N85: Select up to 6 Light Fixture Types | V85: Total Room Wattage (W)
C86: Light Type 1 | E86: Select Light Fixture | F86: =VLOOKUP(E86,'Linked Cells (hidden)'!$D$57:$E$150,2,FALSE) -> Total | H86: =VLOOKUP(E86,'Linked Cells (hidden)'!$D$57:$E$150,2,FALSE)& " " & "Watts" -> Total Watts | K86: =(IF(F86="Total",0,I86*F86)+IF(F87="Total",0,I87*F87)+IF(F88="Total",0,I88*F88)+IF(F89="Total",0,I89*F89)+IF(F90="Total",0,I90*F90)+IF(F91="Total",0,I91*F91)) -> 0 | M86: W | N86: Light Type 1 | P86: Select Light Fixture | Q86: =VLOOKUP(P86,'Linked Cells (hidden)'!$D$57:$E$150,2,FALSE) -> Total | S86: =VLOOKUP(P86,'Linked Cells (hidden)'!$D$57:$E$140,2,FALSE)& " " & "Watts" -> Total Watts | V86: =(IF(Q86="Total",0,T86*Q86)+IF(Q87="Total",0,T87*Q87)+IF(Q88="Total",0,T88*Q88)+IF(Q89="Total",0,T89*Q89)+IF(Q90="Total",0,T90*Q90)+IF(Q91="Total",0,T91*Q91)) -> 0 | X86: W
C87: Light Type 2 | E87: Select Light Fixture | H87: =VLOOKUP(E87,'Linked Cells (hidden)'!$D$57:$E$150,2,FALSE)& " " & "Watts" -> Total Watts | N87: Light Type 2 | P87: Select Light Fixture | S87: =VLOOKUP(P87,'Linked Cells (hidden)'!$D$57:$E$140,2,FALSE)& " " & "Watts" -> Total Watts
C88: Light Type 3 | E88: Select Light Fixture | F88: =VLOOKUP(E88,'Linked Cells (hidden)'!$D$57:$E$150,2,FALSE) -> Total | H88: =VLOOKUP(E88,'Linked Cells (hidden)'!$D$57:$E$150,2,FALSE)& " " & "Watts" -> Total Watts | K88: Room Lighting Power Density (LPD) | N88: Light Type 3 | P88: Select Light Fixture | Q88: =VLOOKUP(P88,'Linked Cells (hidden)'!$D$57:$E$150,2,FALSE) -> Total | S88: =VLOOKUP(P88,'Linked Cells (hidden)'!$D$57:$E$140,2,FALSE)& " " & "Watts" -> Total Watts | V88: Room Lighting Power Density (LPD)
C89: Light Type 4 | E89: Select Light Fixture | F89: =VLOOKUP(E89,'Linked Cells (hidden)'!$D$57:$E$150,2,FALSE) -> Total | H89: =VLOOKUP(E89,'Linked Cells (hidden)'!$D$57:$E$150,2,FALSE)& " " & "Watts" -> Total Watts | K89: =IF(K86=0,"",K86/I83) ->  | L89: W/ft2 | N89: Light Type 4 | P89: Select Light Fixture | Q89: =VLOOKUP(P89,'Linked Cells (hidden)'!$D$57:$E$150,2,FALSE) -> Total | S89: =VLOOKUP(P89,'Linked Cells (hidden)'!$D$57:$E$140,2,FALSE)& " " & "Watts" -> Total Watts | V89: =IF(V86=0,"",V86/T83) ->  | W89: W/ft2
C90: Light Type 5 | E90: Select Light Fixture | F90: =VLOOKUP(E90,'Linked Cells (hidden)'!$D$57:$E$150,2,FALSE) -> Total | H90: =VLOOKUP(E90,'Linked Cells (hidden)'!$D$57:$E$150,2,FALSE)& " " & "Watts" -> Total Watts | N90: Light Type 5 | P90: Select Light Fixture | Q90: =VLOOKUP(P90,'Linked Cells (hidden)'!$D$57:$E$150,2,FALSE) -> Total | S90: =VLOOKUP(P90,'Linked Cells (hidden)'!$D$57:$E$140,2,FALSE)& " " & "Watts" -> Total Watts
C91: Other Type : Name | F91: =IF(D92=0,"Total",D92) -> Total | H91: =F91 & " Watts" -> Total Watts | N91: Other Type : Name | Q91: =IF(O92=0,"Total",O92) -> Total | S91: =Q91 & " Watts" -> Total Watts
C92: : Watts | N92: : Watts
B96: HVAC/Non-Process Energy
B98: To determine the site's Non-Process Heating, Ventilating, and Air Conditioning (HVAC) loads and energy use, describe each building's HVAC electrical using units by entering them below. If multiple of a unit exists, either add them into the table as separate units or enter Motor Size as the motor's size (in hp) multiplied by the quantity. Non-Process HVAC is meant to include all equipment not tied to specific process operations such as general ventilation heaters, office air conditioners, restroom exhaust fans, etc. Do not provide process-related ventilation equipment such as odor control fans here. You can enter process equipment information on the "WTP or WWTP Energy Usage" tab. For each Non-Process HVAC unit select the equipment type from the dropdown list and enter an “Equipment Description.” Collect and enter each unit’s motor size, efficiency and full load amperage (FLA) ratings. This information can be gathered from the equipment's nameplate or specification datasheet. If the site has authorized personnel capable of taking electrical measurements, enter the motors average operating current. Otherwise leave the "Average Motor Operating Current" blank and the tool will use an 80% Load Factor in its calculations. Once the equipment's typical operating hours are entered, the tool calculates the estimated annual energy use and operating cost for the unit. If conditions at the plant change, you can adjust these values. A summary of the HVAC and lighting information entered on the building data tabs is displayed on the top on the WTP and WWTP Energy Usage tabs. For those values to be included in the total energy use and to be displayed in the pie charts and summary report, you must enter the values in the Equipment Electrical Energy Inventory table (on the WTP or WWTP Energy Usage tab) as Non Process HVAC. See the instructions on that tab on how to enter this information.
C103: System Type | D103: Equipment Type | G103: Equipment Description | H103: Motor Size (hp) | I103: Motor Efficiency | J103: Motor Full Load Amperage (FLA) | K103: Average Motor Operating Current (Amps) | L103: Motor Operating Hours (Hours/Year) | M103: Average Load Factor (%) | N103: Average HVAC Electric Load (kW) | O103: Estimated Annual Energy Use (kWh/yr) | R103: Estimated Annual Operating Costs ($/Year) | S103: Estimated Percent of Site Electric Use & Cost (%)
C104: Non Process HVAC | D104: Fan | G104: Unit Heater Fan | H104: 0.75 | I104: 0.85 | J104: 1 | K104: 0.9 | L104: 2500 | M104: =IF(J104=0,0,IF(K104=0,0.75,K104/J104)) -> 0.9 | N104: =IF(I104=0,0,H104*0.746*M104/I104) -> 0.5924117647 | O104: =N104*L104 -> 1481.029412 | R104: =O104*'General Information'!$H$46 -> 149.8800974 | S104: =IF('General Information'!$H$44=0,"",O104/'General Information'!$H$44) -> 0.0006588209127
C105: Non Process HVAC | D105: Select Equipment | M105: 0 | N105: 0 | O105: 0 | R105: =O105*'General Information'!$H$46 -> 0 | S105: =IF('General Information'!$H$44=0,"",O105/'General Information'!$H$44) -> 0
C106: Non Process HVAC | D106: Select Equipment | M106: 0 | N106: 0 | O106: 0 | R106: =O106*'General Information'!$H$46 -> 0 | S106: =IF('General Information'!$H$44=0,"",O106/'General Information'!$H$44) -> 0
C107: Non Process HVAC | D107: Select Equipment | M107: 0 | N107: 0 | O107: 0 | R107: =O107*'General Information'!$H$46 -> 0 | S107: =IF('General Information'!$H$44=0,"",O107/'General Information'!$H$44) -> 0
C108: Non Process HVAC | D108: Select Equipment | M108: 0 | N108: 0 | O108: 0 | R108: =O108*'General Information'!$H$46 -> 0 | S108: =IF('General Information'!$H$44=0,"",O108/'General Information'!$H$44) -> 0
C109: Non Process HVAC | D109: Select Equipment | M109: 0 | N109: 0 | O109: 0 | R109: =O109*'General Information'!$H$46 -> 0 | S109: =IF('General Information'!$H$44=0,"",O109/'General Information'!$H$44) -> 0
J111: Total Building HVAC | N111: =SUM(N101:N109) -> 0.5924117647 | O111: =SUM(O101:O109) -> 1481.029412 | R111: =SUM(R104:R109) -> 149.8800974 | S111: =SUM(S104:S109) -> 0.0006588209127

Sheet Building 7 Data
A1: ="EPA Energy Use Assessment Tool for " & workbookType -> EPA Energy Use Assessment Tool for Drinking Water Systems
A2: Site Structural Buildings - Major Non-Process Energy Users
B4: In the Building Data tabs, the tool totals each building’s Lighting and HVAC information. You should use the totals for entry on the WTP or WWTP Energy Use tabs. For instructions on how to enter that information, see the WTP or WWTP Energy Usage tabs. If you have already identified the site's Lighting and HVAC loads or would just like to estimate them without detailing this information here, proceed to the WTP or WWTP Energy Usage tab. If you skip this tab, you can come back later to fill in this detail.
B6: The following information is entered once for the entire plant. To change the Total Number of Buildings on-site, go to the "Building 1 Data" tab and click the "Set # of Buildings" button. This lets you enter information for the specified number of buildings. After entering data in a building tab, click the "Save and Continue" button at the top. That allows you to enter data for the next building or if building data entry is complete, to return to the General Information tab. You can also click the other Building Data tabs at the bottom.
B9: Total Plant Building Area | D9: ='Building 1 Data'!D9 -> 9000 | E9: 7 | G9: Ft2 | H9: Total Plant Building Electric Load | K9: ='Building 1 Data'!K9 -> 57.14935709 | L9: kW | M9: Total Plant Building Electric Use | O9: ='Building 1 Data'!O9 -> 141729.2706 | R9: kWh/Yr
B11: Does the site have buildings? | D11: =hasBldgs -> Yes | H11: Total Number of Buildings On-site: | K11: =[0]!totalbldgs -> 10
B13: Enter the following information for each building at the plant. To begin, select the number of rooms in the "No. of Rooms" dropdown list below and click the "Set # of rooms" button. It is important to know and set the number of rooms upfront, before any lighting data is entered. If the number of rooms is later changed, all the data that had been entered will be lost.
C16: ="BUILDING " & E9 -> BUILDING 7
C18: Name | D18: Blower Building | I18: Operating Hours per Year | K18: =IF(K19="","",K19*K20*52) -> 2912 | L18: Hrs/Yr | M18: Approximate Building Age (If known) | S18: Yrs
C19: Area | D19: =I35+T35+T47+I47+I59+T59+T71+I71+I83+T83 -> 1200 | G19: Ft2 | I19: Operating Hours per Day | K19: 8 | L19: Hrs/Day
C20: No. of Rooms | G20: ! Changing the number of rooms will reset all lighting data entered. | I20: Operating Days per Week | K20: 7 | L20: Days/Wk | M20: Average Building Lighting Power Density (LPD) | R20: =IF(D19=0,"",(K38+V38+V50+K50+K62+V62+V74+K74+K86+V86)/D19) -> 1.343333333 | S20: W/ft2
C21: Estimated Electric Load: | I21: Estimated Annual Energy Use: | N21: Estimated Annual Energy Cost:
C22: ="Total Building " & $E$9& " Lighting" -> Total Building 7 Lighting | G22: =IF((K38+V38+V50+K50+K62+V62+V74+K74+K86+V86)=0,0,(K38+V38+V50+K50+K62+V62+V74+K74+K86+V86)/1000) -> 1.612 | H22: kW | I22: ="Total Building " & $E$9& " Lighting" -> Total Building 7 Lighting | L22: =IF((K38+V38+V50+K50+K62+V62+V74+K74+K86+V86)=0,IF(K18="",0,0),IF(K18="",0,((K38+V38+V50+K50+K62+V62+V74+K74+K86+V86)/1000)*K18)) -> 4694.144 | M22: kWh/Yr | N22: ="Total Building " & $E$9 & " Lighting" -> Total Building 7 Lighting | R22: =L22*'General Information'!$H$46 -> 475.0471222 | S22: $/Yr
C23: ="Total Building " & $E$9 & " HVAC" -> Total Building 7 HVAC | G23: =N111 -> 2.872299465 | H23: kW | I23: ="Total Building " & $E$9 & " HVAC" -> Total Building 7 HVAC | L23: =O$111 -> 7180.748663 | M23: kWh/Yr | N23: ="Total Building " & $E$9 & " HVAC" -> Total Building 7 HVAC | R23: =R111 -> 726.6913814 | S23: $/Yr
C24: ="Total Building " & $E$9 & " Combined" -> Total Building 7 Combined | G24: =SUM(G22:G23) -> 4.484299465 | H24: kW | I24: ="Total Building " & $E$9 & " Combined" -> Total Building 7 Combined | L24: =SUM(L22,L23) -> 11874.89266 | M24: kWh/Yr | N24: ="Total Building " & $E$9 & " Combined" -> Total Building 7 Combined | R24: =SUM(R22,R23) -> 1201.738504 | S24: $/Yr
C26: LIGHTING
B28: To determine the site’s lighting loads and energy use, select each of the room’s lighting fixture types and quantity (Qty) using the dropdown lists below. Select a light type from the dropdown list for each size and kind of fixture in a room. Then enter the quantity for each type. The tool provides the fixture’s electrical energy load in watts. Do not include task lights (directional lights used to illuminate an area of work) when entering the room's lighting fixtures. If a type of fixture is not available in the dropdown list, use the "Other Type" input field to enter the fixture and its total wattage. The table automatically totals the room's lighting loads, each building's lighting energy use and the site's total lighting energy use per year for use in other areas of the tool. Enter the area of each room and the tool calculates the Lighting Power Density (LPD) in watts per square foot. You can now take an important next step and compare LPD’s from room to room and building to building to determine where excess energy might be in use.
C35: Room 1 Name | D35: Blower Room Floors 1 and 2 | H35: Area | I35: 1200 | J35: Ft2 | N35: Room 2 Name | S35: Area | U35: Ft2
C36: Room 1 Lighting (Main Lighting only - Do not include task lights) | N36: Room 2 Lighting (Main Lighting only - Do not include task lights)
C37: Select up to 6 Light Fixture Types | K37: Total Room Wattage (W) | N37: Select up to 6 Light Fixture Types | V37: Total Room Wattage (W)
C38: Light Type 1 | E38: Two F32T8 4' 32W Fluorescent Lamps, Electronic Ballast | F38: =VLOOKUP(E38,'Linked Cells (hidden)'!$D$57:$E$150,2,FALSE) -> 62 | H38: =VLOOKUP(E38,'Linked Cells (hidden)'!$D$57:$E$150,2,FALSE)& " " & "Watts" -> 62 Watts | I38: 26 | K38: =(IF(F38="Total",0,I38*F38)+IF(F39="Total",0,I39*F39)+IF(F40="Total",0,I40*F40)+IF(F41="Total",0,I41*F41)+IF(F42="Total",0,I42*F42)+IF(F43="Total",0,I43*F43)) -> 1612 | M38: W | N38: Light Type 1 | P38: Select Light Fixture | Q38: =VLOOKUP(P38,'Linked Cells (hidden)'!$D$57:$E$150,2,FALSE) -> Total | S38: =VLOOKUP(P38,'Linked Cells (hidden)'!$D$57:$E$140,2,FALSE)& " " & "Watts" -> Total Watts | V38: =(IF(Q38="Total",0,T38*Q38)+IF(Q39="Total",0,T39*Q39)+IF(Q40="Total",0,T40*Q40)+IF(Q41="Total",0,T41*Q41)+IF(Q42="Total",0,T42*Q42)+IF(Q43="Total",0,T43*Q43)) -> 0 | X38: W
C39: Light Type 2 | E39: Select Light Fixture | F39: =VLOOKUP(E39,'Linked Cells (hidden)'!$D$57:$E$150,2,FALSE) -> Total | H39: =VLOOKUP(E39,'Linked Cells (hidden)'!$D$57:$E$150,2,FALSE)& " " & "Watts" -> Total Watts | N39: Light Type 2 | P39: Select Light Fixture | Q39: =VLOOKUP(P39,'Linked Cells (hidden)'!$D$57:$E$150,2,FALSE) -> Total | S39: =VLOOKUP(P39,'Linked Cells (hidden)'!$D$57:$E$140,2,FALSE)& " " & "Watts" -> Total Watts
C40: Light Type 3 | E40: Select Light Fixture | F40: =VLOOKUP(E40,'Linked Cells (hidden)'!$D$57:$E$150,2,FALSE) -> Total | H40: =VLOOKUP(E40,'Linked Cells (hidden)'!$D$57:$E$150,2,FALSE)& " " & "Watts" -> Total Watts | K40: Room Lighting Power Density (LPD) | N40: Light Type 3 | P40: Select Light Fixture | Q40: =VLOOKUP(P40,'Linked Cells (hidden)'!$D$57:$E$150,2,FALSE) -> Total | S40: =VLOOKUP(P40,'Linked Cells (hidden)'!$D$57:$E$140,2,FALSE)& " " & "Watts" -> Total Watts | V40: Room Lighting Power Density (LPD)
C41: Light Type 4 | E41: Select Light Fixture | F41: =VLOOKUP(E41,'Linked Cells (hidden)'!$D$57:$E$150,2,FALSE) -> Total | H41: =VLOOKUP(E41,'Linked Cells (hidden)'!$D$57:$E$150,2,FALSE)& " " & "Watts" -> Total Watts | K41: =IF(K38=0,"",K38/I35) -> 1.343333333 | L41: W/ft2 | N41: Light Type 4 | P41: Select Light Fixture | Q41: =VLOOKUP(P41,'Linked Cells (hidden)'!$D$57:$E$150,2,FALSE) -> Total | S41: =VLOOKUP(P41,'Linked Cells (hidden)'!$D$57:$E$140,2,FALSE)& " " & "Watts" -> Total Watts | V41: =IF(V38=0,"",V38/T35) ->  | W41: W/ft2
C42: Light Type 5 | E42: Select Light Fixture | F42: =VLOOKUP(E42,'Linked Cells (hidden)'!$D$57:$E$150,2,FALSE) -> Total | H42: =VLOOKUP(E42,'Linked Cells (hidden)'!$D$57:$E$150,2,FALSE)& " " & "Watts" -> Total Watts | N42: Light Type 5 | P42: Select Light Fixture | Q42: =VLOOKUP(P42,'Linked Cells (hidden)'!$D$57:$E$150,2,FALSE) -> Total | S42: =VLOOKUP(P42,'Linked Cells (hidden)'!$D$57:$E$140,2,FALSE)& " " & "Watts" -> Total Watts
C43: Other Type : Name | F43: =IF(D44=0,"Total",D44) -> Total | H43: =F43 & " Watts" -> Total Watts | N43: Other Type : Name | Q43: =IF(O44=0,"Total",O44) -> Total | S43: =Q43 & " Watts" -> Total Watts
C44: : Watts | N44: : Watts
C47: Room 3 Name | H47: Area | J47: Ft2 | N47: Room 4 Name | S47: Area | U47: Ft2
C48: Room 3 Lighting (Main Lighting only - Do not include task lights) | N48: Room 4 Lighting (Main Lighting only - Do not include task lights)
C49: Select up to 6 Light Fixture Types | K49: Total Room Wattage (W) | N49: Select up to 6 Light Fixture Types | V49: Total Room Wattage (W)
C50: Light Type 1 | E50: Select Light Fixture | F50: =VLOOKUP(E50,'Linked Cells (hidden)'!$D$57:$E$150,2,FALSE) -> Total | H50: =VLOOKUP(E50,'Linked Cells (hidden)'!$D$57:$E$150,2,FALSE)& " " & "Watts" -> Total Watts | K50: =(IF(F50="Total",0,I50*F50)+IF(F51="Total",0,I51*F51)+IF(F52="Total",0,I52*F52)+IF(F53="Total",0,I53*F53)+IF(F54="Total",0,I54*F54)+IF(F55="Total",0,I55*F55)) -> 0 | M50: W | N50: Light Type 1 | P50: Select Light Fixture | Q50: =VLOOKUP(P50,'Linked Cells (hidden)'!$D$57:$E$150,2,FALSE) -> Total | S50: =VLOOKUP(P50,'Linked Cells (hidden)'!$D$57:$E$140,2,FALSE)& " " & "Watts" -> Total Watts | V50: =(IF(Q50="Total",0,T50*Q50)+IF(Q51="Total",0,T51*Q51)+IF(Q52="Total",0,T52*Q52)+IF(Q53="Total",0,T53*Q53)+IF(Q54="Total",0,T54*Q54)+IF(Q55="Total",0,T55*Q55)) -> 0 | X50: W
C51: Light Type 2 | E51: Select Light Fixture | F51: =VLOOKUP(E51,'Linked Cells (hidden)'!$D$57:$E$150,2,FALSE) -> Total | H51: =VLOOKUP(E51,'Linked Cells (hidden)'!$D$57:$E$150,2,FALSE)& " " & "Watts" -> Total Watts | N51: Light Type 2 | P51: Select Light Fixture | Q51: =VLOOKUP(P51,'Linked Cells (hidden)'!$D$57:$E$150,2,FALSE) -> Total | S51: =VLOOKUP(P51,'Linked Cells (hidden)'!$D$57:$E$140,2,FALSE)& " " & "Watts" -> Total Watts
C52: Light Type 3 | E52: Select Light Fixture | F52: =VLOOKUP(E52,'Linked Cells (hidden)'!$D$57:$E$150,2,FALSE) -> Total | H52: =VLOOKUP(E52,'Linked Cells (hidden)'!$D$57:$E$150,2,FALSE)& " " & "Watts" -> Total Watts | K52: Room Lighting Power Density (LPD) | N52: Light Type 3 | P52: Select Light Fixture | Q52: =VLOOKUP(P52,'Linked Cells (hidden)'!$D$57:$E$150,2,FALSE) -> Total | S52: =VLOOKUP(P52,'Linked Cells (hidden)'!$D$57:$E$140,2,FALSE)& " " & "Watts" -> Total Watts | V52: Room Lighting Power Density (LPD)
C53: Light Type 4 | E53: Select Light Fixture | F53: =VLOOKUP(E53,'Linked Cells (hidden)'!$D$57:$E$150,2,FALSE) -> Total | H53: =VLOOKUP(E53,'Linked Cells (hidden)'!$D$57:$E$150,2,FALSE)& " " & "Watts" -> Total Watts | K53: =IF(K50=0,"",K50/I47) ->  | L53: W/ft2 | N53: Light Type 4 | P53: Select Light Fixture | Q53: =VLOOKUP(P53,'Linked Cells (hidden)'!$D$57:$E$150,2,FALSE) -> Total | S53: =VLOOKUP(P53,'Linked Cells (hidden)'!$D$57:$E$140,2,FALSE)& " " & "Watts" -> Total Watts | V53: =IF(V50=0,"",V50/T47) ->  | W53: W/ft2
C54: Light Type 5 | E54: Select Light Fixture | F54: =VLOOKUP(E54,'Linked Cells (hidden)'!$D$57:$E$150,2,FALSE) -> Total | H54: =VLOOKUP(E54,'Linked Cells (hidden)'!$D$57:$E$150,2,FALSE)& " " & "Watts" -> Total Watts | N54: Light Type 5 | P54: Select Light Fixture | Q54: =VLOOKUP(P54,'Linked Cells (hidden)'!$D$57:$E$150,2,FALSE) -> Total | S54: =VLOOKUP(P54,'Linked Cells (hidden)'!$D$57:$E$140,2,FALSE)& " " & "Watts" -> Total Watts
C55: Other Type : Name | F55: =IF(D56=0,"Total",D56) -> Total | H55: =F55 & " Watts" -> Total Watts | N55: Other Type : Name | Q55: =IF(O56=0,"Total",O56) -> Total | S55: =Q55 & " Watts" -> Total Watts
C56: : Watts | N56: : Watts
C59: Room 5 Name | H59: Area | J59: Ft2 | N59: Room 6 Name | S59: Area | U59: Ft2
C60: Room 5 Lighting (Main Lighting only - Do not include task lights) | N60: Room 6 Lighting (Main Lighting only - Do not include task lights)
C61: Select up to 6 Light Fixture Types | K61: Total Room Wattage (W) | N61: Select up to 6 Light Fixture Types | V61: Total Room Wattage (W)
C62: Light Type 1 | E62: Select Light Fixture | F62: =VLOOKUP(E62,'Linked Cells (hidden)'!$D$57:$E$150,2,FALSE) -> Total | H62: =VLOOKUP(E62,'Linked Cells (hidden)'!$D$57:$E$150,2,FALSE)& " " & "Watts" -> Total Watts | K62: =(IF(F62="Total",0,I62*F62)+IF(F63="Total",0,I63*F63)+IF(F64="Total",0,I64*F64)+IF(F65="Total",0,I65*F65)+IF(F66="Total",0,I66*F66)+IF(F67="Total",0,I67*F67)) -> 0 | M62: W | N62: Light Type 1 | P62: Select Light Fixture | Q62: =VLOOKUP(P62,'Linked Cells (hidden)'!$D$57:$E$150,2,FALSE) -> Total | S62: =VLOOKUP(P62,'Linked Cells (hidden)'!$D$57:$E$140,2,FALSE)& " " & "Watts" -> Total Watts | V62: =(IF(Q62="Total",0,T62*Q62)+IF(Q63="Total",0,T63*Q63)+IF(Q64="Total",0,T64*Q64)+IF(Q65="Total",0,T65*Q65)+IF(Q66="Total",0,T66*Q66)+IF(Q67="Total",0,T67*Q67)) -> 0 | X62: W
C63: Light Type 2 | E63: Select Light Fixture | F63: =VLOOKUP(E63,'Linked Cells (hidden)'!$D$57:$E$150,2,FALSE) -> Total | H63: =VLOOKUP(E63,'Linked Cells (hidden)'!$D$57:$E$150,2,FALSE)& " " & "Watts" -> Total Watts | N63: Light Type 2 | P63: Select Light Fixture | Q63: =VLOOKUP(P63,'Linked Cells (hidden)'!$D$57:$E$150,2,FALSE) -> Total | S63: =VLOOKUP(P63,'Linked Cells (hidden)'!$D$57:$E$140,2,FALSE)& " " & "Watts" -> Total Watts
C64: Light Type 3 | E64: Select Light Fixture | F64: =VLOOKUP(E64,'Linked Cells (hidden)'!$D$57:$E$150,2,FALSE) -> Total | H64: =VLOOKUP(E64,'Linked Cells (hidden)'!$D$57:$E$150,2,FALSE)& " " & "Watts" -> Total Watts | K64: Room Lighting Power Density (LPD) | N64: Light Type 3 | P64: Select Light Fixture | Q64: =VLOOKUP(P64,'Linked Cells (hidden)'!$D$57:$E$150,2,FALSE) -> Total | S64: =VLOOKUP(P64,'Linked Cells (hidden)'!$D$57:$E$140,2,FALSE)& " " & "Watts" -> Total Watts | V64: Room Lighting Power Density (LPD)
C65: Light Type 4 | E65: Select Light Fixture | F65: =VLOOKUP(E65,'Linked Cells (hidden)'!$D$57:$E$150,2,FALSE) -> Total | H65: =VLOOKUP(E65,'Linked Cells (hidden)'!$D$57:$E$150,2,FALSE)& " " & "Watts" -> Total Watts | K65: =IF(K62=0,"",K62/I59) ->  | L65: W/ft2 | N65: Light Type 4 | P65: Select Light Fixture | Q65: =VLOOKUP(P65,'Linked Cells (hidden)'!$D$57:$E$150,2,FALSE) -> Total | S65: =VLOOKUP(P65,'Linked Cells (hidden)'!$D$57:$E$140,2,FALSE)& " " & "Watts" -> Total Watts | V65: =IF(V62=0,"",V62/T59) ->  | W65: W/ft2
C66: Light Type 5 | E66: Select Light Fixture | F66: =VLOOKUP(E66,'Linked Cells (hidden)'!$D$57:$E$150,2,FALSE) -> Total | H66: =VLOOKUP(E66,'Linked Cells (hidden)'!$D$57:$E$150,2,FALSE)& " " & "Watts" -> Total Watts | N66: Light Type 5 | P66: Select Light Fixture | Q66: =VLOOKUP(P66,'Linked Cells (hidden)'!$D$57:$E$150,2,FALSE) -> Total | S66: =VLOOKUP(P66,'Linked Cells (hidden)'!$D$57:$E$140,2,FALSE)& " " & "Watts" -> Total Watts
C67: Other Type : Name | F67: =IF(D68=0,"Total",D68) -> Total | H67: =F67 & " Watts" -> Total Watts | N67: Other Type : Name | Q67: =IF(O68=0,"Total",O68) -> Total | S67: =Q67 & " Watts" -> Total Watts
C68: : Watts | N68: : Watts
C71: Room 7 Name | H71: Area | J71: Ft2 | N71: Room 8 Name | S71: Area | U71: Ft2
C72: Room 7 Lighting (Main Lighting only - Do not include task lights) | N72: Room 8 Lighting (Main Lighting only - Do not include task lights)
C73: Select up to 6 Light Fixture Types | K73: Total Room Wattage (W) | N73: Select up to 6 Light Fixture Types | V73: Total Room Wattage (W)
C74: Light Type 1 | E74: Select Light Fixture | H74: =VLOOKUP(E74,'Linked Cells (hidden)'!$D$57:$E$150,2,FALSE)& " " & "Watts" -> Total Watts | K74: =(IF(F74="Total",0,I74*F74)+IF(F75="Total",0,I75*F75)+IF(F76="Total",0,I76*F76)+IF(F77="Total",0,I77*F77)+IF(F78="Total",0,I78*F78)+IF(F79="Total",0,I79*F79)) -> 0 | M74: W | N74: Light Type 1 | P74: Select Light Fixture | S74: =VLOOKUP(P74,'Linked Cells (hidden)'!$D$57:$E$140,2,FALSE)& " " & "Watts" -> Total Watts | V74: =(IF(Q74="Total",0,T74*Q74)+IF(Q75="Total",0,T75*Q75)+IF(Q76="Total",0,T76*Q76)+IF(Q77="Total",0,T77*Q77)+IF(Q78="Total",0,T78*Q78)+IF(Q79="Total",0,T79*Q79)) -> 0 | X74: W
C75: Light Type 2 | E75: Select Light Fixture | F75: =VLOOKUP(E75,'Linked Cells (hidden)'!$D$57:$E$150,2,FALSE) -> Total | H75: =VLOOKUP(E75,'Linked Cells (hidden)'!$D$57:$E$150,2,FALSE)& " " & "Watts" -> Total Watts | N75: Light Type 2 | P75: Select Light Fixture | Q75: =VLOOKUP(P75,'Linked Cells (hidden)'!$D$57:$E$150,2,FALSE) -> Total | S75: =VLOOKUP(P75,'Linked Cells (hidden)'!$D$57:$E$140,2,FALSE)& " " & "Watts" -> Total Watts
C76: Light Type 3 | E76: Select Light Fixture | F76: =VLOOKUP(E76,'Linked Cells (hidden)'!$D$57:$E$150,2,FALSE) -> Total | H76: =VLOOKUP(E76,'Linked Cells (hidden)'!$D$57:$E$150,2,FALSE)& " " & "Watts" -> Total Watts | K76: Room Lighting Power Density (LPD) | N76: Light Type 3 | P76: Select Light Fixture | Q76: =VLOOKUP(P76,'Linked Cells (hidden)'!$D$57:$E$150,2,FALSE) -> Total | S76: =VLOOKUP(P76,'Linked Cells (hidden)'!$D$57:$E$140,2,FALSE)& " " & "Watts" -> Total Watts | V76: Room Lighting Power Density (LPD)
C77: Light Type 4 | E77: Select Light Fixture | F77: =VLOOKUP(E77,'Linked Cells (hidden)'!$D$57:$E$150,2,FALSE) -> Total | H77: =VLOOKUP(E77,'Linked Cells (hidden)'!$D$57:$E$150,2,FALSE)& " " & "Watts" -> Total Watts | K77: =IF(K74=0,"",K74/I71) ->  | L77: W/ft2 | N77: Light Type 4 | P77: Select Light Fixture | Q77: =VLOOKUP(P77,'Linked Cells (hidden)'!$D$57:$E$150,2,FALSE) -> Total | S77: =VLOOKUP(P77,'Linked Cells (hidden)'!$D$57:$E$140,2,FALSE)& " " & "Watts" -> Total Watts | V77: =IF(V74=0,"",V74/T71) ->  | W77: W/ft2
C78: Light Type 5 | E78: Select Light Fixture | F78: =VLOOKUP(E78,'Linked Cells (hidden)'!$D$57:$E$150,2,FALSE) -> Total | H78: =VLOOKUP(E78,'Linked Cells (hidden)'!$D$57:$E$150,2,FALSE)& " " & "Watts" -> Total Watts | N78: Light Type 5 | P78: Select Light Fixture | Q78: =VLOOKUP(P78,'Linked Cells (hidden)'!$D$57:$E$150,2,FALSE) -> Total | S78: =VLOOKUP(P78,'Linked Cells (hidden)'!$D$57:$E$140,2,FALSE)& " " & "Watts" -> Total Watts
C79: Other Type : Name | F79: =IF(D80=0,"Total",D80) -> Total | H79: =F79 & " Watts" -> Total Watts | N79: Other Type : Name | Q79: =IF(O80=0,"Total",O80) -> Total | S79: =Q79 & " Watts" -> Total Watts
C80: : Watts | N80: : Watts
C83: Room 9 Name | H83: Area | J83: Ft2 | N83: Room 10 Name | S83: Area | U83: Ft2
C84: Room 9 Lighting (Main Lighting only - Do not include task lights) | N84: Room 10 Lighting (Main Lighting only - Do not include task lights)
C85: Select up to 6 Light Fixture Types | K85: Total Room Wattage (W) | N85: Select up to 6 Light Fixture Types | V85: Total Room Wattage (W)
C86: Light Type 1 | E86: Select Light Fixture | F86: =VLOOKUP(E86,'Linked Cells (hidden)'!$D$57:$E$150,2,FALSE) -> Total | H86: =VLOOKUP(E86,'Linked Cells (hidden)'!$D$57:$E$150,2,FALSE)& " " & "Watts" -> Total Watts | K86: =(IF(F86="Total",0,I86*F86)+IF(F87="Total",0,I87*F87)+IF(F88="Total",0,I88*F88)+IF(F89="Total",0,I89*F89)+IF(F90="Total",0,I90*F90)+IF(F91="Total",0,I91*F91)) -> 0 | M86: W | N86: Light Type 1 | P86: Select Light Fixture | Q86: =VLOOKUP(P86,'Linked Cells (hidden)'!$D$57:$E$150,2,FALSE) -> Total | S86: =VLOOKUP(P86,'Linked Cells (hidden)'!$D$57:$E$140,2,FALSE)& " " & "Watts" -> Total Watts | V86: =(IF(Q86="Total",0,T86*Q86)+IF(Q87="Total",0,T87*Q87)+IF(Q88="Total",0,T88*Q88)+IF(Q89="Total",0,T89*Q89)+IF(Q90="Total",0,T90*Q90)+IF(Q91="Total",0,T91*Q91)) -> 0 | X86: W
C87: Light Type 2 | E87: Select Light Fixture | H87: =VLOOKUP(E87,'Linked Cells (hidden)'!$D$57:$E$150,2,FALSE)& " " & "Watts" -> Total Watts | N87: Light Type 2 | P87: Select Light Fixture | S87: =VLOOKUP(P87,'Linked Cells (hidden)'!$D$57:$E$140,2,FALSE)& " " & "Watts" -> Total Watts
C88: Light Type 3 | E88: Select Light Fixture | F88: =VLOOKUP(E88,'Linked Cells (hidden)'!$D$57:$E$150,2,FALSE) -> Total | H88: =VLOOKUP(E88,'Linked Cells (hidden)'!$D$57:$E$150,2,FALSE)& " " & "Watts" -> Total Watts | K88: Room Lighting Power Density (LPD) | N88: Light Type 3 | P88: Select Light Fixture | Q88: =VLOOKUP(P88,'Linked Cells (hidden)'!$D$57:$E$150,2,FALSE) -> Total | S88: =VLOOKUP(P88,'Linked Cells (hidden)'!$D$57:$E$140,2,FALSE)& " " & "Watts" -> Total Watts | V88: Room Lighting Power Density (LPD)
C89: Light Type 4 | E89: Select Light Fixture | F89: =VLOOKUP(E89,'Linked Cells (hidden)'!$D$57:$E$150,2,FALSE) -> Total | H89: =VLOOKUP(E89,'Linked Cells (hidden)'!$D$57:$E$150,2,FALSE)& " " & "Watts" -> Total Watts | K89: =IF(K86=0,"",K86/I83) ->  | L89: W/ft2 | N89: Light Type 4 | P89: Select Light Fixture | Q89: =VLOOKUP(P89,'Linked Cells (hidden)'!$D$57:$E$150,2,FALSE) -> Total | S89: =VLOOKUP(P89,'Linked Cells (hidden)'!$D$57:$E$140,2,FALSE)& " " & "Watts" -> Total Watts | V89: =IF(V86=0,"",V86/T83) ->  | W89: W/ft2
C90: Light Type 5 | E90: Select Light Fixture | F90: =VLOOKUP(E90,'Linked Cells (hidden)'!$D$57:$E$150,2,FALSE) -> Total | H90: =VLOOKUP(E90,'Linked Cells (hidden)'!$D$57:$E$150,2,FALSE)& " " & "Watts" -> Total Watts | N90: Light Type 5 | P90: Select Light Fixture | Q90: =VLOOKUP(P90,'Linked Cells (hidden)'!$D$57:$E$150,2,FALSE) -> Total | S90: =VLOOKUP(P90,'Linked Cells (hidden)'!$D$57:$E$140,2,FALSE)& " " & "Watts" -> Total Watts
C91: Other Type : Name | F91: =IF(D92=0,"Total",D92) -> Total | H91: =F91 & " Watts" -> Total Watts | N91: Other Type : Name | Q91: =IF(O92=0,"Total",O92) -> Total | S91: =Q91 & " Watts" -> Total Watts
C92: : Watts | N92: : Watts
B96: HVAC/Non-Process Energy
B98: To determine the site's Non-Process Heating, Ventilating, and Air Conditioning (HVAC) loads and energy use, describe each building's HVAC electrical using units by entering them below. If multiple of a unit exists, either add them into the table as separate units or enter Motor Size as the motor's size (in hp) multiplied by the quantity. Non-Process HVAC is meant to include all equipment not tied to specific process operations such as general ventilation heaters, office air conditioners, restroom exhaust fans, etc. Do not provide process-related ventilation equipment such as odor control fans here. You can enter process equipment information on the "WTP or WWTP Energy Usage" tab. For each Non-Process HVAC unit select the equipment type from the dropdown list and enter an “Equipment Description.” Collect and enter each unit’s motor size, efficiency and full load amperage (FLA) ratings. This information can be gathered from the equipment's nameplate or specification datasheet. If the site has authorized personnel capable of taking electrical measurements, enter the motors average operating current. Otherwise leave the "Average Motor Operating Current" blank and the tool will use an 80% Load Factor in its calculations. Once the equipment's typical operating hours are entered, the tool calculates the estimated annual energy use and operating cost for the unit. If conditions at the plant change, you can adjust these values. A summary of the HVAC and lighting information entered on the building data tabs is displayed on the top on the WTP and WWTP Energy Usage tabs. For those values to be included in the total energy use and to be displayed in the pie charts and summary report, you must enter the values in the Equipment Electrical Energy Inventory table (on the WTP or WWTP Energy Usage tab) as Non Process HVAC. See the instructions on that tab on how to enter this information.
C103: System Type | D103: Equipment Type | G103: Equipment Description | H103: Motor Size (hp) | I103: Motor Efficiency | J103: Motor Full Load Amperage (FLA) | K103: Average Motor Operating Current (Amps) | L103: Motor Operating Hours (Hours/Year) | M103: Average Load Factor (%) | N103: Average HVAC Electric Load (kW) | O103: Estimated Annual Energy Use (kWh/yr) | R103: Estimated Annual Operating Costs ($/Year) | S103: Estimated Percent of Site Electric Use & Cost (%)
C104: Non Process HVAC | D104: Fan | G104: Exhaust Fan | H104: 2 | I104: 0.85 | J104: 2.2 | K104: 1.8 | L104: 2500 | M104: =IF(J104=0,0,IF(K104=0,0.75,K104/J104)) -> 0.8181818182 | N104: =IF(I104=0,0,H104*0.746*M104/I104) -> 1.436149733 | O104: =N104*L104 -> 3590.374332 | R104: =O104*'General Information'!$H$46 -> 363.3456907 | S104: =IF('General Information'!$H$44=0,"",O104/'General Information'!$H$44) -> 0.001597141607
C105: Non Process HVAC | D105: Fan | G105: Exhaust Fan | H105: 2 | I105: 0.85 | J105: 2.2 | K105: 1.8 | L105: 2500 | M105: 0.8181818182 | N105: 1.436149733 | O105: 3590.374332 | R105: =O105*'General Information'!$H$46 -> 363.3456907 | S105: =IF('General Information'!$H$44=0,"",O105/'General Information'!$H$44) -> 0.001597141607
C106: Non Process HVAC | D106: Select Equipment | M106: 0 | N106: 0 | O106: 0 | R106: =O106*'General Information'!$H$46 -> 0 | S106: =IF('General Information'!$H$44=0,"",O106/'General Information'!$H$44) -> 0
C107: Non Process HVAC | D107: Select Equipment | M107: 0 | N107: 0 | O107: 0 | R107: =O107*'General Information'!$H$46 -> 0 | S107: =IF('General Information'!$H$44=0,"",O107/'General Information'!$H$44) -> 0
C108: Non Process HVAC | D108: Select Equipment | M108: 0 | N108: 0 | O108: 0 | R108: =O108*'General Information'!$H$46 -> 0 | S108: =IF('General Information'!$H$44=0,"",O108/'General Information'!$H$44) -> 0
C109: Non Process HVAC | D109: Select Equipment | M109: 0 | N109: 0 | O109: 0 | R109: =O109*'General Information'!$H$46 -> 0 | S109: =IF('General Information'!$H$44=0,"",O109/'General Information'!$H$44) -> 0
J111: Total Building HVAC | N111: =SUM(N101:N109) -> 2.872299465 | O111: =SUM(O101:O109) -> 7180.748663 | R111: =SUM(R104:R109) -> 726.6913814 | S111: =SUM(S104:S109) -> 0.003194283213

Sheet Building 8 Data
A1: ="EPA Energy Use Assessment Tool for " & workbookType -> EPA Energy Use Assessment Tool for Drinking Water Systems
A2: Site Structural Buildings - Major Non-Process Energy Users
B4: In the Building Data tabs, the tool totals each building’s Lighting and HVAC information. You should use the totals for entry on the WTP or WWTP Energy Use tabs. For instructions on how to enter that information, see the WTP or WWTP Energy Usage tabs. If you have already identified the site's Lighting and HVAC loads or would just like to estimate them without detailing this information here, proceed to the WTP or WWTP Energy Usage tab. If you skip this tab, you can come back later to fill in this detail.
B6: The following information is entered once for the entire plant. To change the Total Number of Buildings on-site, go to the "Building 1 Data" tab and click the "Set # of Buildings" button. This lets you enter information for the specified number of buildings. After entering data in a building tab, click the "Save and Continue" button at the top. That allows you to enter data for the next building or if building data entry is complete, to return to the General Information tab. You can also click the other Building Data tabs at the bottom.
B9: Total Plant Building Area | D9: ='Building 1 Data'!D9 -> 9000 | E9: 8 | G9: Ft2 | H9: Total Plant Building Electric Load | K9: ='Building 1 Data'!K9 -> 57.14935709 | L9: kW | M9: Total Plant Building Electric Use | O9: ='Building 1 Data'!O9 -> 141729.2706 | R9: kWh/Yr
B11: Does the site have buildings? | D11: =hasBldgs -> Yes | H11: Total Number of Buildings On-site: | K11: =[0]!totalbldgs -> 10
B13: Enter the following information for each building at the plant. To begin, select the number of rooms in the "No. of Rooms" dropdown list below and click the "Set # of rooms" button. It is important to know and set the number of rooms upfront, before any lighting data is entered. If the number of rooms is later changed, all the data that had been entered will be lost.
C16: ="BUILDING " & E9 -> BUILDING 8
C18: Name | D18: Equipment Garage | I18: Operating Hours per Year | K18: =IF(K19="","",K19*K20*52) -> 2080 | L18: Hrs/Yr | M18: Approximate Building Age (If known) | S18: Yrs
C19: Area | D19: =I35+T35+T47+I47+I59+T59+T71+I71+I83+T83 -> 800 | G19: Ft2 | I19: Operating Hours per Day | K19: 8 | L19: Hrs/Day
C20: No. of Rooms | G20: ! Changing the number of rooms will reset all lighting data entered. | I20: Operating Days per Week | K20: 5 | L20: Days/Wk | M20: Average Building Lighting Power Density (LPD) | R20: =IF(D19=0,"",(K38+V38+V50+K50+K62+V62+V74+K74+K86+V86)/D19) -> 3.72 | S20: W/ft2
C21: Estimated Electric Load: | I21: Estimated Annual Energy Use: | N21: Estimated Annual Energy Cost:
C22: ="Total Building " & $E$9& " Lighting" -> Total Building 8 Lighting | G22: =IF((K38+V38+V50+K50+K62+V62+V74+K74+K86+V86)=0,0,(K38+V38+V50+K50+K62+V62+V74+K74+K86+V86)/1000) -> 2.976 | H22: kW | I22: ="Total Building " & $E$9& " Lighting" -> Total Building 8 Lighting | L22: =IF((K38+V38+V50+K50+K62+V62+V74+K74+K86+V86)=0,IF(K18="",0,0),IF(K18="",0,((K38+V38+V50+K50+K62+V62+V74+K74+K86+V86)/1000)*K18)) -> 6190.08 | M22: kWh/Yr | N22: ="Total Building " & $E$9 & " Lighting" -> Total Building 8 Lighting | R22: =L22*'General Information'!$H$46 -> 626.4357656 | S22: $/Yr
C23: ="Total Building " & $E$9 & " HVAC" -> Total Building 8 HVAC | G23: =N111 -> 2.846486316 | H23: kW | I23: ="Total Building " & $E$9 & " HVAC" -> Total Building 8 HVAC | L23: =O$111 -> 6031.124882 | M23: kWh/Yr | N23: ="Total Building " & $E$9 & " HVAC" -> Total Building 8 HVAC | R23: =R111 -> 610.3495161 | S23: $/Yr
C24: ="Total Building " & $E$9 & " Combined" -> Total Building 8 Combined | G24: =SUM(G22:G23) -> 5.822486316 | H24: kW | I24: ="Total Building " & $E$9 & " Combined" -> Total Building 8 Combined | L24: =SUM(L22,L23) -> 12221.20488 | M24: kWh/Yr | N24: ="Total Building " & $E$9 & " Combined" -> Total Building 8 Combined | R24: =SUM(R22,R23) -> 1236.785282 | S24: $/Yr
C26: LIGHTING
B28: To determine the site’s lighting loads and energy use, select each of the room’s lighting fixture types and quantity (Qty) using the dropdown lists below. Select a light type from the dropdown list for each size and kind of fixture in a room. Then enter the quantity for each type. The tool provides the fixture’s electrical energy load in watts. Do not include task lights (directional lights used to illuminate an area of work) when entering the room's lighting fixtures. If a type of fixture is not available in the dropdown list, use the "Other Type" input field to enter the fixture and its total wattage. The table automatically totals the room's lighting loads, each building's lighting energy use and the site's total lighting energy use per year for use in other areas of the tool. Enter the area of each room and the tool calculates the Lighting Power Density (LPD) in watts per square foot. You can now take an important next step and compare LPD’s from room to room and building to building to determine where excess energy might be in use.
C35: Room 1 Name | D35: Main Floor | H35: Area | I35: 800 | J35: Ft2 | N35: Room 2 Name | S35: Area | U35: Ft2
C36: Room 1 Lighting (Main Lighting only - Do not include task lights) | N36: Room 2 Lighting (Main Lighting only - Do not include task lights)
C37: Select up to 6 Light Fixture Types | K37: Total Room Wattage (W) | N37: Select up to 6 Light Fixture Types | V37: Total Room Wattage (W)
C38: Light Type 1 | E38: Two F96T12 8' 75W Slim Fluorescent Lamps, ES Magnetic Ballast | F38: =VLOOKUP(E38,'Linked Cells (hidden)'!$D$57:$E$150,2,FALSE) -> 142 | H38: =VLOOKUP(E38,'Linked Cells (hidden)'!$D$57:$E$150,2,FALSE)& " " & "Watts" -> 142 Watts | I38: 8 | K38: =(IF(F38="Total",0,I38*F38)+IF(F39="Total",0,I39*F39)+IF(F40="Total",0,I40*F40)+IF(F41="Total",0,I41*F41)+IF(F42="Total",0,I42*F42)+IF(F43="Total",0,I43*F43)) -> 2976 | M38: W | N38: Light Type 1 | P38: Select Light Fixture | Q38: =VLOOKUP(P38,'Linked Cells (hidden)'!$D$57:$E$150,2,FALSE) -> Total | S38: =VLOOKUP(P38,'Linked Cells (hidden)'!$D$57:$E$140,2,FALSE)& " " & "Watts" -> Total Watts | V38: =(IF(Q38="Total",0,T38*Q38)+IF(Q39="Total",0,T39*Q39)+IF(Q40="Total",0,T40*Q40)+IF(Q41="Total",0,T41*Q41)+IF(Q42="Total",0,T42*Q42)+IF(Q43="Total",0,T43*Q43)) -> 0 | X38: W
C39: Light Type 2 | E39: One 400W Metal Halide Lamp, Electronic Ballast | F39: =VLOOKUP(E39,'Linked Cells (hidden)'!$D$57:$E$150,2,FALSE) -> 460 | H39: =VLOOKUP(E39,'Linked Cells (hidden)'!$D$57:$E$150,2,FALSE)& " " & "Watts" -> 460 Watts | I39: 4 | N39: Light Type 2 | P39: Select Light Fixture | Q39: =VLOOKUP(P39,'Linked Cells (hidden)'!$D$57:$E$150,2,FALSE) -> Total | S39: =VLOOKUP(P39,'Linked Cells (hidden)'!$D$57:$E$140,2,FALSE)& " " & "Watts" -> Total Watts
C40: Light Type 3 | E40: Select Light Fixture | F40: =VLOOKUP(E40,'Linked Cells (hidden)'!$D$57:$E$150,2,FALSE) -> Total | H40: =VLOOKUP(E40,'Linked Cells (hidden)'!$D$57:$E$150,2,FALSE)& " " & "Watts" -> Total Watts | K40: Room Lighting Power Density (LPD) | N40: Light Type 3 | P40: Select Light Fixture | Q40: =VLOOKUP(P40,'Linked Cells (hidden)'!$D$57:$E$150,2,FALSE) -> Total | S40: =VLOOKUP(P40,'Linked Cells (hidden)'!$D$57:$E$140,2,FALSE)& " " & "Watts" -> Total Watts | V40: Room Lighting Power Density (LPD)
C41: Light Type 4 | E41: Select Light Fixture | F41: =VLOOKUP(E41,'Linked Cells (hidden)'!$D$57:$E$150,2,FALSE) -> Total | H41: =VLOOKUP(E41,'Linked Cells (hidden)'!$D$57:$E$150,2,FALSE)& " " & "Watts" -> Total Watts | K41: =IF(K38=0,"",K38/I35) -> 3.72 | L41: W/ft2 | N41: Light Type 4 | P41: Select Light Fixture | Q41: =VLOOKUP(P41,'Linked Cells (hidden)'!$D$57:$E$150,2,FALSE) -> Total | S41: =VLOOKUP(P41,'Linked Cells (hidden)'!$D$57:$E$140,2,FALSE)& " " & "Watts" -> Total Watts | V41: =IF(V38=0,"",V38/T35) ->  | W41: W/ft2
C42: Light Type 5 | E42: Select Light Fixture | F42: =VLOOKUP(E42,'Linked Cells (hidden)'!$D$57:$E$150,2,FALSE) -> Total | H42: =VLOOKUP(E42,'Linked Cells (hidden)'!$D$57:$E$150,2,FALSE)& " " & "Watts" -> Total Watts | N42: Light Type 5 | P42: Select Light Fixture | Q42: =VLOOKUP(P42,'Linked Cells (hidden)'!$D$57:$E$150,2,FALSE) -> Total | S42: =VLOOKUP(P42,'Linked Cells (hidden)'!$D$57:$E$140,2,FALSE)& " " & "Watts" -> Total Watts
C43: Other Type : Name | F43: =IF(D44=0,"Total",D44) -> Total | H43: =F43 & " Watts" -> Total Watts | N43: Other Type : Name | Q43: =IF(O44=0,"Total",O44) -> Total | S43: =Q43 & " Watts" -> Total Watts
C44: : Watts | N44: : Watts
C47: Room 3 Name | H47: Area | J47: Ft2 | N47: Room 4 Name | S47: Area | U47: Ft2
C48: Room 3 Lighting (Main Lighting only - Do not include task lights) | N48: Room 4 Lighting (Main Lighting only - Do not include task lights)
C49: Select up to 6 Light Fixture Types | K49: Total Room Wattage (W) | N49: Select up to 6 Light Fixture Types | V49: Total Room Wattage (W)
C50: Light Type 1 | E50: Select Light Fixture | F50: =VLOOKUP(E50,'Linked Cells (hidden)'!$D$57:$E$150,2,FALSE) -> Total | H50: =VLOOKUP(E50,'Linked Cells (hidden)'!$D$57:$E$150,2,FALSE)& " " & "Watts" -> Total Watts | K50: =(IF(F50="Total",0,I50*F50)+IF(F51="Total",0,I51*F51)+IF(F52="Total",0,I52*F52)+IF(F53="Total",0,I53*F53)+IF(F54="Total",0,I54*F54)+IF(F55="Total",0,I55*F55)) -> 0 | M50: W | N50: Light Type 1 | P50: Select Light Fixture | Q50: =VLOOKUP(P50,'Linked Cells (hidden)'!$D$57:$E$150,2,FALSE) -> Total | S50: =VLOOKUP(P50,'Linked Cells (hidden)'!$D$57:$E$140,2,FALSE)& " " & "Watts" -> Total Watts | V50: =(IF(Q50="Total",0,T50*Q50)+IF(Q51="Total",0,T51*Q51)+IF(Q52="Total",0,T52*Q52)+IF(Q53="Total",0,T53*Q53)+IF(Q54="Total",0,T54*Q54)+IF(Q55="Total",0,T55*Q55)) -> 0 | X50: W
C51: Light Type 2 | E51: Select Light Fixture | F51: =VLOOKUP(E51,'Linked Cells (hidden)'!$D$57:$E$150,2,FALSE) -> Total | H51: =VLOOKUP(E51,'Linked Cells (hidden)'!$D$57:$E$150,2,FALSE)& " " & "Watts" -> Total Watts | N51: Light Type 2 | P51: Select Light Fixture | Q51: =VLOOKUP(P51,'Linked Cells (hidden)'!$D$57:$E$150,2,FALSE) -> Total | S51: =VLOOKUP(P51,'Linked Cells (hidden)'!$D$57:$E$140,2,FALSE)& " " & "Watts" -> Total Watts
C52: Light Type 3 | E52: Select Light Fixture | F52: =VLOOKUP(E52,'Linked Cells (hidden)'!$D$57:$E$150,2,FALSE) -> Total | H52: =VLOOKUP(E52,'Linked Cells (hidden)'!$D$57:$E$150,2,FALSE)& " " & "Watts" -> Total Watts | K52: Room Lighting Power Density (LPD) | N52: Light Type 3 | P52: Select Light Fixture | Q52: =VLOOKUP(P52,'Linked Cells (hidden)'!$D$57:$E$150,2,FALSE) -> Total | S52: =VLOOKUP(P52,'Linked Cells (hidden)'!$D$57:$E$140,2,FALSE)& " " & "Watts" -> Total Watts | V52: Room Lighting Power Density (LPD)
C53: Light Type 4 | E53: Select Light Fixture | F53: =VLOOKUP(E53,'Linked Cells (hidden)'!$D$57:$E$150,2,FALSE) -> Total | H53: =VLOOKUP(E53,'Linked Cells (hidden)'!$D$57:$E$150,2,FALSE)& " " & "Watts" -> Total Watts | K53: =IF(K50=0,"",K50/I47) ->  | L53: W/ft2 | N53: Light Type 4 | P53: Select Light Fixture | Q53: =VLOOKUP(P53,'Linked Cells (hidden)'!$D$57:$E$150,2,FALSE) -> Total | S53: =VLOOKUP(P53,'Linked Cells (hidden)'!$D$57:$E$140,2,FALSE)& " " & "Watts" -> Total Watts | V53: =IF(V50=0,"",V50/T47) ->  | W53: W/ft2
C54: Light Type 5 | E54: Select Light Fixture | F54: =VLOOKUP(E54,'Linked Cells (hidden)'!$D$57:$E$150,2,FALSE) -> Total | H54: =VLOOKUP(E54,'Linked Cells (hidden)'!$D$57:$E$150,2,FALSE)& " " & "Watts" -> Total Watts | N54: Light Type 5 | P54: Select Light Fixture | Q54: =VLOOKUP(P54,'Linked Cells (hidden)'!$D$57:$E$150,2,FALSE) -> Total | S54: =VLOOKUP(P54,'Linked Cells (hidden)'!$D$57:$E$140,2,FALSE)& " " & "Watts" -> Total Watts
C55: Other Type : Name | F55: =IF(D56=0,"Total",D56) -> Total | H55: =F55 & " Watts" -> Total Watts | N55: Other Type : Name | Q55: =IF(O56=0,"Total",O56) -> Total | S55: =Q55 & " Watts" -> Total Watts
C56: : Watts | N56: : Watts
C59: Room 5 Name | H59: Area | J59: Ft2 | N59: Room 6 Name | S59: Area | U59: Ft2
C60: Room 5 Lighting (Main Lighting only - Do not include task lights) | N60: Room 6 Lighting (Main Lighting only - Do not include task lights)
C61: Select up to 6 Light Fixture Types | K61: Total Room Wattage (W) | N61: Select up to 6 Light Fixture Types | V61: Total Room Wattage (W)
C62: Light Type 1 | E62: Select Light Fixture | F62: =VLOOKUP(E62,'Linked Cells (hidden)'!$D$57:$E$150,2,FALSE) -> Total | H62: =VLOOKUP(E62,'Linked Cells (hidden)'!$D$57:$E$150,2,FALSE)& " " & "Watts" -> Total Watts | K62: =(IF(F62="Total",0,I62*F62)+IF(F63="Total",0,I63*F63)+IF(F64="Total",0,I64*F64)+IF(F65="Total",0,I65*F65)+IF(F66="Total",0,I66*F66)+IF(F67="Total",0,I67*F67)) -> 0 | M62: W | N62: Light Type 1 | P62: Select Light Fixture | Q62: =VLOOKUP(P62,'Linked Cells (hidden)'!$D$57:$E$150,2,FALSE) -> Total | S62: =VLOOKUP(P62,'Linked Cells (hidden)'!$D$57:$E$140,2,FALSE)& " " & "Watts" -> Total Watts | V62: =(IF(Q62="Total",0,T62*Q62)+IF(Q63="Total",0,T63*Q63)+IF(Q64="Total",0,T64*Q64)+IF(Q65="Total",0,T65*Q65)+IF(Q66="Total",0,T66*Q66)+IF(Q67="Total",0,T67*Q67)) -> 0 | X62: W
C63: Light Type 2 | E63: Select Light Fixture | F63: =VLOOKUP(E63,'Linked Cells (hidden)'!$D$57:$E$150,2,FALSE) -> Total | H63: =VLOOKUP(E63,'Linked Cells (hidden)'!$D$57:$E$150,2,FALSE)& " " & "Watts" -> Total Watts | N63: Light Type 2 | P63: Select Light Fixture | Q63: =VLOOKUP(P63,'Linked Cells (hidden)'!$D$57:$E$150,2,FALSE) -> Total | S63: =VLOOKUP(P63,'Linked Cells (hidden)'!$D$57:$E$140,2,FALSE)& " " & "Watts" -> Total Watts
C64: Light Type 3 | E64: Select Light Fixture | F64: =VLOOKUP(E64,'Linked Cells (hidden)'!$D$57:$E$150,2,FALSE) -> Total | H64: =VLOOKUP(E64,'Linked Cells (hidden)'!$D$57:$E$150,2,FALSE)& " " & "Watts" -> Total Watts | K64: Room Lighting Power Density (LPD) | N64: Light Type 3 | P64: Select Light Fixture | Q64: =VLOOKUP(P64,'Linked Cells (hidden)'!$D$57:$E$150,2,FALSE) -> Total | S64: =VLOOKUP(P64,'Linked Cells (hidden)'!$D$57:$E$140,2,FALSE)& " " & "Watts" -> Total Watts | V64: Room Lighting Power Density (LPD)
C65: Light Type 4 | E65: Select Light Fixture | F65: =VLOOKUP(E65,'Linked Cells (hidden)'!$D$57:$E$150,2,FALSE) -> Total | H65: =VLOOKUP(E65,'Linked Cells (hidden)'!$D$57:$E$150,2,FALSE)& " " & "Watts" -> Total Watts | K65: =IF(K62=0,"",K62/I59) ->  | L65: W/ft2 | N65: Light Type 4 | P65: Select Light Fixture | Q65: =VLOOKUP(P65,'Linked Cells (hidden)'!$D$57:$E$150,2,FALSE) -> Total | S65: =VLOOKUP(P65,'Linked Cells (hidden)'!$D$57:$E$140,2,FALSE)& " " & "Watts" -> Total Watts | V65: =IF(V62=0,"",V62/T59) ->  | W65: W/ft2
C66: Light Type 5 | E66: Select Light Fixture | F66: =VLOOKUP(E66,'Linked Cells (hidden)'!$D$57:$E$150,2,FALSE) -> Total | H66: =VLOOKUP(E66,'Linked Cells (hidden)'!$D$57:$E$150,2,FALSE)& " " & "Watts" -> Total Watts | N66: Light Type 5 | P66: Select Light Fixture | Q66: =VLOOKUP(P66,'Linked Cells (hidden)'!$D$57:$E$150,2,FALSE) -> Total | S66: =VLOOKUP(P66,'Linked Cells (hidden)'!$D$57:$E$140,2,FALSE)& " " & "Watts" -> Total Watts
C67: Other Type : Name | F67: =IF(D68=0,"Total",D68) -> Total | H67: =F67 & " Watts" -> Total Watts | N67: Other Type : Name | Q67: =IF(O68=0,"Total",O68) -> Total | S67: =Q67 & " Watts" -> Total Watts
C68: : Watts | N68: : Watts
C71: Room 7 Name | H71: Area | J71: Ft2 | N71: Room 8 Name | S71: Area | U71: Ft2
C72: Room 7 Lighting (Main Lighting only - Do not include task lights) | N72: Room 8 Lighting (Main Lighting only - Do not include task lights)
C73: Select up to 6 Light Fixture Types | K73: Total Room Wattage (W) | N73: Select up to 6 Light Fixture Types | V73: Total Room Wattage (W)
C74: Light Type 1 | E74: Select Light Fixture | H74: =VLOOKUP(E74,'Linked Cells (hidden)'!$D$57:$E$150,2,FALSE)& " " & "Watts" -> Total Watts | K74: =(IF(F74="Total",0,I74*F74)+IF(F75="Total",0,I75*F75)+IF(F76="Total",0,I76*F76)+IF(F77="Total",0,I77*F77)+IF(F78="Total",0,I78*F78)+IF(F79="Total",0,I79*F79)) -> 0 | M74: W | N74: Light Type 1 | P74: Select Light Fixture | S74: =VLOOKUP(P74,'Linked Cells (hidden)'!$D$57:$E$140,2,FALSE)& " " & "Watts" -> Total Watts | V74: =(IF(Q74="Total",0,T74*Q74)+IF(Q75="Total",0,T75*Q75)+IF(Q76="Total",0,T76*Q76)+IF(Q77="Total",0,T77*Q77)+IF(Q78="Total",0,T78*Q78)+IF(Q79="Total",0,T79*Q79)) -> 0 | X74: W
C75: Light Type 2 | E75: Select Light Fixture | F75: =VLOOKUP(E75,'Linked Cells (hidden)'!$D$57:$E$150,2,FALSE) -> Total | H75: =VLOOKUP(E75,'Linked Cells (hidden)'!$D$57:$E$150,2,FALSE)& " " & "Watts" -> Total Watts | N75: Light Type 2 | P75: Select Light Fixture | Q75: =VLOOKUP(P75,'Linked Cells (hidden)'!$D$57:$E$150,2,FALSE) -> Total | S75: =VLOOKUP(P75,'Linked Cells (hidden)'!$D$57:$E$140,2,FALSE)& " " & "Watts" -> Total Watts
C76: Light Type 3 | E76: Select Light Fixture | F76: =VLOOKUP(E76,'Linked Cells (hidden)'!$D$57:$E$150,2,FALSE) -> Total | H76: =VLOOKUP(E76,'Linked Cells (hidden)'!$D$57:$E$150,2,FALSE)& " " & "Watts" -> Total Watts | K76: Room Lighting Power Density (LPD) | N76: Light Type 3 | P76: Select Light Fixture | Q76: =VLOOKUP(P76,'Linked Cells (hidden)'!$D$57:$E$150,2,FALSE) -> Total | S76: =VLOOKUP(P76,'Linked Cells (hidden)'!$D$57:$E$140,2,FALSE)& " " & "Watts" -> Total Watts | V76: Room Lighting Power Density (LPD)
C77: Light Type 4 | E77: Select Light Fixture | F77: =VLOOKUP(E77,'Linked Cells (hidden)'!$D$57:$E$150,2,FALSE) -> Total | H77: =VLOOKUP(E77,'Linked Cells (hidden)'!$D$57:$E$150,2,FALSE)& " " & "Watts" -> Total Watts | K77: =IF(K74=0,"",K74/I71) ->  | L77: W/ft2 | N77: Light Type 4 | P77: Select Light Fixture | Q77: =VLOOKUP(P77,'Linked Cells (hidden)'!$D$57:$E$150,2,FALSE) -> Total | S77: =VLOOKUP(P77,'Linked Cells (hidden)'!$D$57:$E$140,2,FALSE)& " " & "Watts" -> Total Watts | V77: =IF(V74=0,"",V74/T71) ->  | W77: W/ft2
C78: Light Type 5 | E78: Select Light Fixture | F78: =VLOOKUP(E78,'Linked Cells (hidden)'!$D$57:$E$150,2,FALSE) -> Total | H78: =VLOOKUP(E78,'Linked Cells (hidden)'!$D$57:$E$150,2,FALSE)& " " & "Watts" -> Total Watts | N78: Light Type 5 | P78: Select Light Fixture | Q78: =VLOOKUP(P78,'Linked Cells (hidden)'!$D$57:$E$150,2,FALSE) -> Total | S78: =VLOOKUP(P78,'Linked Cells (hidden)'!$D$57:$E$140,2,FALSE)& " " & "Watts" -> Total Watts
C79: Other Type : Name | F79: =IF(D80=0,"Total",D80) -> Total | H79: =F79 & " Watts" -> Total Watts | N79: Other Type : Name | Q79: =IF(O80=0,"Total",O80) -> Total | S79: =Q79 & " Watts" -> Total Watts
C80: : Watts | N80: : Watts
C83: Room 9 Name | H83: Area | J83: Ft2 | N83: Room 10 Name | S83: Area | U83: Ft2
C84: Room 9 Lighting (Main Lighting only - Do not include task lights) | N84: Room 10 Lighting (Main Lighting only - Do not include task lights)
C85: Select up to 6 Light Fixture Types | K85: Total Room Wattage (W) | N85: Select up to 6 Light Fixture Types | V85: Total Room Wattage (W)
C86: Light Type 1 | E86: Select Light Fixture | F86: =VLOOKUP(E86,'Linked Cells (hidden)'!$D$57:$E$150,2,FALSE) -> Total | H86: =VLOOKUP(E86,'Linked Cells (hidden)'!$D$57:$E$150,2,FALSE)& " " & "Watts" -> Total Watts | K86: =(IF(F86="Total",0,I86*F86)+IF(F87="Total",0,I87*F87)+IF(F88="Total",0,I88*F88)+IF(F89="Total",0,I89*F89)+IF(F90="Total",0,I90*F90)+IF(F91="Total",0,I91*F91)) -> 0 | M86: W | N86: Light Type 1 | P86: Select Light Fixture | Q86: =VLOOKUP(P86,'Linked Cells (hidden)'!$D$57:$E$150,2,FALSE) -> Total | S86: =VLOOKUP(P86,'Linked Cells (hidden)'!$D$57:$E$140,2,FALSE)& " " & "Watts" -> Total Watts | V86: =(IF(Q86="Total",0,T86*Q86)+IF(Q87="Total",0,T87*Q87)+IF(Q88="Total",0,T88*Q88)+IF(Q89="Total",0,T89*Q89)+IF(Q90="Total",0,T90*Q90)+IF(Q91="Total",0,T91*Q91)) -> 0 | X86: W
C87: Light Type 2 | E87: Select Light Fixture | H87: =VLOOKUP(E87,'Linked Cells (hidden)'!$D$57:$E$150,2,FALSE)& " " & "Watts" -> Total Watts | N87: Light Type 2 | P87: Select Light Fixture | S87: =VLOOKUP(P87,'Linked Cells (hidden)'!$D$57:$E$140,2,FALSE)& " " & "Watts" -> Total Watts
C88: Light Type 3 | E88: Select Light Fixture | F88: =VLOOKUP(E88,'Linked Cells (hidden)'!$D$57:$E$150,2,FALSE) -> Total | H88: =VLOOKUP(E88,'Linked Cells (hidden)'!$D$57:$E$150,2,FALSE)& " " & "Watts" -> Total Watts | K88: Room Lighting Power Density (LPD) | N88: Light Type 3 | P88: Select Light Fixture | Q88: =VLOOKUP(P88,'Linked Cells (hidden)'!$D$57:$E$150,2,FALSE) -> Total | S88: =VLOOKUP(P88,'Linked Cells (hidden)'!$D$57:$E$140,2,FALSE)& " " & "Watts" -> Total Watts | V88: Room Lighting Power Density (LPD)
C89: Light Type 4 | E89: Select Light Fixture | F89: =VLOOKUP(E89,'Linked Cells (hidden)'!$D$57:$E$150,2,FALSE) -> Total | H89: =VLOOKUP(E89,'Linked Cells (hidden)'!$D$57:$E$150,2,FALSE)& " " & "Watts" -> Total Watts | K89: =IF(K86=0,"",K86/I83) ->  | L89: W/ft2 | N89: Light Type 4 | P89: Select Light Fixture | Q89: =VLOOKUP(P89,'Linked Cells (hidden)'!$D$57:$E$150,2,FALSE) -> Total | S89: =VLOOKUP(P89,'Linked Cells (hidden)'!$D$57:$E$140,2,FALSE)& " " & "Watts" -> Total Watts | V89: =IF(V86=0,"",V86/T83) ->  | W89: W/ft2
C90: Light Type 5 | E90: Select Light Fixture | F90: =VLOOKUP(E90,'Linked Cells (hidden)'!$D$57:$E$150,2,FALSE) -> Total | H90: =VLOOKUP(E90,'Linked Cells (hidden)'!$D$57:$E$150,2,FALSE)& " " & "Watts" -> Total Watts | N90: Light Type 5 | P90: Select Light Fixture | Q90: =VLOOKUP(P90,'Linked Cells (hidden)'!$D$57:$E$150,2,FALSE) -> Total | S90: =VLOOKUP(P90,'Linked Cells (hidden)'!$D$57:$E$140,2,FALSE)& " " & "Watts" -> Total Watts
C91: Other Type : Name | F91: =IF(D92=0,"Total",D92) -> Total | H91: =F91 & " Watts" -> Total Watts | N91: Other Type : Name | Q91: =IF(O92=0,"Total",O92) -> Total | S91: =Q91 & " Watts" -> Total Watts
C92: : Watts | N92: : Watts
B96: HVAC/Non-Process Energy
B98: To determine the site's Non-Process Heating, Ventilating, and Air Conditioning (HVAC) loads and energy use, describe each building's HVAC electrical using units by entering them below. If multiple of a unit exists, either add them into the table as separate units or enter Motor Size as the motor's size (in hp) multiplied by the quantity. Non-Process HVAC is meant to include all equipment not tied to specific process operations such as general ventilation heaters, office air conditioners, restroom exhaust fans, etc. Do not provide process-related ventilation equipment such as odor control fans here. You can enter process equipment information on the "WTP or WWTP Energy Usage" tab. For each Non-Process HVAC unit select the equipment type from the dropdown list and enter an “Equipment Description.” Collect and enter each unit’s motor size, efficiency and full load amperage (FLA) ratings. This information can be gathered from the equipment's nameplate or specification datasheet. If the site has authorized personnel capable of taking electrical measurements, enter the motors average operating current. Otherwise leave the "Average Motor Operating Current" blank and the tool will use an 80% Load Factor in its calculations. Once the equipment's typical operating hours are entered, the tool calculates the estimated annual energy use and operating cost for the unit. If conditions at the plant change, you can adjust these values. A summary of the HVAC and lighting information entered on the building data tabs is displayed on the top on the WTP and WWTP Energy Usage tabs. For those values to be included in the total energy use and to be displayed in the pie charts and summary report, you must enter the values in the Equipment Electrical Energy Inventory table (on the WTP or WWTP Energy Usage tab) as Non Process HVAC. See the instructions on that tab on how to enter this information.
C103: System Type | D103: Equipment Type | G103: Equipment Description | H103: Motor Size (hp) | I103: Motor Efficiency | J103: Motor Full Load Amperage (FLA) | K103: Average Motor Operating Current (Amps) | L103: Motor Operating Hours (Hours/Year) | M103: Average Load Factor (%) | N103: Average HVAC Electric Load (kW) | O103: Estimated Annual Energy Use (kWh/yr) | R103: Estimated Annual Operating Costs ($/Year) | S103: Estimated Percent of Site Electric Use & Cost (%)
C104: Non Process HVAC | D104: Fan | G104: HVAC Unit Fan | H104: 3 | I104: 0.85 | J104: 3.4 | K104: 2.8 | L104: 2500 | M104: =IF(J104=0,0,IF(K104=0,0.75,K104/J104)) -> 0.8235294118 | N104: =IF(I104=0,0,H104*0.746*M104/I104) -> 2.168304498 | O104: =N104*L104 -> 5420.761246 | R104: =O104*'General Information'!$H$46 -> 548.5807487 | S104: =IF('General Information'!$H$44=0,"",O104/'General Information'!$H$44) -> 0.002411370661
C105: Non Process HVAC | D105: Compressor | G105: AC Unit | H105: 1 | I105: 0.85 | J105: 1.1 | K105: 0.85 | L105: 900 | M105: 0.7727272727 | N105: 0.6781818182 | O105: 610.3636364 | R105: =O105*'General Information'!$H$46 -> 61.76876742 | S105: =IF('General Information'!$H$44=0,"",O105/'General Information'!$H$44) -> 0.0002715140731
C106: Non Process HVAC | D106: Select Equipment | M106: 0 | N106: 0 | O106: 0 | R106: =O106*'General Information'!$H$46 -> 0 | S106: =IF('General Information'!$H$44=0,"",O106/'General Information'!$H$44) -> 0
C107: Non Process HVAC | D107: Select Equipment | M107: 0 | N107: 0 | O107: 0 | R107: =O107*'General Information'!$H$46 -> 0 | S107: =IF('General Information'!$H$44=0,"",O107/'General Information'!$H$44) -> 0
C108: Non Process HVAC | D108: Select Equipment | M108: 0 | N108: 0 | O108: 0 | R108: =O108*'General Information'!$H$46 -> 0 | S108: =IF('General Information'!$H$44=0,"",O108/'General Information'!$H$44) -> 0
C109: Non Process HVAC | D109: Select Equipment | M109: 0 | N109: 0 | O109: 0 | R109: =O109*'General Information'!$H$46 -> 0 | S109: =IF('General Information'!$H$44=0,"",O109/'General Information'!$H$44) -> 0
J111: Total Building HVAC | N111: =SUM(N101:N109) -> 2.846486316 | O111: =SUM(O101:O109) -> 6031.124882 | R111: =SUM(R104:R109) -> 610.3495161 | S111: =SUM(S104:S109) -> 0.002682884734

Sheet Building 9 Data
A1: ="EPA Energy Use Assessment Tool for " & workbookType -> EPA Energy Use Assessment Tool for Drinking Water Systems
A2: Site Structural Buildings - Major Non-Process Energy Users
B4: In the Building Data tabs, the tool totals each building’s Lighting and HVAC information. You should use the totals for entry on the WTP or WWTP Energy Use tabs. For instructions on how to enter that information, see the WTP or WWTP Energy Usage tabs. If you have already identified the site's Lighting and HVAC loads or would just like to estimate them without detailing this information here, proceed to the WTP or WWTP Energy Usage tab. If you skip this tab, you can come back later to fill in this detail.
B6: The following information is entered once for the entire plant. To change the Total Number of Buildings on-site, go to the "Building 1 Data" tab and click the "Set # of Buildings" button. This lets you enter information for the specified number of buildings. After entering data in a building tab, click the "Save and Continue" button at the top. That allows you to enter data for the next building or if building data entry is complete, to return to the General Information tab. You can also click the other Building Data tabs at the bottom.
B9: Total Plant Building Area | D9: ='Building 1 Data'!D9 -> 9000 | E9: 9 | G9: Ft2 | H9: Total Plant Building Electric Load | K9: ='Building 1 Data'!K9 -> 57.14935709 | L9: kW | M9: Total Plant Building Electric Use | O9: ='Building 1 Data'!O9 -> 141729.2706 | R9: kWh/Yr
B11: Does the site have buildings? | D11: =hasBldgs -> Yes | H11: Total Number of Buildings On-site: | K11: =[0]!totalbldgs -> 10
B13: Enter the following information for each building at the plant. To begin, select the number of rooms in the "No. of Rooms" dropdown list below and click the "Set # of rooms" button. It is important to know and set the number of rooms upfront, before any lighting data is entered. If the number of rooms is later changed, all the data that had been entered will be lost.
C16: ="BUILDING " & E9 -> BUILDING 9
C18: Name | D18: Maintenance Facility | I18: Operating Hours per Year | K18: =IF(K19="","",K19*K20*52) -> 2080 | L18: Hrs/Yr | M18: Approximate Building Age (If known) | S18: Yrs
C19: Area | D19: =I35+T35+T47+I47+I59+T59+T71+I71+I83+T83 -> 2000 | G19: Ft2 | I19: Operating Hours per Day | K19: 8 | L19: Hrs/Day
C20: No. of Rooms | G20: ! Changing the number of rooms will reset all lighting data entered. | I20: Operating Days per Week | K20: 5 | L20: Days/Wk | M20: Average Building Lighting Power Density (LPD) | R20: =IF(D19=0,"",(K38+V38+V50+K50+K62+V62+V74+K74+K86+V86)/D19) -> 3.287 | S20: W/ft2
C21: Estimated Electric Load: | I21: Estimated Annual Energy Use: | N21: Estimated Annual Energy Cost:
C22: ="Total Building " & $E$9& " Lighting" -> Total Building 9 Lighting | G22: =IF((K38+V38+V50+K50+K62+V62+V74+K74+K86+V86)=0,0,(K38+V38+V50+K50+K62+V62+V74+K74+K86+V86)/1000) -> 6.574 | H22: kW | I22: ="Total Building " & $E$9& " Lighting" -> Total Building 9 Lighting | L22: =IF((K38+V38+V50+K50+K62+V62+V74+K74+K86+V86)=0,IF(K18="",0,0),IF(K18="",0,((K38+V38+V50+K50+K62+V62+V74+K74+K86+V86)/1000)*K18)) -> 13673.92 | M22: kWh/Yr | N22: ="Total Building " & $E$9 & " Lighting" -> Total Building 9 Lighting | R22: =L22*'General Information'!$H$46 -> 1383.799974 | S22: $/Yr
C23: ="Total Building " & $E$9 & " HVAC" -> Total Building 9 HVAC | G23: =N111 -> 2.496835483 | H23: kW | I23: ="Total Building " & $E$9 & " HVAC" -> Total Building 9 HVAC | L23: =O$111 -> 5539.97106 | M23: kWh/Yr | N23: ="Total Building " & $E$9 & " HVAC" -> Total Building 9 HVAC | R23: =R111 -> 560.6447756 | S23: $/Yr
C24: ="Total Building " & $E$9 & " Combined" -> Total Building 9 Combined | G24: =SUM(G22:G23) -> 9.070835483 | H24: kW | I24: ="Total Building " & $E$9 & " Combined" -> Total Building 9 Combined | L24: =SUM(L22,L23) -> 19213.89106 | M24: kWh/Yr | N24: ="Total Building " & $E$9 & " Combined" -> Total Building 9 Combined | R24: =SUM(R22,R23) -> 1944.44475 | S24: $/Yr
C26: LIGHTING
B28: To determine the site’s lighting loads and energy use, select each of the room’s lighting fixture types and quantity (Qty) using the dropdown lists below. Select a light type from the dropdown list for each size and kind of fixture in a room. Then enter the quantity for each type. The tool provides the fixture’s electrical energy load in watts. Do not include task lights (directional lights used to illuminate an area of work) when entering the room's lighting fixtures. If a type of fixture is not available in the dropdown list, use the "Other Type" input field to enter the fixture and its total wattage. The table automatically totals the room's lighting loads, each building's lighting energy use and the site's total lighting energy use per year for use in other areas of the tool. Enter the area of each room and the tool calculates the Lighting Power Density (LPD) in watts per square foot. You can now take an important next step and compare LPD’s from room to room and building to building to determine where excess energy might be in use.
C35: Room 1 Name | D35: Main Floor | H35: Area | I35: 2000 | J35: Ft2 | N35: Room 2 Name | S35: Area | U35: Ft2
C36: Room 1 Lighting (Main Lighting only - Do not include task lights) | N36: Room 2 Lighting (Main Lighting only - Do not include task lights)
C37: Select up to 6 Light Fixture Types | K37: Total Room Wattage (W) | N37: Select up to 6 Light Fixture Types | V37: Total Room Wattage (W)
C38: Light Type 1 | E38: Two F96T12 8' 75W Slim Fluorescent Lamps, ES Magnetic Ballast | F38: =VLOOKUP(E38,'Linked Cells (hidden)'!$D$57:$E$150,2,FALSE) -> 142 | H38: =VLOOKUP(E38,'Linked Cells (hidden)'!$D$57:$E$150,2,FALSE)& " " & "Watts" -> 142 Watts | I38: 37 | K38: =(IF(F38="Total",0,I38*F38)+IF(F39="Total",0,I39*F39)+IF(F40="Total",0,I40*F40)+IF(F41="Total",0,I41*F41)+IF(F42="Total",0,I42*F42)+IF(F43="Total",0,I43*F43)) -> 6574 | M38: W | N38: Light Type 1 | P38: Select Light Fixture | Q38: =VLOOKUP(P38,'Linked Cells (hidden)'!$D$57:$E$150,2,FALSE) -> Total | S38: =VLOOKUP(P38,'Linked Cells (hidden)'!$D$57:$E$140,2,FALSE)& " " & "Watts" -> Total Watts | V38: =(IF(Q38="Total",0,T38*Q38)+IF(Q39="Total",0,T39*Q39)+IF(Q40="Total",0,T40*Q40)+IF(Q41="Total",0,T41*Q41)+IF(Q42="Total",0,T42*Q42)+IF(Q43="Total",0,T43*Q43)) -> 0 | X38: W
C39: Light Type 2 | E39: Two F40T12 4' 40W Fluorescent Lamps, Magnetic Ballast | F39: =VLOOKUP(E39,'Linked Cells (hidden)'!$D$57:$E$150,2,FALSE) -> 88 | H39: =VLOOKUP(E39,'Linked Cells (hidden)'!$D$57:$E$150,2,FALSE)& " " & "Watts" -> 88 Watts | I39: 15 | N39: Light Type 2 | P39: Select Light Fixture | Q39: =VLOOKUP(P39,'Linked Cells (hidden)'!$D$57:$E$150,2,FALSE) -> Total | S39: =VLOOKUP(P39,'Linked Cells (hidden)'!$D$57:$E$140,2,FALSE)& " " & "Watts" -> Total Watts
C40: Light Type 3 | E40: Select Light Fixture | F40: =VLOOKUP(E40,'Linked Cells (hidden)'!$D$57:$E$150,2,FALSE) -> Total | H40: =VLOOKUP(E40,'Linked Cells (hidden)'!$D$57:$E$150,2,FALSE)& " " & "Watts" -> Total Watts | K40: Room Lighting Power Density (LPD) | N40: Light Type 3 | P40: Select Light Fixture | Q40: =VLOOKUP(P40,'Linked Cells (hidden)'!$D$57:$E$150,2,FALSE) -> Total | S40: =VLOOKUP(P40,'Linked Cells (hidden)'!$D$57:$E$140,2,FALSE)& " " & "Watts" -> Total Watts | V40: Room Lighting Power Density (LPD)
C41: Light Type 4 | E41: Select Light Fixture | F41: =VLOOKUP(E41,'Linked Cells (hidden)'!$D$57:$E$150,2,FALSE) -> Total | H41: =VLOOKUP(E41,'Linked Cells (hidden)'!$D$57:$E$150,2,FALSE)& " " & "Watts" -> Total Watts | K41: =IF(K38=0,"",K38/I35) -> 3.287 | L41: W/ft2 | N41: Light Type 4 | P41: Select Light Fixture | Q41: =VLOOKUP(P41,'Linked Cells (hidden)'!$D$57:$E$150,2,FALSE) -> Total | S41: =VLOOKUP(P41,'Linked Cells (hidden)'!$D$57:$E$140,2,FALSE)& " " & "Watts" -> Total Watts | V41: =IF(V38=0,"",V38/T35) ->  | W41: W/ft2
C42: Light Type 5 | E42: Select Light Fixture | F42: =VLOOKUP(E42,'Linked Cells (hidden)'!$D$57:$E$150,2,FALSE) -> Total | H42: =VLOOKUP(E42,'Linked Cells (hidden)'!$D$57:$E$150,2,FALSE)& " " & "Watts" -> Total Watts | N42: Light Type 5 | P42: Select Light Fixture | Q42: =VLOOKUP(P42,'Linked Cells (hidden)'!$D$57:$E$150,2,FALSE) -> Total | S42: =VLOOKUP(P42,'Linked Cells (hidden)'!$D$57:$E$140,2,FALSE)& " " & "Watts" -> Total Watts
C43: Other Type : Name | F43: =IF(D44=0,"Total",D44) -> Total | H43: =F43 & " Watts" -> Total Watts | N43: Other Type : Name | Q43: =IF(O44=0,"Total",O44) -> Total | S43: =Q43 & " Watts" -> Total Watts
C44: : Watts | N44: : Watts
C47: Room 3 Name | H47: Area | J47: Ft2 | N47: Room 4 Name | S47: Area | U47: Ft2
C48: Room 3 Lighting (Main Lighting only - Do not include task lights) | N48: Room 4 Lighting (Main Lighting only - Do not include task lights)
C49: Select up to 6 Light Fixture Types | K49: Total Room Wattage (W) | N49: Select up to 6 Light Fixture Types | V49: Total Room Wattage (W)
C50: Light Type 1 | E50: Select Light Fixture | F50: =VLOOKUP(E50,'Linked Cells (hidden)'!$D$57:$E$150,2,FALSE) -> Total | H50: =VLOOKUP(E50,'Linked Cells (hidden)'!$D$57:$E$150,2,FALSE)& " " & "Watts" -> Total Watts | K50: =(IF(F50="Total",0,I50*F50)+IF(F51="Total",0,I51*F51)+IF(F52="Total",0,I52*F52)+IF(F53="Total",0,I53*F53)+IF(F54="Total",0,I54*F54)+IF(F55="Total",0,I55*F55)) -> 0 | M50: W | N50: Light Type 1 | P50: Select Light Fixture | Q50: =VLOOKUP(P50,'Linked Cells (hidden)'!$D$57:$E$150,2,FALSE) -> Total | S50: =VLOOKUP(P50,'Linked Cells (hidden)'!$D$57:$E$140,2,FALSE)& " " & "Watts" -> Total Watts | V50: =(IF(Q50="Total",0,T50*Q50)+IF(Q51="Total",0,T51*Q51)+IF(Q52="Total",0,T52*Q52)+IF(Q53="Total",0,T53*Q53)+IF(Q54="Total",0,T54*Q54)+IF(Q55="Total",0,T55*Q55)) -> 0 | X50: W
C51: Light Type 2 | E51: Select Light Fixture | F51: =VLOOKUP(E51,'Linked Cells (hidden)'!$D$57:$E$150,2,FALSE) -> Total | H51: =VLOOKUP(E51,'Linked Cells (hidden)'!$D$57:$E$150,2,FALSE)& " " & "Watts" -> Total Watts | N51: Light Type 2 | P51: Select Light Fixture | Q51: =VLOOKUP(P51,'Linked Cells (hidden)'!$D$57:$E$150,2,FALSE) -> Total | S51: =VLOOKUP(P51,'Linked Cells (hidden)'!$D$57:$E$140,2,FALSE)& " " & "Watts" -> Total Watts
C52: Light Type 3 | E52: Select Light Fixture | F52: =VLOOKUP(E52,'Linked Cells (hidden)'!$D$57:$E$150,2,FALSE) -> Total | H52: =VLOOKUP(E52,'Linked Cells (hidden)'!$D$57:$E$150,2,FALSE)& " " & "Watts" -> Total Watts | K52: Room Lighting Power Density (LPD) | N52: Light Type 3 | P52: Select Light Fixture | Q52: =VLOOKUP(P52,'Linked Cells (hidden)'!$D$57:$E$150,2,FALSE) -> Total | S52: =VLOOKUP(P52,'Linked Cells (hidden)'!$D$57:$E$140,2,FALSE)& " " & "Watts" -> Total Watts | V52: Room Lighting Power Density (LPD)
C53: Light Type 4 | E53: Select Light Fixture | F53: =VLOOKUP(E53,'Linked Cells (hidden)'!$D$57:$E$150,2,FALSE) -> Total | H53: =VLOOKUP(E53,'Linked Cells (hidden)'!$D$57:$E$150,2,FALSE)& " " & "Watts" -> Total Watts | K53: =IF(K50=0,"",K50/I47) ->  | L53: W/ft2 | N53: Light Type 4 | P53: Select Light Fixture | Q53: =VLOOKUP(P53,'Linked Cells (hidden)'!$D$57:$E$150,2,FALSE) -> Total | S53: =VLOOKUP(P53,'Linked Cells (hidden)'!$D$57:$E$140,2,FALSE)& " " & "Watts" -> Total Watts | V53: =IF(V50=0,"",V50/T47) ->  | W53: W/ft2
C54: Light Type 5 | E54: Select Light Fixture | F54: =VLOOKUP(E54,'Linked Cells (hidden)'!$D$57:$E$150,2,FALSE) -> Total | H54: =VLOOKUP(E54,'Linked Cells (hidden)'!$D$57:$E$150,2,FALSE)& " " & "Watts" -> Total Watts | N54: Light Type 5 | P54: Select Light Fixture | Q54: =VLOOKUP(P54,'Linked Cells (hidden)'!$D$57:$E$150,2,FALSE) -> Total | S54: =VLOOKUP(P54,'Linked Cells (hidden)'!$D$57:$E$140,2,FALSE)& " " & "Watts" -> Total Watts
C55: Other Type : Name | F55: =IF(D56=0,"Total",D56) -> Total | H55: =F55 & " Watts" -> Total Watts | N55: Other Type : Name | Q55: =IF(O56=0,"Total",O56) -> Total | S55: =Q55 & " Watts" -> Total Watts
C56: : Watts | N56: : Watts
C59: Room 5 Name | H59: Area | J59: Ft2 | N59: Room 6 Name | S59: Area | U59: Ft2
C60: Room 5 Lighting (Main Lighting only - Do not include task lights) | N60: Room 6 Lighting (Main Lighting only - Do not include task lights)
C61: Select up to 6 Light Fixture Types | K61: Total Room Wattage (W) | N61: Select up to 6 Light Fixture Types | V61: Total Room Wattage (W)
C62: Light Type 1 | E62: Select Light Fixture | F62: =VLOOKUP(E62,'Linked Cells (hidden)'!$D$57:$E$150,2,FALSE) -> Total | H62: =VLOOKUP(E62,'Linked Cells (hidden)'!$D$57:$E$150,2,FALSE)& " " & "Watts" -> Total Watts | K62: =(IF(F62="Total",0,I62*F62)+IF(F63="Total",0,I63*F63)+IF(F64="Total",0,I64*F64)+IF(F65="Total",0,I65*F65)+IF(F66="Total",0,I66*F66)+IF(F67="Total",0,I67*F67)) -> 0 | M62: W | N62: Light Type 1 | P62: Select Light Fixture | Q62: =VLOOKUP(P62,'Linked Cells (hidden)'!$D$57:$E$150,2,FALSE) -> Total | S62: =VLOOKUP(P62,'Linked Cells (hidden)'!$D$57:$E$140,2,FALSE)& " " & "Watts" -> Total Watts | V62: =(IF(Q62="Total",0,T62*Q62)+IF(Q63="Total",0,T63*Q63)+IF(Q64="Total",0,T64*Q64)+IF(Q65="Total",0,T65*Q65)+IF(Q66="Total",0,T66*Q66)+IF(Q67="Total",0,T67*Q67)) -> 0 | X62: W
C63: Light Type 2 | E63: Select Light Fixture | F63: =VLOOKUP(E63,'Linked Cells (hidden)'!$D$57:$E$150,2,FALSE) -> Total | H63: =VLOOKUP(E63,'Linked Cells (hidden)'!$D$57:$E$150,2,FALSE)& " " & "Watts" -> Total Watts | N63: Light Type 2 | P63: Select Light Fixture | Q63: =VLOOKUP(P63,'Linked Cells (hidden)'!$D$57:$E$150,2,FALSE) -> Total | S63: =VLOOKUP(P63,'Linked Cells (hidden)'!$D$57:$E$140,2,FALSE)& " " & "Watts" -> Total Watts
C64: Light Type 3 | E64: Select Light Fixture | F64: =VLOOKUP(E64,'Linked Cells (hidden)'!$D$57:$E$150,2,FALSE) -> Total | H64: =VLOOKUP(E64,'Linked Cells (hidden)'!$D$57:$E$150,2,FALSE)& " " & "Watts" -> Total Watts | K64: Room Lighting Power Density (LPD) | N64: Light Type 3 | P64: Select Light Fixture | Q64: =VLOOKUP(P64,'Linked Cells (hidden)'!$D$57:$E$150,2,FALSE) -> Total | S64: =VLOOKUP(P64,'Linked Cells (hidden)'!$D$57:$E$140,2,FALSE)& " " & "Watts" -> Total Watts | V64: Room Lighting Power Density (LPD)
C65: Light Type 4 | E65: Select Light Fixture | F65: =VLOOKUP(E65,'Linked Cells (hidden)'!$D$57:$E$150,2,FALSE) -> Total | H65: =VLOOKUP(E65,'Linked Cells (hidden)'!$D$57:$E$150,2,FALSE)& " " & "Watts" -> Total Watts | K65: =IF(K62=0,"",K62/I59) ->  | L65: W/ft2 | N65: Light Type 4 | P65: Select Light Fixture | Q65: =VLOOKUP(P65,'Linked Cells (hidden)'!$D$57:$E$150,2,FALSE) -> Total | S65: =VLOOKUP(P65,'Linked Cells (hidden)'!$D$57:$E$140,2,FALSE)& " " & "Watts" -> Total Watts | V65: =IF(V62=0,"",V62/T59) ->  | W65: W/ft2
C66: Light Type 5 | E66: Select Light Fixture | F66: =VLOOKUP(E66,'Linked Cells (hidden)'!$D$57:$E$150,2,FALSE) -> Total | H66: =VLOOKUP(E66,'Linked Cells (hidden)'!$D$57:$E$150,2,FALSE)& " " & "Watts" -> Total Watts | N66: Light Type 5 | P66: Select Light Fixture | Q66: =VLOOKUP(P66,'Linked Cells (hidden)'!$D$57:$E$150,2,FALSE) -> Total | S66: =VLOOKUP(P66,'Linked Cells (hidden)'!$D$57:$E$140,2,FALSE)& " " & "Watts" -> Total Watts
C67: Other Type : Name | F67: =IF(D68=0,"Total",D68) -> Total | H67: =F67 & " Watts" -> Total Watts | N67: Other Type : Name | Q67: =IF(O68=0,"Total",O68) -> Total | S67: =Q67 & " Watts" -> Total Watts
C68: : Watts | N68: : Watts
C71: Room 7 Name | H71: Area | J71: Ft2 | N71: Room 8 Name | S71: Area | U71: Ft2
